Transaction_ID,Transaction_Date,Department,Beneficiary,Net_Transaction_Amount,Summary_of_Purpose,MCC,Merchant_Description
CCC_10002161_9,01/04/2022,Parking & Highways Operations,BADDOW ROAD CHELMSFORD,14,Car Parking,7523,AUTOMOBILE PARKING OR PARKING LOTS
CCC_10002161_19,01/04/2022,Parking & Highways Operations,WATERLOO LANE 3 CHELMSFORD,0.5,Car Parking,7523,AUTOMOBILE PARKING OR PARKING LOTS
CCC_10002098_1,01/04/2022,Building Services,FAST KEY SERVICES LIMI WICKFORD,13.58,General Expense,7399,BUSINESS SERVICES (NEC)
CCC_10002098_2,01/04/2022,Building Services,AMZNMKTPLACE AMAZON.CO.UK,356,General Expense,5999,MISCELLANEOUS & SPECIALTY STORES
CCC_10002161_16,01/04/2022,Parking & Highways Operations,WATERHOUSE LANE CHELMSFORD,5.5,Car Parking,7523,AUTOMOBILE PARKING OR PARKING LOTS
CCC_10000791_2,01/04/2022,Marketing & Communications Team,FACEBK J66L8BXY52 FB.ME/ADS,319.69,Advertising,7311,ADVERTISING SERVICES
CCC_10002161_22,01/04/2022,Parking & Highways Operations,RECTORY LANE WEST CHELMSFORD,0.5,Car Parking,7523,AUTOMOBILE PARKING OR PARKING LOTS
CCC_10000959_11,01/04/2022,Parks & Green Spaces,COOPER KEYS CHELMSFORD CM,204.6,Grounds Maintenance Materials,5251,HARDWARE STORES
CCC_10000920_2,01/04/2022,Parks & Green Spaces,AMAZON.CO.UK 290VB7MU4 AMAZON.CO.UK,18.02,Grounds Maintenance Materials,5969,DIRECT MARKETERS (NEC)
CCC_10000764_3,01/04/2022,Marketing & Communications Team,FACEBK  XB7DKDX9K2 FB.ME/ADS,625.72,Advertising,7311,ADVERTISING SERVICES
CCC_10000799_2,01/04/2022,Digital Services,MICROSOFT LIMITED BERKSHIRE,714.47,New Equipment,5732,ELECTRONIC SALES
CCC_10002161_14,01/04/2022,Parking & Highways Operations,REGINA ROAD CHELMSFORD,7,Car Parking,7523,AUTOMOBILE PARKING OR PARKING LOTS
CCC_10002161_17,01/04/2022,Parking & Highways Operations,WEST END CHELMSFORD,3.5,Car Parking,7523,AUTOMOBILE PARKING OR PARKING LOTS
CCC_10002161_18,01/04/2022,Parking & Highways Operations,MOULSHAM STREET CHELMSFORD,3,Car Parking,7523,AUTOMOBILE PARKING OR PARKING LOTS
CCC_10000920_1,01/04/2022,Parks & Green Spaces,CHANDLER MATERIALS CHELMSFORD,119,Grounds Maintenance Materials,5211,LUMBER AND BUILDING MATERIALS STORES
CCC_10002161_20,01/04/2022,Parking & Highways Operations,RIVERSIDE CHELMSFORD,0.5,Car Parking,7523,AUTOMOBILE PARKING OR PARKING LOTS
CCC_10002161_12,01/04/2022,Parking & Highways Operations,RECTORY LANE EAST CHELMSFORD,7,Car Parking,7523,AUTOMOBILE PARKING OR PARKING LOTS
CCC_10002161_21,01/04/2022,Parking & Highways Operations,RIVERSIDE CHELMSFORD,0.5,Car Parking,7523,AUTOMOBILE PARKING OR PARKING LOTS
CCC_10000798_17,01/04/2022,South Essex Parking Partnership,ROXWELL RD HAND CAR WA LONDON CM1,16.67,General Expense,7535,AUTOMOTIVE PAINT SHOPS
CCC_10002161_13,01/04/2022,Parking & Highways Operations,RECTORY LANE WEST CHELMSFORD,7,Car Parking,7523,AUTOMOBILE PARKING OR PARKING LOTS
CCC_10001927_38,01/04/2022,Public Health & Protection Services,THETRAINLINE.COM +443332022222,35.87,Public Transport,4112,PASSENGER RAILWAYS
CCC_10002140_4,01/04/2022,Marketing & Communications Team,AMZNMKTPLACE AMAZON.CO AMAZON.CO.UK,37.24,New Equipment,5999,MISCELLANEOUS & SPECIALTY STORES
CCC_10000762_8,01/04/2022,Operational Services,B & Q 1188 CHELMSFORD,35.92,General Expense,5200,HOME SUPPLY WAREHOUSE STORES
CCC_10000807_2,01/04/2022,Parks & Green Spaces,MARKS&SPENCER PLC SF CHLEMSFORD SF,36.67,General Expense,5411,GROCERY STORES OR SUPERMARKETS
CCC_10002161_15,01/04/2022,Parking & Highways Operations,COVAL LANE CHELMSFORD,7,Car Parking,7523,AUTOMOBILE PARKING OR PARKING LOTS
CCC_10000770_4,01/04/2022,Parks & Green Spaces,D. BYFORD & SONS COLCHESTER CO,22.8,Grounds Maintenance Materials,5193," FLORIST SUPPLIES, NURSERY STOCK AND FLOWERS "
CCC_10002161_8,01/04/2022,Parking & Highways Operations,PARKWAY CHELMSFORD,16.97,Car Parking,7523,AUTOMOBILE PARKING OR PARKING LOTS
CCC_10001927_37,01/04/2022,Public Health & Protection Services,FLOWBIRD SMART CITY UK POOLE DORSET,7.2,Car Parking,7523,AUTOMOBILE PARKING OR PARKING LOTS
CCC_10000800_4,01/04/2022,Parks & Green Spaces,AMZNMKTPLACE AMAZON.CO.UK,15.82,New Equipment,5999,MISCELLANEOUS & SPECIALTY STORES
CCC_10002161_11,01/04/2022,Parking & Highways Operations,FAIRFIELD ROAD CHELMSFORD,9,Car Parking,7523,AUTOMOBILE PARKING OR PARKING LOTS
CCC_10002161_10,01/04/2022,Parking & Highways Operations,GLEBE ROAD CHELMSFORD,9,Car Parking,7523,AUTOMOBILE PARKING OR PARKING LOTS
CCC_10001055_14,01/04/2022,Parks & Green Spaces,HOMEBASE LTD CHELMSFORD,23.33,Grounds Maintenance Materials,5200,HOME SUPPLY WAREHOUSE STORES
CCC_10000859_2,02/04/2022,"Museums, Theatres & Cultural Services",AMZNMKTPLACE AMAZON.CO AMAZON.CO.UK,49.96,New Equipment,5999,MISCELLANEOUS & SPECIALTY STORES
CCC_10000791_1,02/04/2022,Marketing & Communications Team,GOOGLE ADS9290904130 DUBLIN,500,Advertising,7311,ADVERTISING SERVICES
CCC_10000780_2,03/04/2022,Leisure & Heritage Services,AMZNMKTPLACE AMAZON.CO AMAZON.CO.UK,13.49,New Equipment,5999,MISCELLANEOUS & SPECIALTY STORES
CCC_10000808_1,03/04/2022,Leisure & Heritage Services,AMZNMKTPLACE AMAZON.CO.UK,20.4,New Equipment,5999,MISCELLANEOUS & SPECIALTY STORES
CCC_10000780_1,03/04/2022,Leisure & Heritage Services,AMZNMKTPLACE AMAZON.CO AMAZON.CO.UK,14.99,General Expense,5999,MISCELLANEOUS & SPECIALTY STORES
CCC_10000798_16,04/04/2022,South Essex Parking Partnership,SUMUP   ZENITH MOTORS BARKING,16.67,General Expense,7210," CLEANING, LAUNDRY AND GARMENT SERVICES "
CCC_10000816_2,04/04/2022,Corporate Property Services,CHELMSFORD.GOV.UK ESSEX,1090,General Expense,9399,GOVERNMENT SERVICES (NEC) OR FIRE DEPARTMENTS
CCC_10000798_15,04/04/2022,South Essex Parking Partnership,AMAZON.CO.UK 296OC7254 AMAZON.CO.UK,60.94,Clothing & Uniforms,5969,DIRECT MARKETERS (NEC)
CCC_10000811_3,04/04/2022,Parks & Green Spaces,CHELMSFORD SAFETY SUPP CHELMSFORD,60.1,Clothing & Uniforms,5047," MEDICAL, DENTAL, OPHTHALMIC AND HOSPITAL EQUIP "
CCC_10000843_10,04/04/2022,Parks & Green Spaces,SAINSBURYS S/MKTS CHELMSFORD 41,18.25,General Expense,5411,GROCERY STORES OR SUPERMARKETS
CCC_10000816_4,04/04/2022,Corporate Property Services,CHELMSFORD.GOV.UK ESSEX,1090,General Expense,9399,GOVERNMENT SERVICES (NEC) OR FIRE DEPARTMENTS
CCC_10000777_2,04/04/2022,Customer Services,PRINT MARKETPLACE 40 2802345,22.12,Printing & Stationary,7338," PRINT SHOPS, QUICK COPY SERVICES OR REPRODUCTION SERVICES "
CCC_10002098_3,04/04/2022,Building Services,WWW.NISBETS.COM 0845 1110281,177.31,General Expense,5964,CATALOG MERCHANT
CCC_10000816_1,04/04/2022,Corporate Property Services,CHELMSFORD.GOV.UK ESSEX,1090,General Expense,9399,GOVERNMENT SERVICES (NEC) OR FIRE DEPARTMENTS
CCC_10000816_3,04/04/2022,Corporate Property Services,CHELMSFORD.GOV.UK ESSEX,544,General Expense,9399,GOVERNMENT SERVICES (NEC) OR FIRE DEPARTMENTS
CCC_10000869_1,04/04/2022,"Museums, Theatres & Cultural Services",AMZNMKTPLACE AMAZON.CO.UK,17.99,General Expense,5999,MISCELLANEOUS & SPECIALTY STORES
CCC_10000870_1,04/04/2022,"Museums, Theatres & Cultural Services",AMZNMKTPLACE AMAZON.CO.UK,2.74,General Expense,5999,MISCELLANEOUS & SPECIALTY STORES
CCC_10001055_13,04/04/2022,Parks & Green Spaces,TESCO STORE 2330 CHELMSFORD 2,48.42,Grounds Maintenance Materials,5411,GROCERY STORES OR SUPERMARKETS
CCC_10000795_7,04/04/2022,Leisure & Heritage Services,WWW.NISBETS.COM 0845 1110281,239.98,New Equipment,5964,CATALOG MERCHANT
CCC_10000774_1,05/04/2022,Parking & Highways Operations,AMZNMKTPLACE AMAZON.CO.UK,26.24,Car Parking,5999,MISCELLANEOUS & SPECIALTY STORES
CCC_10000787_1,05/04/2022,Marketing & Communications Team,PRINT MARKETPLACE 40 2802345,62.35,Printing & Stationary,7338," PRINT SHOPS, QUICK COPY SERVICES OR REPRODUCTION SERVICES "
CCC_10000774_3,05/04/2022,Parking & Highways Operations,AMZNMKTPLACE AMAZON.CO.UK,26.24,General Expense,5999,MISCELLANEOUS & SPECIALTY STORES
CCC_10000762_7,05/04/2022,Operational Services,B & Q 1188 CHELMSFORD,46,General Expense,5200,HOME SUPPLY WAREHOUSE STORES
CCC_10000774_2,05/04/2022,Parking & Highways Operations,AMZNMKTPLACE AMAZON.CO.UK,26.24,General Expense,5999,MISCELLANEOUS & SPECIALTY STORES
CCC_10000774_4,05/04/2022,Parking & Highways Operations,AMZNMKTPLACE AMAZON.CO.UK,26.23,General Expense,5999,MISCELLANEOUS & SPECIALTY STORES
CCC_10000776_1,05/04/2022,Chief Executive's Office,GCS FOR BUSINESS UNKNOWN,1475,General Expense,8999,PROFESSIONAL SERVICES (NEC)
CCC_10000778_1,05/04/2022,Leisure & Heritage Services,TESCO STORE 2330 CHELMSFORD 2,30.75,New Equipment,5411,GROCERY STORES OR SUPERMARKETS
CCC_10000798_12,05/04/2022,South Essex Parking Partnership,SP   PATROLSTORE REIAGTE,241.27,Clothing & Uniforms,5399,GENERAL MERCHANDISE OR CONVENIENCE FOOD STORES
CCC_10000859_3,05/04/2022,"Museums, Theatres & Cultural Services",ROTACLOUD YORK,49,Employee Subscriptions,5734,COMPUTER SOFTWARE STORES
CCC_10000798_14,05/04/2022,South Essex Parking Partnership,ASDA SUPERSTORE BASILDON,1.79,General Expense,5411,GROCERY STORES OR SUPERMARKETS
CCC_10000817_1,05/04/2022,Leisure & Heritage Services,AMZNMKTPLACE AMAZON.CO AMAZON.CO.UK,27.57,New Equipment,5999,MISCELLANEOUS & SPECIALTY STORES
CCC_10000798_13,05/04/2022,South Essex Parking Partnership,COSTA COFFEE 43039650 BASILDON,5.21,General Expense,5814,FAST FOOD RESTAURANTS
CCC_10000795_6,05/04/2022,Leisure & Heritage Services,AMZNMKTPLACE AMAZON.CO AMAZON.CO.UK,29.97,New Equipment,5999,MISCELLANEOUS & SPECIALTY STORES
CCC_10000831_4,05/04/2022,Leisure & Heritage Services,TOOLSTATION LTD CHELMSFORD,27.27,General Expense,5211,LUMBER AND BUILDING MATERIALS STORES
CCC_10000817_2,05/04/2022,Leisure & Heritage Services,SPIN MOBILITY LIMITED LONDON,0.8,Public Transport,4111," LOCAL/SUB COMMUTER PSGR TRNP, INCL FERRIES OR WATER TRNP "
CCC_10002098_4,06/04/2022,Building Services,TESCO STORES 5408 CHELMSFORD,5,General Expense,5411,GROCERY STORES OR SUPERMARKETS
CCC_10000794_14,06/04/2022,"Museums, Theatres & Cultural Services",AMAZON.CO.UK 2998F8IX4 AMAZON.CO.UK,19.65,New Equipment,5969,DIRECT MARKETERS (NEC)
CCC_10000762_6,06/04/2022,Operational Services,B & Q 1188 CHELMSFORD,29.7,General Expense,5200,HOME SUPPLY WAREHOUSE STORES
CCC_10000959_17,06/04/2022,Parks & Green Spaces,HOMEBASE LTD CHELMSFORD,11.87,Grounds Maintenance Materials,5200,HOME SUPPLY WAREHOUSE STORES
CCC_10002161_23,06/04/2022,Parking & Highways Operations,WATERHOUSE LANE CHELMSFORD,5.5,Car Parking,7523,AUTOMOBILE PARKING OR PARKING LOTS
CCC_10000761_3,06/04/2022,Development Management,AMZNMKTPLACE AMAZON.CO AMAZON.CO.UK,10.33,Printing & Stationary,5999,MISCELLANEOUS & SPECIALTY STORES
CCC_10000770_3,06/04/2022,Parks & Green Spaces,AMAZON.CO.UK 291ZA4UA4 AMAZON.CO.UK,16.91,General Expense,5969,DIRECT MARKETERS (NEC)
CCC_10000795_5,06/04/2022,Leisure & Heritage Services,THISTLE DRY CLEANERS LONDON  N13,233.33,New Equipment,7216,DRY CLEANERS
CCC_10000794_11,06/04/2022,"Museums, Theatres & Cultural Services",AMZNMKTPLACE AMAZON.CO AMAZON.CO.UK,17.49,New Equipment,5999,MISCELLANEOUS & SPECIALTY STORES
CCC_10000767_2,06/04/2022,Leisure & Heritage Services,WWW.EQUIP4WORK.CO.UK HEATHHALL,75,New Equipment,5021,COMMERCIAL FURNITURE
CCC_10000785_10,06/04/2022,Marketing & Communications Team,WWW.SOLOPRESS.COM SOUTHEND-ON-S,60.72,Printing & Stationary,2741,MISCELLANEOUS PUBLISHING AND PRINTING
CCC_10000760_1,06/04/2022,Parks & Green Spaces,WWW.OFFICEFURNITUREONL HEATHHALL,-44.4,New Equipment,5021,COMMERCIAL FURNITURE
CCC_10000795_3,06/04/2022,Leisure & Heritage Services,AMAZON.CO.UK 293VY0RA4 AMAZON.CO.UK,10.44,General Expense,5969,DIRECT MARKETERS (NEC)
CCC_10000873_1,06/04/2022,"Museums, Theatres & Cultural Services",SP   CONSERVATION RESO BICESTER,54.21,Museum Exhibits,5970,CRAFT OR ARTIST'S SUPPLY SHOPS
CCC_10000758_13,06/04/2022,"Museums, Theatres & Cultural Services",TESCO STORE 2330 CHELMSFORD 2,8.2,General Expense,5411,GROCERY STORES OR SUPERMARKETS
CCC_10002098_6,06/04/2022,Building Services,AMZNMKTPLACE AMAZON.CO AMAZON.CO.UK,15.99,General Expense,5999,MISCELLANEOUS & SPECIALTY STORES
CCC_10000794_13,06/04/2022,"Museums, Theatres & Cultural Services",AMZNMKTPLACE AMAZON.CO AMAZON.CO.UK,5.38,New Equipment,5999,MISCELLANEOUS & SPECIALTY STORES
CCC_10000794_12,06/04/2022,"Museums, Theatres & Cultural Services",AMZNMKTPLACE AMAZON.CO AMAZON.CO.UK,16.42,New Equipment,5999,MISCELLANEOUS & SPECIALTY STORES
CCC_10002098_5,06/04/2022,Building Services,AMZNMKTPLACE AMAZON.CO AMAZON.CO.UK,9.17,General Expense,5999,MISCELLANEOUS & SPECIALTY STORES
CCC_10000824_1,06/04/2022,Leisure & Heritage Services,FAREWAY TAXIS LIMITED CHELMSFORD,191.67,Public Transport,4121,TAXICABS OR LIMOUSINES
CCC_10000795_4,06/04/2022,Leisure & Heritage Services,AMAZON.CO.UK 2903N8RB4 AMAZON.CO.UK,6.24,General Expense,5969,DIRECT MARKETERS (NEC)
CCC_10000766_2,06/04/2022,Public Health & Protection Services,AMZNMKTPLACE AMAZON.CO.UK,74.17,General Expense,5999,MISCELLANEOUS & SPECIALTY STORES
CCC_10001055_12,06/04/2022,Parks & Green Spaces,WARWICK WARD (MACHINER BARNSLEY,420,Vehicle Repairs,5046,COMMERCIAL EQUIPMENT (NEC)
CCC_10000790_2,06/04/2022,Development Management,AMZNMKTPLACE AMAZON.CO AMAZON.CO.UK,16.66,New Equipment,5999,MISCELLANEOUS & SPECIALTY STORES
CCC_10000790_1,06/04/2022,Development Management,AMZNMKTPLACE AMAZON.CO AMAZON.CO.UK,4.57,New Equipment,5999,MISCELLANEOUS & SPECIALTY STORES
CCC_10000820_1,06/04/2022,Leisure & Heritage Services,WM MORRISONS STORE CHELMSFORD,8,New Equipment,5411,GROCERY STORES OR SUPERMARKETS
CCC_10002098_7,07/04/2022,Building Services,AMZNMKTPLACE AMAZON.CO AMAZON.CO.UK,33.96,General Expense,5999,MISCELLANEOUS & SPECIALTY STORES
CCC_10000779_1,07/04/2022,Leisure & Heritage Services,AMZNMKTPLACE AMAZON.CO.UK,15.82,New Equipment,5999,MISCELLANEOUS & SPECIALTY STORES
CCC_10000811_6,07/04/2022,Parks & Green Spaces,AMZNMKTPLACE AMAZON.CO AMAZON.CO.UK,20.82,Printing & Stationary,5999,MISCELLANEOUS & SPECIALTY STORES
CCC_10000898_1,07/04/2022,Leisure & Heritage Services,AMZNMKTPLACE AMAZON.CO.UK,12.28,New Equipment,5999,MISCELLANEOUS & SPECIALTY STORES
CCC_10000765_1,07/04/2022,Parking & Highways Operations,WICKES BRAINTREE BRAINTREE,11.25,Car Parking,5211,LUMBER AND BUILDING MATERIALS STORES
CCC_10000815_8,07/04/2022,Housing Services,BRITISH GAS ONLINE BRITISHGAS.CO,19.05,General Expense,4900," ELECTRIC, GAS, SANITARY, TELEPHONE OR WATER UTILITIES "
CCC_10000827_3,07/04/2022,Leisure & Heritage Services,VIKING UK LEICESTER,162.67,Printing & Stationary,5111," STATIONERY, OFFICE SUPPLIES, PRINTING AND WRITING PAPER "
CCC_10000783_1,07/04/2022,Marketing & Communications Team,PAYPAL  NETMUMS LTD 35314369001,162,Advertising,8999,PROFESSIONAL SERVICES (NEC)
CCC_10000783_2,07/04/2022,Marketing & Communications Team,PAYPAL  LOUISE FORD 35314369001,200,Advertising,5641,CHILDREN'S AND INFANTS' WEAR STORES
CCC_10000798_10,07/04/2022,South Essex Parking Partnership,AMZNMKTPLACE AMAZON.CO.UK,9.16,New Equipment,5999,MISCELLANEOUS & SPECIALTY STORES
CCC_10000761_2,07/04/2022,Development Management,AMZNMKTPLACE AMAZON.CO AMAZON.CO.UK,14.07,Printing & Stationary,5999,MISCELLANEOUS & SPECIALTY STORES
CCC_10000815_7,07/04/2022,Housing Services,BRITISH GAS ONLINE BRITISHGAS.CO,19.05,General Expense,4900," ELECTRIC, GAS, SANITARY, TELEPHONE OR WATER UTILITIES "
CCC_10000798_11,07/04/2022,South Essex Parking Partnership,TECH KINGDOM LIMITED CHELMSFORD,10,New Equipment,7379," COMPUTER MAINTENANCE, REPAIR AND SERVICES "
CCC_10000826_3,07/04/2022,Parking & Highways Operations,WWW.SCREWFIX.COM YEOVIL,40.82,Printing & Stationary,5211,LUMBER AND BUILDING MATERIALS STORES
CCC_10000897_1,07/04/2022,"Museums, Theatres & Cultural Services",WWW.SCREWFIX.COM YEOVIL,34.48,General Expense,5211,LUMBER AND BUILDING MATERIALS STORES
CCC_10000827_2,07/04/2022,Leisure & Heritage Services,SP   STIHL GB CAMBERLEY,357.5,New Equipment,5399,GENERAL MERCHANDISE OR CONVENIENCE FOOD STORES
CCC_10000777_1,07/04/2022,Customer Services,PRINT MARKETPLACE 40 2802345,27.43,Printing & Stationary,7338," PRINT SHOPS, QUICK COPY SERVICES OR REPRODUCTION SERVICES "
CCC_10001368_9,07/04/2022,Marketing & Communications Team,WWW.CIPR.CO.UK INTERNET,25,Employee Subscriptions,8699,MEMBERSHIP ORGANIZATIONS NOT ELSEWHERE CLASSIFIED
CCC_10000914_4,07/04/2022,Leisure & Heritage Services,SOUNDTRACK YOUR BRAND STOCKHOLM,35,General Expense,5815," DIGITAL GOODS MEDIA: BOOKS, MOVIES, MUSIC "
CCC_10000807_1,07/04/2022,Parks & Green Spaces,CHELMSFORD SAFETY SUPP CHELMSFORD,48,Clothing & Uniforms,5047," MEDICAL, DENTAL, OPHTHALMIC AND HOSPITAL EQUIP "
CCC_10000811_7,07/04/2022,Parks & Green Spaces,AMZNMKTPLACE AMAZON.CO AMAZON.CO.UK,19.95,Printing & Stationary,5999,MISCELLANEOUS & SPECIALTY STORES
CCC_10000959_12,07/04/2022,Parks & Green Spaces,HOMEBASE LTD CHELMSFORD,51.25,Grounds Maintenance Materials,5200,HOME SUPPLY WAREHOUSE STORES
CCC_10000811_4,07/04/2022,Parks & Green Spaces,WWW.SCREWFIX.COM YEOVIL,114.99,New Equipment,5211,LUMBER AND BUILDING MATERIALS STORES
CCC_10000811_5,07/04/2022,Parks & Green Spaces,AMZNMKTPLACE AMAZON.CO AMAZON.CO.UK,34.89,Printing & Stationary,5999,MISCELLANEOUS & SPECIALTY STORES
CCC_10000768_9,07/04/2022,Leisure & Heritage Services,AMZNMKTPLACE AMAZON.CO.UK,9.64,New Equipment,5999,MISCELLANEOUS & SPECIALTY STORES
CCC_10000815_5,08/04/2022,Housing Services,BRITISH GAS ONLINE BRITISHGAS.CO,76.19,General Expense,4900," ELECTRIC, GAS, SANITARY, TELEPHONE OR WATER UTILITIES "
CCC_10000798_8,08/04/2022,South Essex Parking Partnership,LAVISH CAR WASH BRENTWOOD,16.67,General Expense,7542,CAR WASHES
CCC_10000959_10,08/04/2022,Parks & Green Spaces,D. BYFORD & SONS COLCHESTER CO,43.5,Grounds Maintenance Materials,5193," FLORIST SUPPLIES, NURSERY STOCK AND FLOWERS "
CCC_10000792_3,08/04/2022,Housing Services,ESSEX COUNTY COUNCI EC CHELMSFORD,11,General Expense,9399,GOVERNMENT SERVICES (NEC) OR FIRE DEPARTMENTS
CCC_10000798_9,08/04/2022,South Essex Parking Partnership,AMZNMKTPLACE AMAZON.CO.UK,64.97,New Equipment,5999,MISCELLANEOUS & SPECIALTY STORES
CCC_10000810_6,08/04/2022,Leisure & Heritage Services,AMAZON.CO.UK 2E2097OO4 AMAZON.CO.UK,21.24,New Equipment,5969,DIRECT MARKETERS (NEC)
CCC_10000810_7,08/04/2022,Leisure & Heritage Services,AMZNMKTPLACE AMAZON.CO.UK,28.78,New Equipment,5999,MISCELLANEOUS & SPECIALTY STORES
CCC_10000822_1,08/04/2022,Leisure & Heritage Services,AMZNMKTPLACE AMAZON.CO AMAZON.CO.UK,5.82,Printing & Stationary,5999,MISCELLANEOUS & SPECIALTY STORES
CCC_10000798_7,08/04/2022,South Essex Parking Partnership,AMZ AMAZON.CO.UK AMAZON.CO.UK,-60.94,Clothing & Uniforms,5969,DIRECT MARKETERS (NEC)
CCC_10000791_3,08/04/2022,Marketing & Communications Team,GOOGLE  ADS9290904130 650-253-0000,500,Advertising,5818,LARGE DIGITAL GOODS MERCHANT
CCC_10000897_2,08/04/2022,"Museums, Theatres & Cultural Services",TIMPSON LTD CHELMSFORD,10,General Expense,5999,MISCELLANEOUS & SPECIALTY STORES
CCC_10000792_4,08/04/2022,Housing Services,ESSEX COUNTY COUNCI EC CHELMSFORD,11,General Expense,9399,GOVERNMENT SERVICES (NEC) OR FIRE DEPARTMENTS
CCC_10000815_6,08/04/2022,Housing Services,BRITISH GAS ONLINE BRITISHGAS.CO,9.52,General Expense,4900," ELECTRIC, GAS, SANITARY, TELEPHONE OR WATER UTILITIES "
CCC_10000788_2,09/04/2022,Leisure & Heritage Services,SPRINGFIELD FLORIST CHELMSFORD,105,General Expense,5992,FLORISTS
CCC_10000798_6,10/04/2022,South Essex Parking Partnership,AMZNMKTPLACE AMAZON.CO.UK,127.56,Clothing & Uniforms,5999,MISCELLANEOUS & SPECIALTY STORES
CCC_10000859_4,10/04/2022,"Museums, Theatres & Cultural Services",AMZNMKTPLACE AMAZON.CO.UK,45.79,New Equipment,5999,MISCELLANEOUS & SPECIALTY STORES
CCC_10000786_1,10/04/2022,Marketing & Communications Team,PRINT MARKETPLACE 40 2802345,119.2,Printing & Stationary,7338," PRINT SHOPS, QUICK COPY SERVICES OR REPRODUCTION SERVICES "
CCC_10000761_1,10/04/2022,Development Management,AMZNMKTPLACE AMAZON.CO AMAZON.CO.UK,37.21,Printing & Stationary,5999,MISCELLANEOUS & SPECIALTY STORES
CCC_10000785_2,10/04/2022,Marketing & Communications Team,PRINT MARKETPLACE 40 2802345,37.03,Printing & Stationary,7338," PRINT SHOPS, QUICK COPY SERVICES OR REPRODUCTION SERVICES "
CCC_10000841_7,11/04/2022,Human Resources,MUSEUMS ASCTN LONDON,94,Employee Subscriptions,5971,ART DEALERS OR GALLERIES
CCC_10000766_1,11/04/2022,Public Health & Protection Services,ANGLIA RUSKIN UNI CHELMSFORD,14.9,General Expense,5812,RESTAURANTS OR EATING PLACES
CCC_10000785_9,11/04/2022,Marketing & Communications Team,WWW.SOLOPRESS.COM SOUTHEND-ON-S,95.17,Printing & Stationary,2741,MISCELLANEOUS PUBLISHING AND PRINTING
CCC_10000959_16,11/04/2022,Parks & Green Spaces,WWW.SCREWFIX.COM YEOVIL,85.7,Grounds Maintenance Materials,5211,LUMBER AND BUILDING MATERIALS STORES
CCC_10000813_3,11/04/2022,"Museums, Theatres & Cultural Services",AMZNMKTPLACE AMAZON.CO.UK,25.9,Printing & Stationary,5999,MISCELLANEOUS & SPECIALTY STORES
CCC_10000813_1,11/04/2022,"Museums, Theatres & Cultural Services",AMZNMKTPLACE AMAZON.CO.UK,23.08,Printing & Stationary,5999,MISCELLANEOUS & SPECIALTY STORES
CCC_10000841_6,11/04/2022,Human Resources,MUSEUMS ASCTN LONDON,94,Employee Subscriptions,5971,ART DEALERS OR GALLERIES
CCC_10000795_2,11/04/2022,Leisure & Heritage Services,TESCO STORE 2330 CHELMSFORD 2,38.27,General Expense,5411,GROCERY STORES OR SUPERMARKETS
CCC_10000794_10,11/04/2022,"Museums, Theatres & Cultural Services",AMZNMKTPLACE AMAZON.CO AMAZON.CO.UK,30.83,Printing & Stationary,5999,MISCELLANEOUS & SPECIALTY STORES
CCC_10000811_2,11/04/2022,Parks & Green Spaces,ESSEX SUPPLIES (UK) LT SOUTHEND-ON-S,33.59,New Equipment,2842," SPECIALTY CLEANING, POLISHING AND SANITATION PREPS "
CCC_10000789_1,11/04/2022,Marketing & Communications Team,FACEBK S5N9RBPKD2 FB.ME/ADS,28.66,Advertising,7311,ADVERTISING SERVICES
CCC_10000794_9,11/04/2022,"Museums, Theatres & Cultural Services",WWW.TTS-GROUPS.CO.UK INTERNET,73.47,New Equipment,5943," STATIONERY STORES, OFFICE & SCHOOL SUPPLY STORES "
CCC_10000764_2,11/04/2022,Marketing & Communications Team,PRINT MARKETPLACE 40 2802345,129.08,Printing & Stationary,7338," PRINT SHOPS, QUICK COPY SERVICES OR REPRODUCTION SERVICES "
CCC_10001162_2,11/04/2022,Parks & Green Spaces,TESCO STORE 2330 CHELMSFORD 2,48,Grounds Maintenance Materials,5411,GROCERY STORES OR SUPERMARKETS
CCC_10000843_8,11/04/2022,Parks & Green Spaces,TESCO-STORES 6724 CHELMSFORD,7,General Expense,5411,GROCERY STORES OR SUPERMARKETS
CCC_10000955_23,11/04/2022,Operational Services,MILLCOT TOOLS CHELMSFORD,43.13,Vehicle Repairs,5072," HARDWARE, PLUMBING, HEATING EQUIPMENT AND SUPPLIES "
CCC_10000792_2,11/04/2022,Housing Services,GEN REGISTER OFFICE SOUTHPORT,14,General Expense,9399,GOVERNMENT SERVICES (NEC) OR FIRE DEPARTMENTS
CCC_10000843_9,11/04/2022,Parks & Green Spaces,ASDA SUPERSTORE CHELMSFORD,29.95,General Expense,5411,GROCERY STORES OR SUPERMARKETS
CCC_10000798_5,11/04/2022,South Essex Parking Partnership,SP   MAGNUMBOOTS SOUTHEND-ON-S,16.67,Clothing & Uniforms,5734,COMPUTER SOFTWARE STORES
CCC_10000813_2,11/04/2022,"Museums, Theatres & Cultural Services",AMZNMKTPLACE AMAZON.CO.UK,9.58,Printing & Stationary,5999,MISCELLANEOUS & SPECIALTY STORES
CCC_10000793_1,12/04/2022,Street Care & Performance,REPLACEMENT KEYS LTD LEIGHTON BUZZ,42.4,General Expense,5399,GENERAL MERCHANDISE OR CONVENIENCE FOOD STORES
CCC_10000798_4,12/04/2022,South Essex Parking Partnership,AMZNMKTPLACE AMAZON.CO.UK,11.65,New Equipment,5999,MISCELLANEOUS & SPECIALTY STORES
CCC_10000785_8,12/04/2022,Marketing & Communications Team,PRINT MARKETPLACE 40 2802345,25.44,Printing & Stationary,7338," PRINT SHOPS, QUICK COPY SERVICES OR REPRODUCTION SERVICES "
CCC_10001005_5,12/04/2022,"Museums, Theatres & Cultural Services",HTTP://PMSE.OFCOM.ORG. LONDON  SE1,140,General Expense,8699,MEMBERSHIP ORGANIZATIONS NOT ELSEWHERE CLASSIFIED
CCC_10000794_8,12/04/2022,"Museums, Theatres & Cultural Services",AMZNMKTPLACE AMAZON.CO AMAZON.CO.UK,51.62,New Equipment,5999,MISCELLANEOUS & SPECIALTY STORES
CCC_10000794_5,12/04/2022,"Museums, Theatres & Cultural Services",AMZNMKTPLACE AMAZON.CO AMAZON.CO.UK,10.32,New Equipment,5999,MISCELLANEOUS & SPECIALTY STORES
CCC_10000768_8,12/04/2022,Leisure & Heritage Services,B & Q 1188 CHELMSFORD,10.81,New Equipment,5200,HOME SUPPLY WAREHOUSE STORES
CCC_10002098_8,12/04/2022,Building Services,CLR WWW.SHG-UK.CO.UK HASLINGTON,16.64,General Expense,1731,ELECTRICAL CONTRACTORS
CCC_10000768_7,12/04/2022,Leisure & Heritage Services,B & Q 1188 CHELMSFORD,72.21,New Equipment,5200,HOME SUPPLY WAREHOUSE STORES
CCC_10000794_7,12/04/2022,"Museums, Theatres & Cultural Services",AMZNMKTPLACE AMAZON.CO AMAZON.CO.UK,13.32,New Equipment,5999,MISCELLANEOUS & SPECIALTY STORES
CCC_10000814_1,12/04/2022,Leisure & Heritage Services,HOMEBASE.CO.UK 03450778888,91.33,New Equipment,5200,HOME SUPPLY WAREHOUSE STORES
CCC_10000794_6,12/04/2022,"Museums, Theatres & Cultural Services",AMZNMKTPLACE AMAZON.CO AMAZON.CO.UK,7.9,New Equipment,5999,MISCELLANEOUS & SPECIALTY STORES
CCC_10000769_2,12/04/2022,Leisure & Heritage Services,FRANK HOWARD TOOLS CHELMSFORD,15.71,Grounds Maintenance Materials,5251,HARDWARE STORES
CCC_10000905_1,12/04/2022,"Museums, Theatres & Cultural Services",AMZNMKTPLACE AMAZON.CO AMAZON.CO.UK,9.94,Museum Exhibits,5999,MISCELLANEOUS & SPECIALTY STORES
CCC_10000924_2,12/04/2022,Leisure & Heritage Services,HTTP://PMSE.OFCOM.ORG. LONDON  SE1,75,New Equipment,8699,MEMBERSHIP ORGANIZATIONS NOT ELSEWHERE CLASSIFIED
CCC_10000920_3,12/04/2022,Parks & Green Spaces,REVIVE| AUTO INNOVATIO RUGBY,245.83,Grounds Maintenance Materials,7531,AUTOMOTIVE BODY REPAIR SHOPS
CCC_10001935_7,12/04/2022,Revenue and Benefit Services,SOUTHEND COUNTY WWW.JUCTIC.GO,316.5,General Expense,9222,FINES
CCC_10000768_6,12/04/2022,Leisure & Heritage Services,AMZNMKTPLACE AMAZON.CO.UK,27.35,New Equipment,5999,MISCELLANEOUS & SPECIALTY STORES
CCC_10000810_5,12/04/2022,Leisure & Heritage Services,TESCO STORE 2330 CHELMSFORD 2,13.2,General Expense,5411,GROCERY STORES OR SUPERMARKETS
CCC_10000804_1,12/04/2022,Leisure & Heritage Services,SP NEUFF ATHLETIC IVYBRIDGE,6.67,General Expense,5941,SPORTING GOODS STORES
CCC_10000771_2,12/04/2022,Operational Services,SCREWFIX DIR LTD CHELMFOR1066,5.82,New Equipment,5211,LUMBER AND BUILDING MATERIALS STORES
CCC_10000770_2,12/04/2022,Parks & Green Spaces,AMZNMKTPLACE AMAZON.CO AMAZON.CO.UK,14.97,New Equipment,5999,MISCELLANEOUS & SPECIALTY STORES
CCC_10000794_4,13/04/2022,"Museums, Theatres & Cultural Services",AMZNMKTPLACE AMAZON.CO AMAZON.CO.UK,8.33,New Equipment,5999,MISCELLANEOUS & SPECIALTY STORES
CCC_10000785_6,13/04/2022,Marketing & Communications Team,PRINT MARKETPLACE 40 2802345,25.44,Printing & Stationary,7338," PRINT SHOPS, QUICK COPY SERVICES OR REPRODUCTION SERVICES "
CCC_10000785_7,13/04/2022,Marketing & Communications Team,PRINT MARKETPLACE 40 2802345,25.44,Printing & Stationary,7338," PRINT SHOPS, QUICK COPY SERVICES OR REPRODUCTION SERVICES "
CCC_10002140_3,13/04/2022,Marketing & Communications Team,QR-CODE-GENERATOR.COM BIELEFELD,129.14,General Expense,5734,COMPUTER SOFTWARE STORES
CCC_10000785_5,13/04/2022,Marketing & Communications Team,PRINT MARKETPLACE 40 2802345,25.44,Printing & Stationary,7338," PRINT SHOPS, QUICK COPY SERVICES OR REPRODUCTION SERVICES "
CCC_10000768_3,13/04/2022,Leisure & Heritage Services,AMZNMKTPLACE AMAZON.CO.UK,11.89,New Equipment,5999,MISCELLANEOUS & SPECIALTY STORES
CCC_10000793_2,13/04/2022,Street Care & Performance,THE WORKS CHELMSFORD,6,Printing & Stationary,5310,DISCOUNT STORES
CCC_10000771_1,13/04/2022,Operational Services,AMZNMKTPLACE AMAZON.CO AMAZON.CO.UK,20.72,New Equipment,5999,MISCELLANEOUS & SPECIALTY STORES
CCC_10000757_1,13/04/2022,Parks & Green Spaces,DVLA VEHICLE TAX 0300 1234321,292.5,Vehicle Tax,9311,TAX PAYMENTS
CCC_10000810_4,13/04/2022,Leisure & Heritage Services,TESCO STORE 2330 CHELMSFORD 2,11.9,General Expense,5411,GROCERY STORES OR SUPERMARKETS
CCC_10000768_5,13/04/2022,Leisure & Heritage Services,ROPESDIRECT.CO.UK GREAT YARMOUT,42.75,New Equipment,5945," HOBBY, TOY OR GAMES STORES "
CCC_10001055_11,13/04/2022,Parks & Green Spaces,HOMEBASE LTD CHELMSFORD,29.17,Vehicle Repairs,5200,HOME SUPPLY WAREHOUSE STORES
CCC_10000794_3,13/04/2022,"Museums, Theatres & Cultural Services",AMZNMKTPLACE AMAZON.CO AMAZON.CO.UK,13.59,New Equipment,5999,MISCELLANEOUS & SPECIALTY STORES
CCC_10000794_2,13/04/2022,"Museums, Theatres & Cultural Services",AMZNMKTPLACE AMAZON.CO AMAZON.CO.UK,7.67,New Equipment,5999,MISCELLANEOUS & SPECIALTY STORES
CCC_10000785_3,13/04/2022,Marketing & Communications Team,PRINT MARKETPLACE 40 2802345,28.68,Printing & Stationary,7338," PRINT SHOPS, QUICK COPY SERVICES OR REPRODUCTION SERVICES "
CCC_10000785_4,13/04/2022,Marketing & Communications Team,PRINT MARKETPLACE 40 2802345,25.44,Printing & Stationary,7338," PRINT SHOPS, QUICK COPY SERVICES OR REPRODUCTION SERVICES "
CCC_10000768_4,13/04/2022,Leisure & Heritage Services,AMZNMKTPLACE AMAZON.CO.UK,5.79,New Equipment,5999,MISCELLANEOUS & SPECIALTY STORES
CCC_10000755_1,13/04/2022,Development Management,AMZNMKTPLACE AMAZON.CO AMAZON.CO.UK,18.98,New Equipment,5999,MISCELLANEOUS & SPECIALTY STORES
CCC_10000798_3,14/04/2022,South Essex Parking Partnership,AMZNMKTPLACE AMAZON.CO.UK,86.64,Clothing & Uniforms,5999,MISCELLANEOUS & SPECIALTY STORES
CCC_10000815_3,14/04/2022,Housing Services,TRAVELODGE GB0000 THAME,254.95,Accommodation,3615,TRAVELODGE
CCC_10000762_5,14/04/2022,Operational Services,AMZNMKTPLACE AMAZON.CO.UK,27.98,New Equipment,5999,MISCELLANEOUS & SPECIALTY STORES
CCC_10000794_1,14/04/2022,"Museums, Theatres & Cultural Services",FUNIGLOBAL REINO UNIDO ZARAGOZA,9.98,New Equipment,5651,FAMILY CLOTHING STORES
CCC_10000783_3,14/04/2022,Marketing & Communications Team,PAYPAL  NETMUMS LTD 35314369001,72,Advertising,8999,PROFESSIONAL SERVICES (NEC)
CCC_10000767_1,14/04/2022,Leisure & Heritage Services,WWW.MAJISIGN.CO.UK 01284 724980,153.7,New Equipment,5085,INDUSTRIAL SUPPLIES (NEC)
CCC_10000819_1,14/04/2022,Leisure & Heritage Services,WM MORRISONS STORE CHELMSFORD,5.1,New Equipment,5411,GROCERY STORES OR SUPERMARKETS
CCC_10000826_2,14/04/2022,Parking & Highways Operations,AMZNBUSINESS 2E8MW2ML4 AMAZON.CO.UK,19.5,Printing & Stationary,5999,MISCELLANEOUS & SPECIALTY STORES
CCC_10000810_3,14/04/2022,Leisure & Heritage Services,AMZNMKTPLACE AMAZON.CO.UK,24.34,Printing & Stationary,5999,MISCELLANEOUS & SPECIALTY STORES
CCC_10000815_4,14/04/2022,Housing Services,COLCHESTER BC ONLINE COLCHESTER,123.96,General Expense,9399,GOVERNMENT SERVICES (NEC) OR FIRE DEPARTMENTS
CCC_10000783_4,14/04/2022,Marketing & Communications Team,PAYPAL  LOUISE FORD 35314369001,80,Advertising,5641,CHILDREN'S AND INFANTS' WEAR STORES
CCC_10000885_2,14/04/2022,Leisure & Heritage Services,AMZNMKTPLACE AMAZON.CO.UK,42.48,New Equipment,5999,MISCELLANEOUS & SPECIALTY STORES
CCC_10000812_1,14/04/2022,"Museums, Theatres & Cultural Services",AMZNMKTPLACE AMAZON.CO.UK,41.62,New Equipment,5999,MISCELLANEOUS & SPECIALTY STORES
CCC_10000759_1,14/04/2022,Marketing & Communications Team,BILLINGSGATE SEAFOOD T LONDON,30,Training Expenses,8249,VOCATIONAL OR TRADE SCHOOLS
CCC_10000764_1,14/04/2022,Marketing & Communications Team,FACEBK  SD8U7EF9K2 FB.ME/ADS,700,Advertising,7311,ADVERTISING SERVICES
CCC_10000785_1,14/04/2022,Marketing & Communications Team,PRINT MARKETPLACE 40 2802345,-37.03,Printing & Stationary,7338," PRINT SHOPS, QUICK COPY SERVICES OR REPRODUCTION SERVICES "
CCC_10000897_3,15/04/2022,"Museums, Theatres & Cultural Services",BOOKER LIMITED CHELMSF CHELMSFORD,87.53,General Expense,5811,CATERERS
CCC_10001090_4,15/04/2022,Leisure & Heritage Services,SPOTIFY P1AE723F0F LONDON,9.99,General Expense,5815," DIGITAL GOODS MEDIA: BOOKS, MOVIES, MUSIC "
CCC_10000762_4,15/04/2022,Operational Services,FACEBK 9VC8UEBQM2 FB.ME/ADS,400,Advertising,7311,ADVERTISING SERVICES
CCC_10000801_2,15/04/2022,Leisure & Heritage Services,AMZNMKTPLACE AMAZON.CO.UK,42.97,New Equipment,5999,MISCELLANEOUS & SPECIALTY STORES
CCC_10002140_2,15/04/2022,Marketing & Communications Team,FACEBK N592REKNP2 FB.ME/ADS,60,Advertising,7311,ADVERTISING SERVICES
CCC_10000818_1,15/04/2022,Leisure & Heritage Services,WWW.HCE-UK.COM INTERNET,199.95,New Equipment,8099,MEDICAL SERVICES AND HEALTH PRACTITIONERS (NEC)
CCC_10000768_2,16/04/2022,Leisure & Heritage Services,AMZNMKTPLACE AMAZON.CO AMAZON.CO.UK,27.48,New Equipment,5999,MISCELLANEOUS & SPECIALTY STORES
CCC_10000800_3,16/04/2022,Parks & Green Spaces,AMZNMKTPLACE AMAZON.CO AMAZON.CO.UK,17.22,General Expense,5999,MISCELLANEOUS & SPECIALTY STORES
CCC_10000756_1,16/04/2022,Operational Services,SAINSBURY'S S/MKT SPRINGFIELD,23.75,Printing & Stationary,5411,GROCERY STORES OR SUPERMARKETS
CCC_10000826_1,17/04/2022,Parking & Highways Operations,AMZNBUSINESS 2E4LU2SU4 AMAZON.CO.UK,39,Printing & Stationary,5999,MISCELLANEOUS & SPECIALTY STORES
CCC_10001005_4,17/04/2022,"Museums, Theatres & Cultural Services",PAYPAL  EBAY UK 35314369001,19.16,General Expense,5311,DEPARTMENT STORES
CCC_10000788_1,17/04/2022,Leisure & Heritage Services,CHURCHILL CATERING CHELMSFORD,17.5,Conference Expenses,5812,RESTAURANTS OR EATING PLACES
CCC_10000768_1,18/04/2022,Leisure & Heritage Services,AMZNMKTPLACE AMAZON.CO.UK,11.62,New Equipment,5999,MISCELLANEOUS & SPECIALTY STORES
CCC_10002062_10,19/04/2022,Marketing & Communications Team,WORDPRESS BTMCRC1NJ1 DUBLIN,10,General Expense,5734,COMPUTER SOFTWARE STORES
CCC_10000769_1,19/04/2022,Leisure & Heritage Services,WWW.SCREWFIX.COM YEOVIL,49.37,Grounds Maintenance Materials,5211,LUMBER AND BUILDING MATERIALS STORES
CCC_10001162_3,19/04/2022,Parks & Green Spaces,TESCO STORE 2330 CHELMSFORD 2,54,Grounds Maintenance Materials,5411,GROCERY STORES OR SUPERMARKETS
CCC_10000955_22,19/04/2022,Operational Services,HALFORDS 0566 CHELMSFORD,39.14,Vehicle Repairs,5940,BICYCLE SHOPS -- SALES AND SERVICE
CCC_10000798_2,19/04/2022,South Essex Parking Partnership,HALFORDS 0803 RAYLEIGH,12.5,Vehicle Repairs,5940,BICYCLE SHOPS -- SALES AND SERVICE
CCC_10000784_1,19/04/2022,Operational Services,AMZNMKTPLACE AMAZON.CO.UK,21.95,New Equipment,5999,MISCELLANEOUS & SPECIALTY STORES
CCC_10000815_2,19/04/2022,Housing Services,BRITISH GAS OTP BRITISH GAS O,19.05,General Expense,4900," ELECTRIC, GAS, SANITARY, TELEPHONE OR WATER UTILITIES "
CCC_10000795_1,19/04/2022,Leisure & Heritage Services,SDS LONDON TRADE CENTR LONDON,21.12,New Equipment,5251,HARDWARE STORES
CCC_10000800_2,19/04/2022,Parks & Green Spaces,AMZNMKTPLACE AMAZON.CO AMAZON.CO.UK,29.16,General Expense,5999,MISCELLANEOUS & SPECIALTY STORES
CCC_10000798_1,19/04/2022,South Essex Parking Partnership,POST OFFICE COUNTER BILLERICAY,2.37,General Expense,9402,POSTAGE STAMPS
CCC_10000804_2,19/04/2022,Leisure & Heritage Services,SP NEUFF ATHLETIC IVYBRIDGE,23.33,New Equipment,5941,SPORTING GOODS STORES
CCC_10000815_1,19/04/2022,Housing Services,BRITISH GAS ONLINE BRITISHGAS.CO,19.05,General Expense,4900," ELECTRIC, GAS, SANITARY, TELEPHONE OR WATER UTILITIES "
CCC_10000803_1,19/04/2022,Leisure & Heritage Services,BOOKER LIMITED CHELMSF CHELMSFORD,206.84,New Equipment,5811,CATERERS
CCC_10000955_20,20/04/2022,Operational Services,DVSA OLCS 0300-123,410,Vehicle Repairs,9399,GOVERNMENT SERVICES (NEC) OR FIRE DEPARTMENTS
CCC_10000848_3,20/04/2022,Operational Services,DVLA VEHICLE TAX 0300 1234321,167.5,Vehicle Tax,9311,TAX PAYMENTS
CCC_10000800_1,20/04/2022,Parks & Green Spaces,WWW.GREEN-TECH.CO.UK INTERNET,173.2,Grounds Maintenance Materials,7399,BUSINESS SERVICES (NEC)
CCC_10000848_2,20/04/2022,Operational Services,DVLA VEHICLE TAX 0300 1234321,302.5,Vehicle Tax,9311,TAX PAYMENTS
CCC_10000782_1,20/04/2022,Leisure & Heritage Services,WWW.SCREWFIX.COM YEOVIL,62.49,New Equipment,5211,LUMBER AND BUILDING MATERIALS STORES
CCC_10000859_5,20/04/2022,"Museums, Theatres & Cultural Services",AMZNMKTPLACE AMAZON.CO.UK,26.17,New Equipment,5999,MISCELLANEOUS & SPECIALTY STORES
CCC_10000955_19,20/04/2022,Operational Services,GSF CAR PARTS SPRINGFIELD,27.95,Vehicle Repairs,5013,MOTOR VEHICLE SUPPLIES AND NEW PARTS
CCC_10000882_25,20/04/2022,South Essex Parking Partnership,SKECHERS CHELMSFORD CHELMSFORD,66.67,Clothing & Uniforms,5661,SHOE STORES
CCC_10000801_1,20/04/2022,Leisure & Heritage Services,AMZNMKTPLACE AMAZON.CO.UK,9.14,New Equipment,5999,MISCELLANEOUS & SPECIALTY STORES
CCC_10000959_18,20/04/2022,Parks & Green Spaces,HOMEBASE LTD CHELMSFORD,21.58,Grounds Maintenance Materials,5200,HOME SUPPLY WAREHOUSE STORES
CCC_10000850_8,20/04/2022,Housing Services,GEN REGISTER OFFICE SOUTHPORT,-7.5,General Expense,9399,GOVERNMENT SERVICES (NEC) OR FIRE DEPARTMENTS
CCC_10000799_3,20/04/2022,Digital Services,FS  TECHSMITH BICESTER OXF,249.62,Employee Subscriptions,5817,DIGITAL GOODS: APPLICATIONS (EXCLUDES GAMES)
CCC_10000955_21,20/04/2022,Operational Services,WWW.FFX.CO.UK HYTHE,55.83,Vehicle Repairs,5211,LUMBER AND BUILDING MATERIALS STORES
CCC_10000792_1,20/04/2022,Housing Services,GEN REGISTER OFFICE SOUTHPORT,14,General Expense,9399,GOVERNMENT SERVICES (NEC) OR FIRE DEPARTMENTS
CCC_10000793_3,20/04/2022,Street Care & Performance,IZ  STARS CARDS HEMEL HEMPSTE,50,Printing & Stationary,5999,MISCELLANEOUS & SPECIALTY STORES
CCC_10000762_2,21/04/2022,Operational Services,ZTL GREEDYVEGAN CHELMSFORD,2,Subsistence,5812,RESTAURANTS OR EATING PLACES
CCC_10000781_2,21/04/2022,Digital Services,GREATERANGLIACOM LONDON,38.1,Public Transport,4112,PASSENGER RAILWAYS
CCC_10000823_1,21/04/2022,Leisure & Heritage Services,FAREWAY TAXIS LIMITED CHELMSFORD,150,Public Transport,4121,TAXICABS OR LIMOUSINES
CCC_10000782_3,21/04/2022,Leisure & Heritage Services,AMZNMKTPLACE AMAZON.CO.UK,78.33,New Equipment,5999,MISCELLANEOUS & SPECIALTY STORES
CCC_10001162_42,21/04/2022,Parks & Green Spaces,AMZNMKTPLACE AMAZON.CO.UK,52.52,General Expense,5999,MISCELLANEOUS & SPECIALTY STORES
CCC_10000997_6,21/04/2022,Leisure & Heritage Services,IZ  GREEDYVEGAN CHELMSFORD,4,General Expense,5812,RESTAURANTS OR EATING PLACES
CCC_10000913_3,21/04/2022,Leisure & Heritage Services,AMZNMKTPLACE AMAZON.CO AMAZON.CO.UK,14.75,New Equipment,5999,MISCELLANEOUS & SPECIALTY STORES
CCC_10000885_1,21/04/2022,Leisure & Heritage Services,AMZ JUNTE LIMITED AMAZON.CO.UK,-42.48,New Equipment,5999,MISCELLANEOUS & SPECIALTY STORES
CCC_10001162_45,21/04/2022,Parks & Green Spaces,PAY.ACCOBRANDS.COM AYLESBURY,48,General Expense,5734,COMPUTER SOFTWARE STORES
CCC_10000762_1,21/04/2022,Operational Services,IZ  GREEDYVEGAN CHELMSFORD,2,Subsistence,5812,RESTAURANTS OR EATING PLACES
CCC_10000997_5,21/04/2022,Leisure & Heritage Services,ZTL GREEDYVEGAN CHELMSFORD,3.33,General Expense,5812,RESTAURANTS OR EATING PLACES
CCC_10000762_3,21/04/2022,Operational Services,ZTL GREEDYVEGAN CHELMSFORD,8,Subsistence,5812,RESTAURANTS OR EATING PLACES
CCC_10000781_3,21/04/2022,Digital Services,GREATERANGLIACOM LONDON,38.1,Public Transport,4112,PASSENGER RAILWAYS
CCC_10000781_1,21/04/2022,Digital Services,AMZNMKTPLACE AMAZON.CO.UK,6.29,Printing & Stationary,5999,MISCELLANEOUS & SPECIALTY STORES
CCC_10000827_1,21/04/2022,Leisure & Heritage Services,WWW.CDPOOL.COM LONDON,199.96,Employee Subscriptions,5733," MUSIC STORES, MUSICAL INSTRUMENTS, PIANOS, SHEET MUSIC "
CCC_10000782_2,21/04/2022,Leisure & Heritage Services,AMZNMKTPLACE AMAZON.CO.UK,74.99,New Equipment,5999,MISCELLANEOUS & SPECIALTY STORES
CCC_10000829_2,21/04/2022,Digital Services,AMZNMKTPLACE AMAZON.CO AMAZON.CO.UK,26.77,Printing & Stationary,5999,MISCELLANEOUS & SPECIALTY STORES
CCC_10000781_5,21/04/2022,Digital Services,GREATERANGLIACOM LONDON,28.6,Public Transport,4112,PASSENGER RAILWAYS
CCC_10000781_4,21/04/2022,Digital Services,GREATERANGLIACOM LONDON,28.6,Public Transport,4112,PASSENGER RAILWAYS
CCC_10000843_6,21/04/2022,Parks & Green Spaces,WATCO UK LTD BIRMINGHAM,147.06,General Expense,5198," PAINTS, VARNISHES AND SUPPLIES "
CCC_10000843_7,21/04/2022,Parks & Green Spaces,B & Q 1188 CHELMSFORD,146.7,General Expense,5200,HOME SUPPLY WAREHOUSE STORES
CCC_10000959_21,21/04/2022,Parks & Green Spaces,AMZNMKTPLACE AMAZON.CO AMAZON.CO.UK,93.27,Grounds Maintenance Materials,5999,MISCELLANEOUS & SPECIALTY STORES
CCC_10000955_18,21/04/2022,Operational Services,SITEBOX LIMITED REDHILL,349.99,New Equipment,5085,INDUSTRIAL SUPPLIES (NEC)
CCC_10000811_1,21/04/2022,Parks & Green Spaces,AMZNMKTPLACE AMAZON.CO.UK,8.37,Printing & Stationary,5999,MISCELLANEOUS & SPECIALTY STORES
CCC_10000782_4,21/04/2022,Leisure & Heritage Services,AMZNMKTPLACE AMAZON.CO.UK,7.76,General Expense,5999,MISCELLANEOUS & SPECIALTY STORES
CCC_10000770_1,21/04/2022,Parks & Green Spaces,AMZNMKTPLACE AMAZON.CO AMAZON.CO.UK,15.98,Printing & Stationary,5999,MISCELLANEOUS & SPECIALTY STORES
CCC_10000810_2,21/04/2022,Leisure & Heritage Services,AMZNBUSINESS 2P4IQ34T4 AMAZON.CO.UK,30.17,Printing & Stationary,5999,MISCELLANEOUS & SPECIALTY STORES
CCC_10000918_8,22/04/2022,Leisure & Heritage Services,AMZNMKTPLACE AMAZON.CO.UK,12.32,General Expense,5999,MISCELLANEOUS & SPECIALTY STORES
CCC_10000924_1,22/04/2022,Leisure & Heritage Services,WWW.OFCOM.ORG.UK LONDON SE1,75,New Equipment,8699,MEMBERSHIP ORGANIZATIONS NOT ELSEWHERE CLASSIFIED
CCC_10000829_1,22/04/2022,Digital Services,AMZNMKTPLACE AMAZON.CO.UK,11.63,Printing & Stationary,5999,MISCELLANEOUS & SPECIALTY STORES
CCC_10000892_1,22/04/2022,Leisure & Heritage Services,TIMPSON LTD CHELMSFORD,36,New Equipment,5999,MISCELLANEOUS & SPECIALTY STORES
CCC_10000886_1,22/04/2022,Leisure & Heritage Services,AMZNMKTPLACE AMAZON.CO.UK,38.32,New Equipment,5999,MISCELLANEOUS & SPECIALTY STORES
CCC_10001935_11,22/04/2022,Revenue and Benefit Services,ESSEX COUNTY COUNCI EC CHELMSFORD,22,General Expense,9399,GOVERNMENT SERVICES (NEC) OR FIRE DEPARTMENTS
CCC_10000907_6,22/04/2022,Operational Services,AMZNMKTPLACE AMAZON.CO.UK,8.32,New Equipment,5999,MISCELLANEOUS & SPECIALTY STORES
CCC_10000829_3,22/04/2022,Digital Services,PAYPAL  AOLISITEELE 4029357733,26.65,New Equipment,5732,ELECTRONIC SALES
CCC_10000855_1,22/04/2022,Leisure & Heritage Services,WWW.THEWATERDELIVERYCO INTERNET,74,New Equipment,5499,MISC FOOD STORES - SPECIALTY MARKETS & CONVENIENCE
CCC_10001162_33,22/04/2022,Parks & Green Spaces,D. BYFORD & SONS COLCHESTER CO,311.04,General Expense,5193," FLORIST SUPPLIES, NURSERY STOCK AND FLOWERS "
CCC_10000853_12,22/04/2022,Leisure & Heritage Services,TESCO STORE 2330 CHELMSFORD 2,23.5,General Expense,5411,GROCERY STORES OR SUPERMARKETS
CCC_10001935_8,22/04/2022,Revenue and Benefit Services,WWW.GOV.UK C@HMCTS.GSI.G,7.5,General Expense,8999,PROFESSIONAL SERVICES (NEC)
CCC_10000955_17,22/04/2022,Operational Services,WWW.HGVDIRECT.CO.UK INTERNET,279.3,Vehicle Repairs,5533," AUTOMOTIVE PARTS, ACCESSORIES STORES "
CCC_10000850_7,22/04/2022,Housing Services,HOUSING REVIEWS LEEDS,120,General Expense,8999,PROFESSIONAL SERVICES (NEC)
CCC_10000872_4,22/04/2022,"Museums, Theatres & Cultural Services",AMZNMKTPLACE AMAZON.CO AMAZON.CO.UK,3.75,Printing & Stationary,5999,MISCELLANEOUS & SPECIALTY STORES
CCC_10000882_24,22/04/2022,South Essex Parking Partnership,HOME BARGAINS BASILDON BASILDON,3.04,General Expense,5251,HARDWARE STORES
CCC_10000907_4,22/04/2022,Operational Services,AMZNMKTPLACE AMAZON.CO.UK,9.98,New Equipment,5999,MISCELLANEOUS & SPECIALTY STORES
CCC_10001080_11,22/04/2022,Leisure & Heritage Services,WWW.EELGA.GOV.UK BURY ST EDMUN,178.8,Training Expenses,8699,MEMBERSHIP ORGANIZATIONS NOT ELSEWHERE CLASSIFIED
CCC_10000876_2,22/04/2022,"Museums, Theatres & Cultural Services",ESSEX CC CARD PAYMENT CHELMSFORD,33.33,Training Expenses,9399,GOVERNMENT SERVICES (NEC) OR FIRE DEPARTMENTS
CCC_10000907_3,22/04/2022,Operational Services,AMZNMKTPLACE AMAZON.CO.UK,12.47,New Equipment,5999,MISCELLANEOUS & SPECIALTY STORES
CCC_10000810_1,22/04/2022,Leisure & Heritage Services,AMZNMKTPLACE AMAZON.CO.UK,26.15,Printing & Stationary,5999,MISCELLANEOUS & SPECIALTY STORES
CCC_10000893_1,22/04/2022,Leisure & Heritage Services,CURRYS CHELMSFORD CHELMSFORD,34.99,New Equipment,5732,ELECTRONIC SALES
CCC_10000920_4,22/04/2022,Parks & Green Spaces,AMZNMKTPLACE AMAZON.CO.UK,28.45,Grounds Maintenance Materials,5999,MISCELLANEOUS & SPECIALTY STORES
CCC_10000847_2,23/04/2022,"Procurement, Risk and Insurance",THETRAINLINE.COM +443332022222,106.54,Public Transport,4112,PASSENGER RAILWAYS
CCC_10000830_3,23/04/2022,Digital Services,AMZNMKTPLACE AMAZON.CO AMAZON.CO.UK,48.7,New Equipment,5999,MISCELLANEOUS & SPECIALTY STORES
CCC_10000894_3,23/04/2022,Legal & Democratic Services,TIMPSON LTD CHELMSFORD,120,General Expense,5999,MISCELLANEOUS & SPECIALTY STORES
CCC_10000882_23,23/04/2022,South Essex Parking Partnership,AMZNBUSINESS 2P2O25TK4 AMAZON.CO.UK,37.77,New Equipment,5999,MISCELLANEOUS & SPECIALTY STORES
CCC_10000872_3,23/04/2022,"Museums, Theatres & Cultural Services",AMZNMKTPLACE AMAZON.CO AMAZON.CO.UK,2.42,Printing & Stationary,5999,MISCELLANEOUS & SPECIALTY STORES
CCC_10000891_2,23/04/2022,Leisure & Heritage Services,WWW.SCREWFIX.COM YEOVIL,17.29,New Equipment,5211,LUMBER AND BUILDING MATERIALS STORES
CCC_10001080_10,23/04/2022,Leisure & Heritage Services,TENTERDEN ANTIQUE TENTERDEN,55,New Equipment,5932,ANTIQUE SHOPS
CCC_10000918_6,24/04/2022,Leisure & Heritage Services,AMZNMKTPLACE AMAZON.CO.UK,44.12,New Equipment,5999,MISCELLANEOUS & SPECIALTY STORES
CCC_10000918_7,24/04/2022,Leisure & Heritage Services,AMZNMKTPLACE AMAZON.CO.UK,27.71,New Equipment,5999,MISCELLANEOUS & SPECIALTY STORES
CCC_10000872_1,24/04/2022,"Museums, Theatres & Cultural Services",AMZNMKTPLACE AMAZON.CO AMAZON.CO.UK,33.28,Printing & Stationary,5999,MISCELLANEOUS & SPECIALTY STORES
CCC_10000928_1,24/04/2022,"Museums, Theatres & Cultural Services",AMZNMKTPLACE AMAZON.CO AMAZON.CO.UK,28.33,Printing & Stationary,5999,MISCELLANEOUS & SPECIALTY STORES
CCC_10000897_4,24/04/2022,"Museums, Theatres & Cultural Services",WWW.SCREWFIX.COM YEOVIL,40.33,General Expense,5211,LUMBER AND BUILDING MATERIALS STORES
CCC_10000928_2,24/04/2022,"Museums, Theatres & Cultural Services",AMZNMKTPLACE AMAZON.CO AMAZON.CO.UK,5.37,Printing & Stationary,5999,MISCELLANEOUS & SPECIALTY STORES
CCC_10000872_2,24/04/2022,"Museums, Theatres & Cultural Services",AMZNMKTPLACE AMAZON.CO AMAZON.CO.UK,2.05,Printing & Stationary,5999,MISCELLANEOUS & SPECIALTY STORES
CCC_10000853_11,25/04/2022,Leisure & Heritage Services,TESCO STORE 2310 COLCHESTER 2,7,General Expense,5411,GROCERY STORES OR SUPERMARKETS
CCC_10000843_4,25/04/2022,Parks & Green Spaces,SAINSBURYS S/MKTS CHELMSFORD 41,12.6,General Expense,5411,GROCERY STORES OR SUPERMARKETS
CCC_10001012_11,25/04/2022,Digital Services,ARGOS LTD INTERNET,58.32,General Expense,5310,DISCOUNT STORES
CCC_10001162_32,25/04/2022,Parks & Green Spaces,TESCO STORE 2330 CHELMSFORD 2,84,General Expense,5411,GROCERY STORES OR SUPERMARKETS
CCC_10001160_14,25/04/2022,Housing Services,TRAVELODGE GB0000 THAME,47.58,General Expense,3615,TRAVELODGE
CCC_10000844_9,25/04/2022,Public Health & Protection Services,WWW.EELGA.GOV.UK BURY ST EDMUN,149,Conference Expenses,8699,MEMBERSHIP ORGANIZATIONS NOT ELSEWHERE CLASSIFIED
CCC_10000843_5,25/04/2022,Parks & Green Spaces,TESCO-STORES 6724 CHELMSFORD,1.95,General Expense,5411,GROCERY STORES OR SUPERMARKETS
CCC_10002098_9,25/04/2022,Building Services,TESCO STORES 5408 CHELMSFORD,12,General Expense,5411,GROCERY STORES OR SUPERMARKETS
CCC_10000882_22,25/04/2022,South Essex Parking Partnership,AMZ FLUKEY LLC AMAZON.CO.UK,-127.56,Clothing & Uniforms,5999,MISCELLANEOUS & SPECIALTY STORES
CCC_10000918_5,25/04/2022,Leisure & Heritage Services,AMZNMKTPLACE AMAZON.CO.UK,4.07,New Equipment,5999,MISCELLANEOUS & SPECIALTY STORES
CCC_10000846_3,25/04/2022,Development Management,AMZNMKTPLACE AMAZON.CO.UK,7.31,Printing & Stationary,5999,MISCELLANEOUS & SPECIALTY STORES
CCC_10001002_3,25/04/2022,Corporate Property Services,CHELMSFORD.GOV.UK ESSEX,2390,General Expense,9399,GOVERNMENT SERVICES (NEC) OR FIRE DEPARTMENTS
CCC_10001160_15,25/04/2022,Housing Services,TRAVELODGE GB0000 THAME,44.18,General Expense,3615,TRAVELODGE
CCC_10000890_1,26/04/2022,Leisure & Heritage Services,ONEDIRECT ST ESTEVE,128,New Equipment,5965,COMBINATION CATALOG AND RETAIL MERCHANT
CCC_10001055_10,26/04/2022,Parks & Green Spaces,EURO CAR PARTS TAMWORTH,171.2,Vehicle Repairs,5533," AUTOMOTIVE PARTS, ACCESSORIES STORES "
CCC_10000922_5,26/04/2022,Parking & Highways Operations,AMZNMKTPLACE AMAZON.CO AMAZON.CO.UK,67.5,Printing & Stationary,5999,MISCELLANEOUS & SPECIALTY STORES
CCC_10000843_2,26/04/2022,Parks & Green Spaces,HOMEBASE LTD CHELMSFORD,32,General Expense,5200,HOME SUPPLY WAREHOUSE STORES
CCC_10000880_8,26/04/2022,Operational Services,AMZNMKTPLACE AMAZON.CO.UK,24.98,New Equipment,5999,MISCELLANEOUS & SPECIALTY STORES
CCC_10000830_2,26/04/2022,Digital Services,AMZNBUSINESS 2P53B45Q4 LUXEMBOURG L,24.98,New Equipment,5999,MISCELLANEOUS & SPECIALTY STORES
CCC_10001027_3,26/04/2022,"Museums, Theatres & Cultural Services",HOBBYCRAFT CHELMSFORD,7,New Equipment,5970,CRAFT OR ARTIST'S SUPPLY SHOPS
CCC_10000843_3,26/04/2022,Parks & Green Spaces,TESCO-STORES 6724 CHELMSFORD,3.85,General Expense,5411,GROCERY STORES OR SUPERMARKETS
CCC_10000891_1,26/04/2022,Leisure & Heritage Services,WWW.SCREWFIX.COM YEOVIL,18.32,New Equipment,5211,LUMBER AND BUILDING MATERIALS STORES
CCC_10000850_6,26/04/2022,Housing Services,TRAVELODGE GB0000 THAME,73.99,Accommodation,3615,TRAVELODGE
CCC_10000882_21,26/04/2022,South Essex Parking Partnership,BIGCLOTHING4U LIMITED SCUNTHORPE,29.98,Clothing & Uniforms,5999,MISCELLANEOUS & SPECIALTY STORES
CCC_10000914_3,26/04/2022,Leisure & Heritage Services,ROTACLOUD YORK,58.8,General Expense,5734,COMPUTER SOFTWARE STORES
CCC_10000917_2,26/04/2022,Parks & Green Spaces,DISPOSABLES &CATER CHELMSFORD,129.6,General Expense,5072," HARDWARE, PLUMBING, HEATING EQUIPMENT AND SUPPLIES "
CCC_10000959_13,27/04/2022,Parks & Green Spaces,HOMEBASE LTD CHELMSFORD,53.96,Grounds Maintenance Materials,5200,HOME SUPPLY WAREHOUSE STORES
CCC_10000944_2,27/04/2022,Marketing & Communications Team,CANVA  I03404-0611478 CAMDEN,32.87,Advertising,7221,PHOTOGRAPHIC STUDIOS
CCC_10001080_9,27/04/2022,Leisure & Heritage Services,SE OTFORD TO OTFORD-TN14,31.3,Public Transport,4112,PASSENGER RAILWAYS
CCC_10000850_5,27/04/2022,Housing Services,LONDON BOROUGH OF HAVE ESSEX,16,General Expense,9399,GOVERNMENT SERVICES (NEC) OR FIRE DEPARTMENTS
CCC_10000860_2,28/04/2022,Public Health & Protection Services,AMZNMKTPLACE AMAZON.CO.UK,110.82,New Equipment,5999,MISCELLANEOUS & SPECIALTY STORES
CCC_10000922_3,28/04/2022,Parking & Highways Operations,FR JONES AND SON LONDON,287.5,Printing & Stationary,5251,HARDWARE STORES
CCC_10000959_19,28/04/2022,Parks & Green Spaces,PAYPAL  JOHNHANLONC 35314369001,38.01,Grounds Maintenance Materials,5085,INDUSTRIAL SUPPLIES (NEC)
CCC_10000922_2,28/04/2022,Parking & Highways Operations,FR JONES AND SON LONDON,287.5,Printing & Stationary,5251,HARDWARE STORES
CCC_10000920_5,28/04/2022,Parks & Green Spaces,HOMEBASE LTD CHELMSFORD,36.25,Grounds Maintenance Materials,5200,HOME SUPPLY WAREHOUSE STORES
CCC_10000867_1,28/04/2022,"Museums, Theatres & Cultural Services",POST OFFICE COUNTER CHELMSFORD,7.65,Printing & Stationary,9402,POSTAGE STAMPS
CCC_10000880_7,28/04/2022,Operational Services,FACEBK XB4L5EBRM2 FB.ME/ADS,253.67,Advertising,7311,ADVERTISING SERVICES
CCC_10000912_1,28/04/2022,Legal & Democratic Services,AMZNMKTPLACE AMAZON.CO AMAZON.CO.UK,89.98,Printing & Stationary,5999,MISCELLANEOUS & SPECIALTY STORES
CCC_10001012_10,28/04/2022,Digital Services,ARGOS LTD INTERNET,83.32,General Expense,5310,DISCOUNT STORES
CCC_10001055_9,28/04/2022,Parks & Green Spaces,ERNEST DOE & SONS MALDON,123.18,Grounds Maintenance Materials,5599,AUTOMOTIVE DEALERS
CCC_10000922_4,28/04/2022,Parking & Highways Operations,FR JONES AND SON LONDON,-345,Printing & Stationary,5251,HARDWARE STORES
CCC_10000882_20,28/04/2022,South Essex Parking Partnership,SP PATROLSTORE REIAGTE,114.15,Clothing & Uniforms,5399,GENERAL MERCHANDISE OR CONVENIENCE FOOD STORES
CCC_10000907_1,28/04/2022,Operational Services,AMZNMKTPLACE AMAZON.CO.UK,57.46,New Equipment,5999,MISCELLANEOUS & SPECIALTY STORES
CCC_10000842_1,28/04/2022,Operational Services,10TO8.COM CAMBRIDGE,50,General Expense,5817,DIGITAL GOODS: APPLICATIONS (EXCLUDES GAMES)
CCC_10000877_2,28/04/2022,Street Care & Performance,WWW.VENESTA.CO.UK 01782277291,94.72,New Equipment,5712," FURNITURE, HOME FURNISHINGS & EQUIP STORES EXCL APPLIANCES "
CCC_10000836_1,28/04/2022,Marketing & Communications Team,GREATERANGLIACOM LONDON,164.2,Public Transport,4112,PASSENGER RAILWAYS
CCC_10000918_4,28/04/2022,Leisure & Heritage Services,AMZNMKTPLACE AMAZON.CO.UK,8.5,General Expense,5999,MISCELLANEOUS & SPECIALTY STORES
CCC_10000850_4,28/04/2022,Housing Services,LONDON BOROUGH OF HAVE ESSEX,16,General Expense,9399,GOVERNMENT SERVICES (NEC) OR FIRE DEPARTMENTS
CCC_10002098_10,29/04/2022,Building Services,AMZNMKTPLACE AMAZON.CO.UK,28.35,General Expense,5999,MISCELLANEOUS & SPECIALTY STORES
CCC_10001162_31,29/04/2022,Parks & Green Spaces,D. BYFORD & SONS COLCHESTER CO,35.4,General Expense,5193," FLORIST SUPPLIES, NURSERY STOCK AND FLOWERS "
CCC_10000858_1,29/04/2022,Leisure & Heritage Services,WM MORRISONS STORE CHELMSFORD,17.23,General Expense,5411,GROCERY STORES OR SUPERMARKETS
CCC_10000904_1,29/04/2022,"Museums, Theatres & Cultural Services",AP LAMP DIS CM1 3AE,38.4,General Expense,5999,MISCELLANEOUS & SPECIALTY STORES
CCC_10001080_8,29/04/2022,Leisure & Heritage Services,PRINTED EASY LETCHWORTH GA,78,Printing & Stationary,2741,MISCELLANEOUS PUBLISHING AND PRINTING
CCC_10000853_10,29/04/2022,Leisure & Heritage Services,TESCO STORE 2330 CHELMSFORD 2,10.1,General Expense,5411,GROCERY STORES OR SUPERMARKETS
CCC_10001160_17,29/04/2022,Housing Services,E.ON NEXT COVENTRY,39.03,General Expense,4900," ELECTRIC, GAS, SANITARY, TELEPHONE OR WATER UTILITIES "
CCC_10000843_1,29/04/2022,Parks & Green Spaces,ASDA SUPERSTORE S WOODHAM FER,31.54,General Expense,5411,GROCERY STORES OR SUPERMARKETS
CCC_10001607_1,29/04/2022,Parking & Highways Operations,TIMPSON LTD CHELMSFORD,50,General Expense,5999,MISCELLANEOUS & SPECIALTY STORES
CCC_10000851_5,29/04/2022,Public Health & Protection Services,AMZNMKTPLACE AMAZON.CO.UK,29.12,New Equipment,5999,MISCELLANEOUS & SPECIALTY STORES
CCC_10001368_8,29/04/2022,Marketing & Communications Team,FACEBK LJ6W3FKNP2 FB.ME/ADS,24.26,Advertising,7311,ADVERTISING SERVICES
CCC_10000876_1,29/04/2022,"Museums, Theatres & Cultural Services",ESSEX CC CARD PAYMENT CHELMSFORD,41.67,Training Expenses,9399,GOVERNMENT SERVICES (NEC) OR FIRE DEPARTMENTS
CCC_10000919_6,29/04/2022,Public Health & Protection Services,B&M 560 - CHELMSFORD CHELMSFORD,16.67,New Equipment,5399,GENERAL MERCHANDISE OR CONVENIENCE FOOD STORES
CCC_10000860_1,29/04/2022,Public Health & Protection Services,JUST EAT LONDON,108.38,General Expense,5814,FAST FOOD RESTAURANTS
CCC_10000878_1,30/04/2022,Parking & Highways Operations,SAINSBURY'S S/MKT BRAINTREE,25.32,New Equipment,5411,GROCERY STORES OR SUPERMARKETS
CCC_10000889_1,30/04/2022,Leisure & Heritage Services,WM MORRISONS STORE CHELMSFORD,5.16,New Equipment,5411,GROCERY STORES OR SUPERMARKETS
CCC_10000897_6,30/04/2022,"Museums, Theatres & Cultural Services",CHANDLER MATERIALS CHELMSFORD,7.14,General Expense,5211,LUMBER AND BUILDING MATERIALS STORES
CCC_10000919_5,30/04/2022,Public Health & Protection Services,AMAZON.CO.UK 2P0BG6UR4 AMAZON.CO.UK,19.61,Clothing & Uniforms,5969,DIRECT MARKETERS (NEC)
CCC_10000945_3,30/04/2022,Marketing & Communications Team,FACEBK XUXSQCBZ52 FB.ME/ADS,120.31,Advertising,7311,ADVERTISING SERVICES
CCC_10000897_5,30/04/2022,"Museums, Theatres & Cultural Services",CHANDLER MATERIALS CHELMSFORD,72.03,General Expense,5211,LUMBER AND BUILDING MATERIALS STORES
CCC_10000875_3,01/05/2022,Marketing & Communications Team,FACEBK  88V58ET9H2 FB.ME/ADS,50,Advertising,7311,ADVERTISING SERVICES
CCC_10000877_1,01/05/2022,Street Care & Performance,AMZN MKTP UK 2P4H09I74 800-279-6620,7.62,New Equipment,5942,BOOK STORES
CCC_10000882_19,01/05/2022,South Essex Parking Partnership,AMZNMKTPLACE AMAZON.CO.UK,39.07,New Equipment,5999,MISCELLANEOUS & SPECIALTY STORES
CCC_10000875_2,01/05/2022,Marketing & Communications Team,FACEBK  MC8FCF3AK2 FB.ME/ADS,424.56,Advertising,7311,ADVERTISING SERVICES
CCC_10000897_7,01/05/2022,"Museums, Theatres & Cultural Services",AMZNMKTPLACE AMAZON.CO.UK,24.27,General Expense,5999,MISCELLANEOUS & SPECIALTY STORES
CCC_10001000_1,02/05/2022,Leisure & Heritage Services,AMZNMKTPLACE AMAZON.CO AMAZON.CO.UK,9.24,New Equipment,5999,MISCELLANEOUS & SPECIALTY STORES
CCC_10000897_8,02/05/2022,"Museums, Theatres & Cultural Services",AMZNBUSINESS 2D1KW2O34 AMAZON.CO.UK,19.97,General Expense,5999,MISCELLANEOUS & SPECIALTY STORES
CCC_10000846_2,02/05/2022,Development Management,AMZNMKTPLACE AMAZON.CO.UK,87.17,Printing & Stationary,5999,MISCELLANEOUS & SPECIALTY STORES
CCC_10000948_3,02/05/2022,Marketing & Communications Team,GOOGLE ADS9290904130 DUBLIN,127.04,Advertising,7311,ADVERTISING SERVICES
CCC_10000926_1,03/05/2022,Human Resources,PROTRAININGS COLCHESTER,139.65,Training Expenses,8299,SCHOOLS AND EDUCATIONAL SERVICES (NEC)
CCC_10000862_1,03/05/2022,"Museums, Theatres & Cultural Services",AMZNMKTPLACE AMAZON.CO.UK,33.5,Museum Exhibits,5999,MISCELLANEOUS & SPECIALTY STORES
CCC_10000919_7,03/05/2022,Public Health & Protection Services,AMZ AMAZON.CO.UK AMAZON.CO.UK,-16.34,Clothing & Uniforms,5969,DIRECT MARKETERS (NEC)
CCC_10000903_1,03/05/2022,"Museums, Theatres & Cultural Services",TESCO STORE 2330 CHELMSFORD 2,11.17,General Expense,5411,GROCERY STORES OR SUPERMARKETS
CCC_10000882_18,03/05/2022,South Essex Parking Partnership,HALFORDS 0803 RAYLEIGH,35,New Equipment,5940,BICYCLE SHOPS -- SALES AND SERVICE
CCC_10001162_30,03/05/2022,Parks & Green Spaces,TESCO STORE 2330 CHELMSFORD 2,56,General Expense,5411,GROCERY STORES OR SUPERMARKETS
CCC_10000835_3,03/05/2022,Marketing & Communications Team,PAYPAL  STAFFBENEFI 35314369001,69.95,Advertising,4816,COMPUTER NETWORK/INFO SVCS
CCC_10000919_3,03/05/2022,Public Health & Protection Services,ARGOS LTD INTERNET,69.12,New Equipment,5310,DISCOUNT STORES
CCC_10000882_14,03/05/2022,South Essex Parking Partnership,AMZNMKTPLACE AMAZON.CO.UK,98.87,Clothing & Uniforms,5999,MISCELLANEOUS & SPECIALTY STORES
CCC_10000882_15,03/05/2022,South Essex Parking Partnership,POLICE SUPPLIES KIRKBY,293.32,Clothing & Uniforms,5699,APPAREL AND ACCESSORY SHOPS -- MISCELLANEOUS
CCC_10002097_7,03/05/2022,Building Services,TESCO STORES 5408 CHELMSFORD,3,General Expense,5411,GROCERY STORES OR SUPERMARKETS
CCC_10000921_5,03/05/2022,Parks & Green Spaces,WWW.SCREWFIX.COM YEOVIL,50.58,Grounds Maintenance Materials,5211,LUMBER AND BUILDING MATERIALS STORES
CCC_10000882_17,03/05/2022,South Essex Parking Partnership,SAVERS HEALTH & BEAUTY ESSEX,6.65,New Equipment,5912,PHARMCIES OR DRUG STORES
CCC_10000927_3,03/05/2022,Accountancy Services,INSAFE INTERNATIONAL L TUNBRIDGE WEL,144,General Expense,5251,HARDWARE STORES
CCC_10000848_1,03/05/2022,Operational Services,POST OFFICE COUNTER CHELMSFORD,297.5,Vehicle Tax,9402,POSTAGE STAMPS
CCC_10000880_6,03/05/2022,Operational Services,SP AZUMAOUTDOOR IRVINE,139.98,New Equipment,5734,COMPUTER SOFTWARE STORES
CCC_10000882_16,03/05/2022,South Essex Parking Partnership,POLICE SUPPLIES KIRKBY,282.98,Clothing & Uniforms,5699,APPAREL AND ACCESSORY SHOPS -- MISCELLANEOUS
CCC_10000853_9,03/05/2022,Leisure & Heritage Services,SOFTFLOW ESSEX CHELMSFORD E,125,General Expense,5074,PLUMBING AND HEATING EQUIPMENT AND SUPPLIES
CCC_10001013_1,03/05/2022,Development Management,SP BATH PUBLISHING L BATH,198,Training Expenses,5734,COMPUTER SOFTWARE STORES
CCC_10000916_7,03/05/2022,Parks & Green Spaces,TESCO-STORES 6724 CHELMSFORD,1.95,General Expense,5411,GROCERY STORES OR SUPERMARKETS
CCC_10000921_4,03/05/2022,Parks & Green Spaces,AMZNMKTPLACE AMAZON.CO.UK,32.37,Grounds Maintenance Materials,5999,MISCELLANEOUS & SPECIALTY STORES
CCC_10000929_1,04/05/2022,Leisure & Heritage Services,AMZNMKTPLACE AMAZON.CO.UK,4.36,General Expense,5999,MISCELLANEOUS & SPECIALTY STORES
CCC_10000897_9,04/05/2022,"Museums, Theatres & Cultural Services",AMZNMKTPLACE AMAZON.CO AMAZON.CO.UK,23.32,General Expense,5999,MISCELLANEOUS & SPECIALTY STORES
CCC_10000859_8,04/05/2022,"Museums, Theatres & Cultural Services",MBS WHOLESALE LTD HARROW MIDDLE,141.78,New Equipment,5046,COMMERCIAL EQUIPMENT (NEC)
CCC_10002097_6,04/05/2022,Building Services,KINGDOM COFFEE READING,132.55,General Expense,5499,MISC FOOD STORES - SPECIALTY MARKETS & CONVENIENCE
CCC_10000874_2,04/05/2022,Revenue and Benefit Services,AMZNMKTPLACE AMAZON.CO.UK,5,Printing & Stationary,5999,MISCELLANEOUS & SPECIALTY STORES
CCC_10000998_1,04/05/2022,"Procurement, Risk and Insurance",A.C.E. LONDON,48.17,General Expense,8699,MEMBERSHIP ORGANIZATIONS NOT ELSEWHERE CLASSIFIED
CCC_10000879_2,04/05/2022,Operational Services,NCP PCN PAYMENT ONLINE,60,General Expense,7523,AUTOMOBILE PARKING OR PARKING LOTS
CCC_10000882_12,04/05/2022,South Essex Parking Partnership,POLICE SUPPLIES KIRKBY,120.82,Clothing & Uniforms,5699,APPAREL AND ACCESSORY SHOPS -- MISCELLANEOUS
CCC_10000874_3,04/05/2022,Revenue and Benefit Services,AMZNMKTPLACE AMAZON.CO.UK,3.32,Printing & Stationary,5999,MISCELLANEOUS & SPECIALTY STORES
CCC_10000922_1,04/05/2022,Parking & Highways Operations,AMZNMKTPLACE AMAZON.CO.UK,18.29,Printing & Stationary,5999,MISCELLANEOUS & SPECIALTY STORES
CCC_10001927_36,04/05/2022,Public Health & Protection Services,THETRAINLINE.COM +443332022222,40.15,Public Transport,4112,PASSENGER RAILWAYS
CCC_10001080_7,04/05/2022,Leisure & Heritage Services,TRAINLINE.COM LONDON,59.51,Public Transport,4112,PASSENGER RAILWAYS
CCC_10000997_4,04/05/2022,Leisure & Heritage Services,ZTL GREEDYVEGAN CHELMSFORD,-4,General Expense,5812,RESTAURANTS OR EATING PLACES
CCC_10000844_8,04/05/2022,Public Health & Protection Services,AMZNMKTPLACE AMAZON.CO.UK,12.92,Printing & Stationary,5999,MISCELLANEOUS & SPECIALTY STORES
CCC_10000882_13,04/05/2022,South Essex Parking Partnership,HASANI HAND CAR WASH L BASILDON,18.33,General Expense,7542,CAR WASHES
CCC_10000875_1,04/05/2022,Marketing & Communications Team,PAYPAL  TRG ARTS 35314369001,74.35,Training Expenses,7392," MANAGEMENT, PUBLIC RELATIONS OR CONSULTING SERVICES "
CCC_10001368_7,05/05/2022,Marketing & Communications Team,WIX.COM 994539753 97235454942,66.62,General Expense,5968,CONTINUITY/SUBSCRIPTION MERCHANT
CCC_10000895_1,05/05/2022,Leisure & Heritage Services,FAREWAY TAXIS LIMITED CHELMSFORD,90,Public Transport,4121,TAXICABS OR LIMOUSINES
CCC_10000851_4,05/05/2022,Public Health & Protection Services,EBAY O 18-08589-39450 LONDON,198,New Equipment,5311,DEPARTMENT STORES
CCC_10000859_9,05/05/2022,"Museums, Theatres & Cultural Services",ROTACLOUD YORK,48,Employee Subscriptions,5734,COMPUTER SOFTWARE STORES
CCC_10000855_7,05/05/2022,Leisure & Heritage Services,ESSEX SUPPLIES (UK) LT SOUTHEND-ON-S,79.8,New Equipment,2842," SPECIALTY CLEANING, POLISHING AND SANITATION PREPS "
CCC_10000880_5,05/05/2022,Operational Services,SQ  MONARCH SPRINGFIELD,15.5,Clothing & Uniforms,7230,BARBER OR BEAUTY SHOPS
CCC_10001062_5,05/05/2022,Development Management,BUILT ENVIRONMENT NETW LEEDS,607.5,Training Expenses,7399,BUSINESS SERVICES (NEC)
CCC_10001080_6,05/05/2022,Leisure & Heritage Services,THE STABLE CAFE CATERING,12.62,General Expense,5812,RESTAURANTS OR EATING PLACES
CCC_10001062_4,05/05/2022,Development Management,TRAVELODGE GB0000 THAME,242.71,Accommodation,3615,TRAVELODGE
CCC_10000846_1,05/05/2022,Development Management,PRINT MARKETPLACE 40 2802345,18.71,Printing & Stationary,7338," PRINT SHOPS, QUICK COPY SERVICES OR REPRODUCTION SERVICES "
CCC_10000758_2,05/05/2022,"Museums, Theatres & Cultural Services",THE HIVE CAFE CHELMSFORD,5.19,Training Expenses,5812,RESTAURANTS OR EATING PLACES
CCC_10000895_2,05/05/2022,Leisure & Heritage Services,FAREWAY TAXIS LIMITED CHELMSFORD,80,Public Transport,4121,TAXICABS OR LIMOUSINES
CCC_10000959_4,05/05/2022,Parks & Green Spaces,CHANDLER MATERIALS CHELMSFORD,140.8,Grounds Maintenance Materials,5211,LUMBER AND BUILDING MATERIALS STORES
CCC_10000874_1,05/05/2022,Revenue and Benefit Services,AMZNMKTPLACE AMAZON.CO.UK,29.07,Printing & Stationary,5999,MISCELLANEOUS & SPECIALTY STORES
CCC_10000855_2,05/05/2022,Leisure & Heritage Services,WWW.CALCULATORSDIRECT. INTERNET,46.2,Printing & Stationary,5943," STATIONERY STORES, OFFICE & SCHOOL SUPPLY STORES "
CCC_10000959_5,05/05/2022,Parks & Green Spaces,CHANDLER MATERIALS CHELMSFORD,44.32,Grounds Maintenance Materials,5211,LUMBER AND BUILDING MATERIALS STORES
CCC_10000902_1,05/05/2022,"Museums, Theatres & Cultural Services",FRANK HOWARD TOOLS & F BRAINTREE,149,New Equipment,5251,HARDWARE STORES
CCC_10000841_4,06/05/2022,Human Resources,CIMSPA LOUGHBOROUGH,140,Employee Subscriptions,8699,MEMBERSHIP ORGANIZATIONS NOT ELSEWHERE CLASSIFIED
CCC_10002074_1,06/05/2022,Parking & Highways Operations,TIMPSON LTD CHELMSFORD,30,General Expense,5999,MISCELLANEOUS & SPECIALTY STORES
CCC_10000897_11,06/05/2022,"Museums, Theatres & Cultural Services",SUBWAY 35041CHEMSFORD CHELMSFORD,36.67,General Expense,5814,FAST FOOD RESTAURANTS
CCC_10000888_1,06/05/2022,Leisure & Heritage Services,PREMIER FARNELL PRESTON,12.41,New Equipment,5065,ELECTRICAL PARTS AND EQUIPMENT
CCC_10001935_6,06/05/2022,Revenue and Benefit Services,SOUTHEND COUNTY WWW.JUCTIC.GO,163,General Expense,9222,FINES
CCC_10000910_2,06/05/2022,Legal & Democratic Services,AMZNMKTPLACE AMAZON.CO.UK,32.97,Printing & Stationary,5999,MISCELLANEOUS & SPECIALTY STORES
CCC_10000906_1,06/05/2022,Parks & Green Spaces,AMZNMKTPLACE AMAZON.CO.UK,43.21,New Equipment,5999,MISCELLANEOUS & SPECIALTY STORES
CCC_10000841_5,06/05/2022,Human Resources,THE LANDSCAPE INSTITUT LONDON,391,Employee Subscriptions,0780,LANDSCAPE AND HORTICULTURAL SERVICES
CCC_10000844_7,06/05/2022,Public Health & Protection Services,AMZNMKTPLACE AMAZON.CO.UK,21.98,Printing & Stationary,5999,MISCELLANEOUS & SPECIALTY STORES
CCC_10001162_29,06/05/2022,Parks & Green Spaces,D. BYFORD & SONS COLCHESTER CO,37.2,General Expense,5193," FLORIST SUPPLIES, NURSERY STOCK AND FLOWERS "
CCC_10000916_6,06/05/2022,Parks & Green Spaces,TESCO STORE 2330 CHELMSFORD 2,54.93,General Expense,5411,GROCERY STORES OR SUPERMARKETS
CCC_10000897_10,06/05/2022,"Museums, Theatres & Cultural Services",TESCO STORES 5408 CHELMSFORD,16.45,General Expense,5411,GROCERY STORES OR SUPERMARKETS
CCC_10000880_4,06/05/2022,Operational Services,SM3-CUSTOMPROMO SUGAR LAND,192.76,New Equipment,5399,GENERAL MERCHANDISE OR CONVENIENCE FOOD STORES
CCC_10000897_12,07/05/2022,"Museums, Theatres & Cultural Services",WWW.SCREWFIX.COM YEOVIL,27.36,General Expense,5211,LUMBER AND BUILDING MATERIALS STORES
CCC_10000914_2,07/05/2022,Leisure & Heritage Services,SOUNDTRACK YOUR BRAND STOCKHOLM,35,General Expense,5815," DIGITAL GOODS MEDIA: BOOKS, MOVIES, MUSIC "
CCC_10000852_2,07/05/2022,Chief Executive's Office,POUNDLAND LTD 1159 CHELMSFORD,8.33,General Expense,5310,DISCOUNT STORES
CCC_10000901_1,07/05/2022,"Museums, Theatres & Cultural Services",WH SMITH CHELMSFORD,36.8,Printing & Stationary,5994,NEWS DEALERS AND NEWSSTANDS
CCC_10000921_3,07/05/2022,Parks & Green Spaces,AMZNMKTPLACE AMAZON.CO AMAZON.CO.UK,30.75,Grounds Maintenance Materials,5999,MISCELLANEOUS & SPECIALTY STORES
CCC_10001012_9,08/05/2022,Digital Services,123 REG LTD 03454502310,27.98,Publications,5968,CONTINUITY/SUBSCRIPTION MERCHANT
CCC_10000844_6,08/05/2022,Public Health & Protection Services,AMZNMKTPLACE AMAZON.CO.UK,23.49,Printing & Stationary,5999,MISCELLANEOUS & SPECIALTY STORES
CCC_10000853_8,08/05/2022,Leisure & Heritage Services,AMAZON.CO.UK 2D1NN3HK4 AMAZON.CO.UK,13.5,General Expense,5969,DIRECT MARKETERS (NEC)
CCC_10000845_1,08/05/2022,Public Health & Protection Services,AMZNMKTPLACE AMAZON.CO.UK,9.34,Printing & Stationary,5999,MISCELLANEOUS & SPECIALTY STORES
CCC_10000882_11,08/05/2022,South Essex Parking Partnership,BUS LANE ENFORCEMENT CHELMSFORD,30,General Expense,9399,GOVERNMENT SERVICES (NEC) OR FIRE DEPARTMENTS
CCC_10000916_4,09/05/2022,Parks & Green Spaces,ASDA SUPERSTORE CHELMSFORD,28.8,General Expense,5411,GROCERY STORES OR SUPERMARKETS
CCC_10000844_4,09/05/2022,Public Health & Protection Services,AMZNMKTPLACE AMAZON.CO AMAZON.CO.UK,23.71,General Expense,5999,MISCELLANEOUS & SPECIALTY STORES
CCC_10000850_3,09/05/2022,Housing Services,GEN REGISTER OFFICE SOUTHPORT,14,General Expense,9399,GOVERNMENT SERVICES (NEC) OR FIRE DEPARTMENTS
CCC_10000882_10,09/05/2022,South Essex Parking Partnership,TIMPSON LTD CHELMSFORD,13.33,General Expense,5999,MISCELLANEOUS & SPECIALTY STORES
CCC_10000844_5,09/05/2022,Public Health & Protection Services,AMZNMKTPLACE AMAZON.CO AMAZON.CO.UK,4.5,Printing & Stationary,5999,MISCELLANEOUS & SPECIALTY STORES
CCC_10001368_6,09/05/2022,Marketing & Communications Team,TESCO STORES 5408 CHELMSFORD,12,General Expense,5411,GROCERY STORES OR SUPERMARKETS
CCC_10000882_9,09/05/2022,South Essex Parking Partnership,TIMPSON LTD CHELMSFORD ES,13.33,General Expense,5999,MISCELLANEOUS & SPECIALTY STORES
CCC_10001162_44,09/05/2022,Parks & Green Spaces,WWW.KERNOCK.CO.UK SALTASH,399,Grounds Maintenance Materials,5261,GARDEN AND LAWN SUPPLY STORES OR NURSERIES
CCC_10000880_3,09/05/2022,Operational Services,AMZ SEYMAC STOCK UK AMAZON.CO.UK,-27.98,New Equipment,5999,MISCELLANEOUS & SPECIALTY STORES
CCC_10000918_3,09/05/2022,Leisure & Heritage Services,ONEDIRECT UK LONDON,208.18,New Equipment,5818,LARGE DIGITAL GOODS MERCHANT
CCC_10000916_5,09/05/2022,Parks & Green Spaces,TESCO-STORES 6724 CHELMSFORD,1.3,General Expense,5411,GROCERY STORES OR SUPERMARKETS
CCC_10001162_28,09/05/2022,Parks & Green Spaces,TESCO STORE 2330 CHELMSFORD 2,56,General Expense,5411,GROCERY STORES OR SUPERMARKETS
CCC_10000959_23,09/05/2022,Parks & Green Spaces,HOMEBASE LTD CHELMSFORD,44.92,Grounds Maintenance Materials,5200,HOME SUPPLY WAREHOUSE STORES
CCC_10000927_2,09/05/2022,Accountancy Services,INSAFE INTERNATIONAL L TUNBRIDGE WEL,796,General Expense,5251,HARDWARE STORES
CCC_10000881_1,09/05/2022,Parking & Highways Operations,NEXT RETAIL LTD CHELMSFORD,13.33,General Expense,5651,FAMILY CLOTHING STORES
CCC_10000882_8,10/05/2022,South Essex Parking Partnership,TIMPSON LTD CHELMSFORD,13.33,General Expense,5999,MISCELLANEOUS & SPECIALTY STORES
CCC_10002142_3,10/05/2022,Parks & Green Spaces,ARTS MARKETING ASS CAMBRIDGE,84,Training Expenses,8398,CHARITABLE OR SOCIAL SERVICES ORGANIZATIONS
CCC_10002097_5,10/05/2022,Building Services,AMZNMKTPLACE AMAZON.CO AMAZON.CO.UK,6.24,General Expense,5999,MISCELLANEOUS & SPECIALTY STORES
CCC_10000847_1,10/05/2022,"Procurement, Risk and Insurance",NOVOTEL HOTELS 01517 025100,197.38,Accommodation,3642,NOVOTEL HOTELS
CCC_10000852_1,10/05/2022,Chief Executive's Office,THE HIVE CAFE CHELMSFORD,103,General Expense,5812,RESTAURANTS OR EATING PLACES
CCC_10000914_1,10/05/2022,Leisure & Heritage Services,ETSY.COM - OIKKUHOME DUBLIN,33.95,New Equipment,5699,APPAREL AND ACCESSORY SHOPS -- MISCELLANEOUS
CCC_10000991_28,10/05/2022,South Essex Parking Partnership,TECH DOCTOR - KILMARNO CHELMSFORD,12.5,New Equipment,4812,TELECOMMUNCATIONS EQUIPMENT INCLUDING TELEPHONE SALES
CCC_10001001_13,10/05/2022,South Essex Parking Partnership,J D SPORTS  174 BASILDON,50,Clothing & Uniforms,5941,SPORTING GOODS STORES
CCC_10000853_7,10/05/2022,Leisure & Heritage Services,TESCO STORE 2330 CHELMSFORD 2,10.5,General Expense,5411,GROCERY STORES OR SUPERMARKETS
CCC_10000830_1,10/05/2022,Digital Services,JEFFNET 4029357733,41.98,General Expense,5734,COMPUTER SOFTWARE STORES
CCC_10000866_1,10/05/2022,"Museums, Theatres & Cultural Services",GREATER ANGLIA 2727,70.4,Public Transport,4112,PASSENGER RAILWAYS
CCC_10000832_3,11/05/2022,Parks & Green Spaces,DVLA VEHICLE TAX 0300 1234321,292.5,Vehicle Tax,9311,TAX PAYMENTS
CCC_10000927_1,11/05/2022,Accountancy Services,INSAFE INTERNATIONAL L TUNBRIDGE WEL,770,General Expense,5251,HARDWARE STORES
CCC_10000841_2,11/05/2022,Human Resources,CIAT LONDON EC1V,300,Employee Subscriptions,8999,PROFESSIONAL SERVICES (NEC)
CCC_10000879_1,11/05/2022,Operational Services,SITEBOX LIMITED REDHILL,689.99,General Expense,5085,INDUSTRIAL SUPPLIES (NEC)
CCC_10001927_35,11/05/2022,Public Health & Protection Services,THETRAINLINE.COM +443332022222,40.15,Public Transport,4112,PASSENGER RAILWAYS
CCC_10000841_3,11/05/2022,Human Resources,CHARTERED INSTITUTE OF LONDON,179,Employee Subscriptions,8398,CHARITABLE OR SOCIAL SERVICES ORGANIZATIONS
CCC_10000834_1,11/05/2022,Corporate Property Services,AMZNMKTPLACE AMAZON.CO.UK,12.97,Printing & Stationary,5999,MISCELLANEOUS & SPECIALTY STORES
CCC_10000991_27,11/05/2022,South Essex Parking Partnership,POLICE SUPPLIES KIRKBY,293.32,Clothing & Uniforms,5699,APPAREL AND ACCESSORY SHOPS -- MISCELLANEOUS
CCC_10000853_6,11/05/2022,Leisure & Heritage Services,AMZNMKTPLACE AMAZON.CO.UK,11.68,General Expense,5999,MISCELLANEOUS & SPECIALTY STORES
CCC_10000999_2,11/05/2022,Leisure & Heritage Services,AMAZON.CO.UK 2D8D109K4 AMAZON.CO.UK,11.66,New Equipment,5969,DIRECT MARKETERS (NEC)
CCC_10000919_2,11/05/2022,Public Health & Protection Services,AMZNMKTPLACE AMAZON.CO AMAZON.CO.UK,21.65,New Equipment,5999,MISCELLANEOUS & SPECIALTY STORES
CCC_10000855_3,11/05/2022,Leisure & Heritage Services,WWW.GOPAK.CO.UK HYTHE,602.41,New Equipment,5712," FURNITURE, HOME FURNISHINGS & EQUIP STORES EXCL APPLIANCES "
CCC_10002073_1,11/05/2022,Parking & Highways Operations,TIMPSON LTD CHELMSFORD,30,General Expense,5999,MISCELLANEOUS & SPECIALTY STORES
CCC_10001005_3,11/05/2022,"Museums, Theatres & Cultural Services",PAYPAL  STAGEELECTR 35314369001,24.84,General Expense,5735,RECORD SHOPS
CCC_10002097_4,11/05/2022,Building Services,TESCO STORES 5408 CHELMSFORD,10,General Expense,5411,GROCERY STORES OR SUPERMARKETS
CCC_10000833_1,11/05/2022,Operational Services,SCREWFIX DIR LTD CHELMFOR1066,10.97,New Equipment,5211,LUMBER AND BUILDING MATERIALS STORES
CCC_10000910_1,11/05/2022,Legal & Democratic Services,STATIONERYU 01376809140,18.86,Printing & Stationary,5943," STATIONERY STORES, OFFICE & SCHOOL SUPPLY STORES "
CCC_10002149_44,12/05/2022,Parking & Highways Operations,CYCLE PARKING CHELMSFORD,1,General Expense,4789,TRANSPORTATION SERVICES (NEC)
CCC_10001368_5,12/05/2022,Marketing & Communications Team,GOANIMATE INC. 8883699639,544.25,General Expense,5817,DIGITAL GOODS: APPLICATIONS (EXCLUDES GAMES)
CCC_10000841_1,12/05/2022,Human Resources,HIGHSTREETVOUCHERS 0345 717 1111,203.5,General Expense,8641," SOCIAL, FRATERNAL OR CIVIC ASSOCIATIONS "
CCC_10000945_2,12/05/2022,Marketing & Communications Team,FACEBK CPFMGDKY52 FB.ME/ADS,400,Advertising,7311,ADVERTISING SERVICES
CCC_10000851_2,12/05/2022,Public Health & Protection Services,T PENNACK AND SONS LIM CHELMSFORD,150,General Expense,7261,CREMATORIES OR FUNERAL SERVICES
CCC_10000859_10,12/05/2022,"Museums, Theatres & Cultural Services",AMZNMKTPLACE AMAZON.CO.UK,5.76,Printing & Stationary,5999,MISCELLANEOUS & SPECIALTY STORES
CCC_10000871_1,12/05/2022,"Museums, Theatres & Cultural Services",SCIENTIFICLABS.CO. 01482 649655,25.67,New Equipment,5047," MEDICAL, DENTAL, OPHTHALMIC AND HOSPITAL EQUIP "
CCC_10000851_3,12/05/2022,Public Health & Protection Services,EBAY O 18-08589-39450 LONDON,-198,New Equipment,5311,DEPARTMENT STORES
CCC_10000921_2,12/05/2022,Parks & Green Spaces,CHANDLER MATERIALS CHELMSFORD,21.77,Grounds Maintenance Materials,5211,LUMBER AND BUILDING MATERIALS STORES
CCC_10002097_3,12/05/2022,Building Services,TESCO STORES 5408 CHELMSFORD,5,General Expense,5411,GROCERY STORES OR SUPERMARKETS
CCC_10000859_11,12/05/2022,"Museums, Theatres & Cultural Services",AMZNMKTPLACE AMAZON.CO.UK,9.49,Printing & Stationary,5999,MISCELLANEOUS & SPECIALTY STORES
CCC_10000917_1,13/05/2022,Parks & Green Spaces,CHELMSFORD SAFETY SUPP CHELMSFORD,1390.07,Clothing & Uniforms,5047," MEDICAL, DENTAL, OPHTHALMIC AND HOSPITAL EQUIP "
CCC_10000921_1,13/05/2022,Parks & Green Spaces,SCREWFIX DIR LTD CHELMFOR1867,4.98,Grounds Maintenance Materials,5211,LUMBER AND BUILDING MATERIALS STORES
CCC_10000859_13,13/05/2022,"Museums, Theatres & Cultural Services",AMZNMKTPLACE AMAZON.CO.UK,4.12,Printing & Stationary,5999,MISCELLANEOUS & SPECIALTY STORES
CCC_10000859_12,13/05/2022,"Museums, Theatres & Cultural Services",AMZNMKTPLACE AMAZON.CO.UK,5.79,Printing & Stationary,5999,MISCELLANEOUS & SPECIALTY STORES
CCC_10000851_1,13/05/2022,Public Health & Protection Services,ESSEX COUNTY COUNCI EC CHELMSFORD,11,Printing & Stationary,9399,GOVERNMENT SERVICES (NEC) OR FIRE DEPARTMENTS
CCC_10000859_15,13/05/2022,"Museums, Theatres & Cultural Services",AMZNMKTPLACE AMAZON.CO.UK,33.27,New Equipment,5999,MISCELLANEOUS & SPECIALTY STORES
CCC_10000853_5,13/05/2022,Leisure & Heritage Services,WWW.LAMPSHOPONLINE.CO. LEEDS,48.86,New Equipment,5072," HARDWARE, PLUMBING, HEATING EQUIPMENT AND SUPPLIES "
CCC_10001162_27,13/05/2022,Parks & Green Spaces,D. BYFORD & SONS COLCHESTER CO,36.6,General Expense,5193," FLORIST SUPPLIES, NURSERY STOCK AND FLOWERS "
CCC_10000997_3,13/05/2022,Leisure & Heritage Services,EB  CHELMSFORD CITY CE 801-413-7200,13.52,General Expense,7399,BUSINESS SERVICES (NEC)
CCC_10000919_1,13/05/2022,Public Health & Protection Services,WWW.THERANGE.CO.UK PLYMOUTH,79.45,New Equipment,5719,HOME FURNISHING SPECIALTY STORES -- MISCELLANEOUS
CCC_10000955_16,13/05/2022,Operational Services,HALFORDS 0566 CHELMSFORD,16.99,Vehicle Repairs,5940,BICYCLE SHOPS -- SALES AND SERVICE
CCC_10000955_15,13/05/2022,Operational Services,HALFORDS 0566 CHELMSFORD,161.58,Vehicle Repairs,5940,BICYCLE SHOPS -- SALES AND SERVICE
CCC_10000859_14,13/05/2022,"Museums, Theatres & Cultural Services",AMZNMKTPLACE AMAZON.CO.UK,9.12,Printing & Stationary,5999,MISCELLANEOUS & SPECIALTY STORES
CCC_10000849_1,13/05/2022,"Procurement, Risk and Insurance",AMZNMKTPLACE AMAZON.CO.UK,16.85,New Equipment,5999,MISCELLANEOUS & SPECIALTY STORES
CCC_10001055_8,13/05/2022,Parks & Green Spaces,WARWICK WARD (MACHINER BARNSLEY,363.32,Vehicle Repairs,5046,COMMERCIAL EQUIPMENT (NEC)
CCC_10000959_15,13/05/2022,Parks & Green Spaces,HOMEBASE LTD CHELMSFORD,22.12,Grounds Maintenance Materials,5200,HOME SUPPLY WAREHOUSE STORES
CCC_10000880_11,14/05/2022,Operational Services,FACEBK 3672KG3RM2 FB.ME/ADS,400,Advertising,7311,ADVERTISING SERVICES
CCC_10000880_10,14/05/2022,Operational Services,DRIINK COFFEE CLUB CHELMSFORD,327.75,General Expense,5812,RESTAURANTS OR EATING PLACES
CCC_10000849_2,14/05/2022,"Procurement, Risk and Insurance",AMZNMKTPLACE AMAZON.CO.UK,14.99,New Equipment,5999,MISCELLANEOUS & SPECIALTY STORES
CCC_10000913_2,14/05/2022,Leisure & Heritage Services,AMZNBUSINESS 253125OO4 AMAZON.CO.UK,36.3,Printing & Stationary,5999,MISCELLANEOUS & SPECIALTY STORES
CCC_10000913_1,14/05/2022,Leisure & Heritage Services,AMZNBUSINESS 2501O8OG4 AMAZON.CO.UK,36.3,Printing & Stationary,5999,MISCELLANEOUS & SPECIALTY STORES
CCC_10000882_7,15/05/2022,South Essex Parking Partnership,AMAZON.CO.UK 250F99ZL4 AMAZON.CO.UK,38.24,Clothing & Uniforms,5969,DIRECT MARKETERS (NEC)
CCC_10000853_4,15/05/2022,Leisure & Heritage Services,AMZNMKTPLACE AMAZON.CO.UK,27.99,General Expense,5999,MISCELLANEOUS & SPECIALTY STORES
CCC_10000854_1,15/05/2022,Development Management,AMZNBUSINESS 250PC8ZX4 AMAZON.CO.UK,28.42,New Equipment,5999,MISCELLANEOUS & SPECIALTY STORES
CCC_10001090_3,15/05/2022,Leisure & Heritage Services,SPOTIFY P1B779B371 LONDON,9.99,General Expense,5815," DIGITAL GOODS MEDIA: BOOKS, MOVIES, MUSIC "
CCC_10001162_41,15/05/2022,Parks & Green Spaces,AMZNMKTPLACE AMAZON.CO AMAZON.CO.UK,24.57,General Expense,5999,MISCELLANEOUS & SPECIALTY STORES
CCC_10000894_2,15/05/2022,Legal & Democratic Services,ALDI 776 127 CHELMSFORD,89.88,General Expense,5411,GROCERY STORES OR SUPERMARKETS
CCC_10001162_26,16/05/2022,Parks & Green Spaces,TESCO STORE 2330 CHELMSFORD 2,48,General Expense,5411,GROCERY STORES OR SUPERMARKETS
CCC_10000850_2,16/05/2022,Housing Services,LONDON BOROUGH OF NEWH LONDON,11,General Expense,9399,GOVERNMENT SERVICES (NEC) OR FIRE DEPARTMENTS
CCC_10000959_9,16/05/2022,Parks & Green Spaces,HOMEBASE LTD CHELMSFORD,36.5,Grounds Maintenance Materials,5200,HOME SUPPLY WAREHOUSE STORES
CCC_10000916_2,16/05/2022,Parks & Green Spaces,CHANDLER MATERIALS CHELMSFORD,263.09,General Expense,5211,LUMBER AND BUILDING MATERIALS STORES
CCC_10000832_2,16/05/2022,Parks & Green Spaces,DVLA VEHICLE TAX 0300 1234321,292.5,Vehicle Tax,9311,TAX PAYMENTS
CCC_10000856_1,16/05/2022,Leisure & Heritage Services,PAYPAL  F4SPORTSLTD 35314369001,64,New Equipment,5941,SPORTING GOODS STORES
CCC_10000918_2,16/05/2022,Leisure & Heritage Services,AMZNMKTPLACE AMAZON.CO.UK,26.36,General Expense,5999,MISCELLANEOUS & SPECIALTY STORES
CCC_10000861_1,16/05/2022,Spatial Planning,EB  BIRD SURVEY METHOD 801-413-7200,30,Training Expenses,7399,BUSINESS SERVICES (NEC)
CCC_10000831_2,16/05/2022,Leisure & Heritage Services,AMZNMKTPLACE AMAZON.CO.UK,16.45,General Expense,5999,MISCELLANEOUS & SPECIALTY STORES
CCC_10000831_3,16/05/2022,Leisure & Heritage Services,AMZNMKTPLACE AMAZON.CO.UK,10.82,General Expense,5999,MISCELLANEOUS & SPECIALTY STORES
CCC_10000959_20,16/05/2022,Parks & Green Spaces,CHANDLER MATERIALS CHELMSFORD,149.09,Grounds Maintenance Materials,5211,LUMBER AND BUILDING MATERIALS STORES
CCC_10000831_1,16/05/2022,Leisure & Heritage Services,AMZNMKTPLACE AMAZON.CO.UK,62.47,General Expense,5999,MISCELLANEOUS & SPECIALTY STORES
CCC_10000832_1,16/05/2022,Parks & Green Spaces,DVLA VEHICLE TAX 0300 1234321,292.5,Vehicle Tax,9311,TAX PAYMENTS
CCC_10000955_14,16/05/2022,Operational Services,WWW.SCREWFIX.COM YEOVIL,141.16,New Equipment,5211,LUMBER AND BUILDING MATERIALS STORES
CCC_10000916_3,16/05/2022,Parks & Green Spaces,JAMES ODDY AND SON CHELMSFORD,90.72,General Expense,5211,LUMBER AND BUILDING MATERIALS STORES
CCC_10000882_6,16/05/2022,South Essex Parking Partnership,SP PATROLSTORE REIAGTE,60.82,Clothing & Uniforms,5399,GENERAL MERCHANDISE OR CONVENIENCE FOOD STORES
CCC_10000883_1,16/05/2022,"Museums, Theatres & Cultural Services",AMAZON PRIME 255IJ5JH4 AMZN.CO.UK/PM,7.99,New Equipment,5968,CONTINUITY/SUBSCRIPTION MERCHANT
CCC_10000916_1,16/05/2022,Parks & Green Spaces,TESCO-STORES 6724 CHELMSFORD,2.1,General Expense,5411,GROCERY STORES OR SUPERMARKETS
CCC_10000855_4,16/05/2022,Leisure & Heritage Services,BATHROOMPLANET.COM ABERDEENSHIRE,337.1,New Equipment,5719,HOME FURNISHING SPECIALTY STORES -- MISCELLANEOUS
CCC_10000894_1,16/05/2022,Legal & Democratic Services,ALDI 5 776 CHELMSFORD,71.82,General Expense,5411,GROCERY STORES OR SUPERMARKETS
CCC_10001831_9,17/05/2022,Digital Services,WWW.BCS.ORG SWINDON,160,Employee Subscriptions,8999,PROFESSIONAL SERVICES (NEC)
CCC_10001055_7,17/05/2022,Parks & Green Spaces,ERNEST DOE & SONS MALDON,40.5,Grounds Maintenance Materials,5599,AUTOMOTIVE DEALERS
CCC_10002149_42,17/05/2022,Parking & Highways Operations,CYCLE PARKING CHELMSFORD,1,General Expense,4789,TRANSPORTATION SERVICES (NEC)
CCC_10000853_2,17/05/2022,Leisure & Heritage Services,TVLICENSING.CO.UK 3007906071,159,General Expense,7392," MANAGEMENT, PUBLIC RELATIONS OR CONSULTING SERVICES "
CCC_10002149_43,17/05/2022,Parking & Highways Operations,CYCLE PARKING CHELMSFORD,1,General Expense,4789,TRANSPORTATION SERVICES (NEC)
CCC_10002149_41,17/05/2022,Parking & Highways Operations,CYCLE PARKING CHELMSFORD,1,General Expense,4789,TRANSPORTATION SERVICES (NEC)
CCC_10000853_3,17/05/2022,Leisure & Heritage Services,TVLICENSING.CO.UK 3007906071,159,General Expense,7392," MANAGEMENT, PUBLIC RELATIONS OR CONSULTING SERVICES "
CCC_10000857_1,17/05/2022,Leisure & Heritage Services,ERNEST DOE / SONS FYFIELD,75,New Equipment,5599,AUTOMOTIVE DEALERS
CCC_10000900_1,17/05/2022,"Museums, Theatres & Cultural Services",SUMUP   PHONE SHOP BURY ST EDMUN,14.17,General Expense,5999,MISCELLANEOUS & SPECIALTY STORES
CCC_10000828_1,18/05/2022,Leisure & Heritage Services,SP ROLLERSHUTTERBITS SOUTHAMPTON,10.42,New Equipment,5734,COMPUTER SOFTWARE STORES
CCC_10000855_5,18/05/2022,Leisure & Heritage Services,AMZNMKTPLACE AMAZON.CO.UK,12.12,New Equipment,5999,MISCELLANEOUS & SPECIALTY STORES
CCC_10000865_1,18/05/2022,"Museums, Theatres & Cultural Services",ANC ANCESTRY.CO.UK 8004049723,69.99,Employee Subscriptions,5968,CONTINUITY/SUBSCRIPTION MERCHANT
CCC_10001160_16,18/05/2022,Housing Services,BRITISH GAS ONLINE BRITISHGAS.CO,70,General Expense,4900," ELECTRIC, GAS, SANITARY, TELEPHONE OR WATER UTILITIES "
CCC_10000838_1,18/05/2022,Human Resources,WWW.OCEANMEDIA.CO.UK LONDON,1295,Advertising,7399,BUSINESS SERVICES (NEC)
CCC_10001037_16,18/05/2022,Parks & Green Spaces,CHANDLER MATERIALS CHELMSFORD,54.25,New Equipment,5211,LUMBER AND BUILDING MATERIALS STORES
CCC_10000844_3,18/05/2022,Public Health & Protection Services,AMZNMKTPLACE AMAZON.CO.UK,7.29,Printing & Stationary,5999,MISCELLANEOUS & SPECIALTY STORES
CCC_10000882_5,18/05/2022,South Essex Parking Partnership,POLICE SUPPLIES KIRKBY,69.12,Clothing & Uniforms,5699,APPAREL AND ACCESSORY SHOPS -- MISCELLANEOUS
CCC_10000959_7,18/05/2022,Parks & Green Spaces,B & Q 1188 CHELMSFORD,80.55,Grounds Maintenance Materials,5200,HOME SUPPLY WAREHOUSE STORES
CCC_10001160_21,18/05/2022,Housing Services,BRITISH GAS ONLINE BRITISHGAS.CO,99,General Expense,4900," ELECTRIC, GAS, SANITARY, TELEPHONE OR WATER UTILITIES "
CCC_10001162_25,18/05/2022,Parks & Green Spaces,TVLICENSING.CO.UK 3007906071,159,General Expense,7392," MANAGEMENT, PUBLIC RELATIONS OR CONSULTING SERVICES "
CCC_10000887_1,18/05/2022,Leisure & Heritage Services,AMZNMKTPLACE AMAZON.CO AMAZON.CO.UK,14.97,New Equipment,5999,MISCELLANEOUS & SPECIALTY STORES
CCC_10000955_13,18/05/2022,Operational Services,REN O TEC LIMITED ESSEX,1155,Vehicle Repairs,7538,AUTOMOTIVE SERVICE SHOPS (NON-DEALER)
CCC_10001122_1,18/05/2022,"Museums, Theatres & Cultural Services",WWW.ACSCUSTOM.COM INTERNET,124.17,New Equipment,5975," HEARING AIDS -- SALES, SERVICE AND SUPPLY STORES "
CCC_10000853_1,18/05/2022,Leisure & Heritage Services,TESCO STORE 2330 CHELMSFORD 2,21.3,General Expense,5411,GROCERY STORES OR SUPERMARKETS
CCC_10002149_40,18/05/2022,Parking & Highways Operations,CYCLE PARKING CHELMSFORD,1,General Expense,4789,TRANSPORTATION SERVICES (NEC)
CCC_10001160_18,18/05/2022,Housing Services,BRITISH GAS ONLINE BRITISHGAS.CO,99,General Expense,4900," ELECTRIC, GAS, SANITARY, TELEPHONE OR WATER UTILITIES "
CCC_10000844_2,18/05/2022,Public Health & Protection Services,AMZNMKTPLACE AMAZON.CO.UK,4.98,Printing & Stationary,5999,MISCELLANEOUS & SPECIALTY STORES
CCC_10000840_1,18/05/2022,Human Resources,SHL GROUP LTD THAMES DITTON,132,General Expense,7399,BUSINESS SERVICES (NEC)
CCC_10000844_1,18/05/2022,Public Health & Protection Services,AMZNMKTPLACE AMAZON.CO.UK,12.09,Printing & Stationary,5999,MISCELLANEOUS & SPECIALTY STORES
CCC_10000850_1,18/05/2022,Housing Services,TRAINLINE LONDON,52.37,Public Transport,4112,PASSENGER RAILWAYS
CCC_10002149_39,18/05/2022,Parking & Highways Operations,CYCLE PARKING CHELMSFORD,1,General Expense,4789,TRANSPORTATION SERVICES (NEC)
CCC_10001160_20,18/05/2022,Housing Services,BRITISH GAS ONLINE BRITISHGAS.CO,30,General Expense,4900," ELECTRIC, GAS, SANITARY, TELEPHONE OR WATER UTILITIES "
CCC_10000855_6,19/05/2022,Leisure & Heritage Services,AMZNMKTPLACE AMAZON.CO.UK,12.49,New Equipment,5999,MISCELLANEOUS & SPECIALTY STORES
CCC_10000880_1,19/05/2022,Operational Services,SQ  MONARCH SPRINGFIELD,17.5,Clothing & Uniforms,7230,BARBER OR BEAUTY SHOPS
CCC_10000896_1,19/05/2022,Marketing & Communications Team,FACEBK  YXKTRCFY22 FB.ME/ADS,7,Advertising,7311,ADVERTISING SERVICES
CCC_10000882_3,19/05/2022,South Essex Parking Partnership,CURRYS BASILDON BASILDON,-37.49,New Equipment,5732,ELECTRONIC SALES
CCC_10000967_3,19/05/2022,Leisure & Heritage Services,MELBOURNE COOP 01245 347774,4.95,New Equipment,5411,GROCERY STORES OR SUPERMARKETS
CCC_10002149_38,19/05/2022,Parking & Highways Operations,CYCLE PARKING CHELMSFORD,1,General Expense,4789,TRANSPORTATION SERVICES (NEC)
CCC_10001037_15,19/05/2022,Parks & Green Spaces,LITTLE LODGE NURSERY A FOBBING,451.44,Grounds Maintenance Materials,5261,GARDEN AND LAWN SUPPLY STORES OR NURSERIES
CCC_10001927_34,19/05/2022,Public Health & Protection Services,THETRAINLINE.COM +443332022222,20.69,Public Transport,4112,PASSENGER RAILWAYS
CCC_10001028_3,19/05/2022,Leisure & Heritage Services,PRINT MARKETPLACE 40 2802345,17.51,Printing & Stationary,7338," PRINT SHOPS, QUICK COPY SERVICES OR REPRODUCTION SERVICES "
CCC_10000899_1,19/05/2022,Parks & Green Spaces,AMZNMKTPLACE AMAZON.CO.UK,42.89,Printing & Stationary,5999,MISCELLANEOUS & SPECIALTY STORES
CCC_10000897_13,19/05/2022,"Museums, Theatres & Cultural Services",LAWSON H I S LTD SOUTHAMPTON,26.07,General Expense,5072," HARDWARE, PLUMBING, HEATING EQUIPMENT AND SUPPLIES "
CCC_10000909_1,19/05/2022,Legal & Democratic Services,BRAINTREE DC BRAINTREE,518,General Expense,9399,GOVERNMENT SERVICES (NEC) OR FIRE DEPARTMENTS
CCC_10001019_1,19/05/2022,"Museums, Theatres & Cultural Services",B & Q 1188 CHELMSFORD,66.5,Museum Exhibits,5200,HOME SUPPLY WAREHOUSE STORES
CCC_10000934_1,19/05/2022,Marketing & Communications Team,PREMIER FARNELL PRESTON,77.9,New Equipment,5065,ELECTRICAL PARTS AND EQUIPMENT
CCC_10000882_1,19/05/2022,South Essex Parking Partnership,SUMUP   ASHINGTON VALE ROCHFORD,8.33,General Expense,7210," CLEANING, LAUNDRY AND GARMENT SERVICES "
CCC_10002075_5,19/05/2022,Parking & Highways Operations,CYCLE PARKING CHELMSFORD,1,General Expense,4789,TRANSPORTATION SERVICES (NEC)
CCC_10001162_43,19/05/2022,Parks & Green Spaces,PROTEK PRODUCTS SHEPTON MALLE,26.59,General Expense,5198," PAINTS, VARNISHES AND SUPPLIES "
CCC_10000882_4,19/05/2022,South Essex Parking Partnership,MCX BASILDON,20.82,New Equipment,4812,TELECOMMUNCATIONS EQUIPMENT INCLUDING TELEPHONE SALES
CCC_10002062_9,19/05/2022,Marketing & Communications Team,WORDPRESS 5RSFSHZ5YA DUBLIN,10,General Expense,5734,COMPUTER SOFTWARE STORES
CCC_10002075_4,19/05/2022,Parking & Highways Operations,CYCLE PARKING CHELMSFORD,23,General Expense,4789,TRANSPORTATION SERVICES (NEC)
CCC_10000918_1,19/05/2022,Leisure & Heritage Services,BAKER ROSS HARLOW,30.69,New Equipment,5970,CRAFT OR ARTIST'S SUPPLY SHOPS
CCC_10001024_1,19/05/2022,"Museums, Theatres & Cultural Services",SAINSBURYS PETROL CHELMSFORD,58.5,Fuel,5541,GAS/SERVICE STATIONS WITH/WITHOUT ANCILLARY SERVICES
CCC_10000882_2,19/05/2022,South Essex Parking Partnership,CURRYS BASILDON BASILDON,37.49,New Equipment,5732,ELECTRONIC SALES
CCC_10000949_7,20/05/2022,Public Health & Protection Services,WWW.PETSATHOME.COM WILMSLOW,27.98,General Expense,5995," PET SHOPS, PET FOODS AND SUPPLIES STORES "
CCC_10001162_40,20/05/2022,Parks & Green Spaces,AMZNMKTPLACE AMAZON.CO.UK,129,General Expense,5999,MISCELLANEOUS & SPECIALTY STORES
CCC_10001162_24,20/05/2022,Parks & Green Spaces,D. BYFORD & SONS COLCHESTER CO,34.2,General Expense,5193," FLORIST SUPPLIES, NURSERY STOCK AND FLOWERS "
CCC_10000932_2,20/05/2022,Leisure & Heritage Services,AMZNMKTPLACE AMAZON.CO AMAZON.CO.UK,11.64,New Equipment,5999,MISCELLANEOUS & SPECIALTY STORES
CCC_10000959_8,20/05/2022,Parks & Green Spaces,B & Q 1188 CHELMSFORD,16.6,Grounds Maintenance Materials,5200,HOME SUPPLY WAREHOUSE STORES
CCC_10001005_1,20/05/2022,"Museums, Theatres & Cultural Services",PAYPAL  VALUEPRODUC 35314369001,107.05,General Expense,5999,MISCELLANEOUS & SPECIALTY STORES
CCC_10000955_12,20/05/2022,Operational Services,MACHINE MART LTD LEIGH-N-SE 60,359.92,New Equipment,5722,APPLIANCE STORES (NEC) OR HOUSEHOLD APPLIANCE STORES
CCC_10001005_2,20/05/2022,"Museums, Theatres & Cultural Services",POST OFFICE COUNTER CHELMSFORD,2.79,General Expense,9402,POSTAGE STAMPS
CCC_10001045_1,20/05/2022,Human Resources,PAYPAL  URBANDESIGN 35314369001,250,Advertising,8398,CHARITABLE OR SOCIAL SERVICES ORGANIZATIONS
CCC_10000896_6,20/05/2022,Marketing & Communications Team,FACEBK  62HTGC7Z22 FB.ME/ADS,7,Advertising,7311,ADVERTISING SERVICES
CCC_10000977_1,20/05/2022,"Museums, Theatres & Cultural Services",PRIMARK CHELMSFORD,4.17,Printing & Stationary,5651,FAMILY CLOTHING STORES
CCC_10001015_4,20/05/2022,Digital Services,EVIIVO LIMITED LONDON,70,Conference Expenses,7011," LODGING,HOTELS,MOTELS,RESORTS "
CCC_10001001_12,21/05/2022,South Essex Parking Partnership,SUMUP   ASHINGTON VALE ROCHFORD,16.67,General Expense,7210," CLEANING, LAUNDRY AND GARMENT SERVICES "
CCC_10000970_2,21/05/2022,Leisure & Heritage Services,THE RANGE COLCHESTER,22.98,New Equipment,5719,HOME FURNISHING SPECIALTY STORES -- MISCELLANEOUS
CCC_10000991_26,21/05/2022,South Essex Parking Partnership,SPORTSDIRECT 297 08443325297,33.33,Clothing & Uniforms,5941,SPORTING GOODS STORES
CCC_10000960_1,21/05/2022,"Procurement, Risk and Insurance",THOMSON REUTERS UK LTD 08456009355,112,General Expense,8999,PROFESSIONAL SERVICES (NEC)
CCC_10001023_2,21/05/2022,"Museums, Theatres & Cultural Services",AVERY.CO.UK CASTLEFORD,34.68,Printing & Stationary,5999,MISCELLANEOUS & SPECIALTY STORES
CCC_10000971_2,21/05/2022,Leisure & Heritage Services,B&Q COLCHESTER TOLLGAT COLCHESTE2722,2,New Equipment,5211,LUMBER AND BUILDING MATERIALS STORES
CCC_10001078_9,21/05/2022,"Museums, Theatres & Cultural Services",WWW.SCREWFIX.COM YEOVIL,12.23,General Expense,5211,LUMBER AND BUILDING MATERIALS STORES
CCC_10000896_10,21/05/2022,Marketing & Communications Team,FACEBK  CW79JC3Z22 FB.ME/ADS,7,Advertising,7311,ADVERTISING SERVICES
CCC_10000950_2,22/05/2022,Public Health & Protection Services,PRINT MARKETPLACE 40 2802345,234.68,New Equipment,7338," PRINT SHOPS, QUICK COPY SERVICES OR REPRODUCTION SERVICES "
CCC_10001014_11,22/05/2022,Street Care & Performance,AMZNBUSINESS 255MR62T4 AMAZON.CO.UK,34.2,Printing & Stationary,5999,MISCELLANEOUS & SPECIALTY STORES
CCC_10000949_5,22/05/2022,Public Health & Protection Services,AMZNMKTPLACE AMAZON.CO.UK,33.11,Printing & Stationary,5999,MISCELLANEOUS & SPECIALTY STORES
CCC_10001074_24,23/05/2022,Parks & Green Spaces,ASDA SUPERSTORE CHELMSFORD,40.85,Grounds Maintenance Materials,5411,GROCERY STORES OR SUPERMARKETS
CCC_10000896_9,23/05/2022,Marketing & Communications Team,FACEBK  WG58JCKY22 FB.ME/ADS,7,Advertising,7311,ADVERTISING SERVICES
CCC_10001037_14,23/05/2022,Parks & Green Spaces,LITTLE LODGE NURSERY A FOBBING,22.8,Grounds Maintenance Materials,5261,GARDEN AND LAWN SUPPLY STORES OR NURSERIES
CCC_10000758_3,23/05/2022,"Museums, Theatres & Cultural Services",TESCO STORE 2330 CHELMSFORD 2,3.98,Training Expenses,5411,GROCERY STORES OR SUPERMARKETS
CCC_10000926_6,23/05/2022,Human Resources,CIPD LTD LONDON,168,Employee Subscriptions,8699,MEMBERSHIP ORGANIZATIONS NOT ELSEWHERE CLASSIFIED
CCC_10001020_5,23/05/2022,"Museums, Theatres & Cultural Services",COLCHESTER_BC_PARKING_ 01206 282316,4.25,Car Parking,7523,AUTOMOBILE PARKING OR PARKING LOTS
CCC_10002149_34,23/05/2022,Parking & Highways Operations,CYCLE PARKING CHELMSFORD,1,General Expense,4789,TRANSPORTATION SERVICES (NEC)
CCC_10000926_4,23/05/2022,Human Resources,CIPD LTD LONDON,195,Employee Subscriptions,8699,MEMBERSHIP ORGANIZATIONS NOT ELSEWHERE CLASSIFIED
CCC_10001074_23,23/05/2022,Parks & Green Spaces,TESCO-STORES 6724 CHELMSFORD,3,General Expense,5411,GROCERY STORES OR SUPERMARKETS
CCC_10001015_3,23/05/2022,Digital Services,OYSTERFLEET PLC CANVEY ISLAND,210,Conference Expenses,7011," LODGING,HOTELS,MOTELS,RESORTS "
CCC_10000991_25,23/05/2022,South Essex Parking Partnership,WILKO RETAIL LIMITED BRENTWOOD,9.58,Printing & Stationary,5399,GENERAL MERCHANDISE OR CONVENIENCE FOOD STORES
CCC_10001027_2,23/05/2022,"Museums, Theatres & Cultural Services",THE HIVE CAFE CHELMSFORD,5.93,Museum Exhibits,5812,RESTAURANTS OR EATING PLACES
CCC_10002149_37,23/05/2022,Parking & Highways Operations,CYCLE PARKING CHELMSFORD,1,General Expense,4789,TRANSPORTATION SERVICES (NEC)
CCC_10000926_5,23/05/2022,Human Resources,CIPD LTD LONDON,168,Employee Subscriptions,8699,MEMBERSHIP ORGANIZATIONS NOT ELSEWHERE CLASSIFIED
CCC_10000926_3,23/05/2022,Human Resources,CIPD LTD LONDON,195,Employee Subscriptions,8699,MEMBERSHIP ORGANIZATIONS NOT ELSEWHERE CLASSIFIED
CCC_10002149_36,23/05/2022,Parking & Highways Operations,CYCLE PARKING CHELMSFORD,1,General Expense,4789,TRANSPORTATION SERVICES (NEC)
CCC_10002149_35,23/05/2022,Parking & Highways Operations,CYCLE PARKING CHELMSFORD,1,General Expense,4789,TRANSPORTATION SERVICES (NEC)
CCC_10001001_10,23/05/2022,South Essex Parking Partnership,AMAZON.CO.UK 2577217Y4 AMAZON.CO.UK,50.28,Clothing & Uniforms,5969,DIRECT MARKETERS (NEC)
CCC_10001002_2,23/05/2022,Corporate Property Services,CHELMSFORD.GOV.UK ESSEX,2390,General Expense,9399,GOVERNMENT SERVICES (NEC) OR FIRE DEPARTMENTS
CCC_10000991_24,23/05/2022,South Essex Parking Partnership,ARCO LTD BASILDON,22.96,Clothing & Uniforms,5085,INDUSTRIAL SUPPLIES (NEC)
CCC_10001020_1,23/05/2022,"Museums, Theatres & Cultural Services",COLCHESTER_BC_PARKING_ 01206 282316,4.25,Car Parking,7523,AUTOMOBILE PARKING OR PARKING LOTS
CCC_10001001_11,23/05/2022,South Essex Parking Partnership,AMZNMKTPLACE AMAZON.CO.UK,54.12,Clothing & Uniforms,5999,MISCELLANEOUS & SPECIALTY STORES
CCC_10000971_1,23/05/2022,Leisure & Heritage Services,DUNELM SOFTFURNISHINGS LEICESTER,79,New Equipment,5712," FURNITURE, HOME FURNISHINGS & EQUIP STORES EXCL APPLIANCES "
CCC_10000948_2,23/05/2022,Marketing & Communications Team,GOOGLE ADS9290904130 DUBLIN,500,Advertising,7311,ADVERTISING SERVICES
CCC_10001003_2,23/05/2022,Parks & Green Spaces,TESCO STORES 5408 CHELMSFORD,6.25,General Expense,5411,GROCERY STORES OR SUPERMARKETS
CCC_10001012_8,23/05/2022,Digital Services,AMAZON.CO.UK 255KK4KN4 AMAZON.CO.UK,31.3,General Expense,5969,DIRECT MARKETERS (NEC)
CCC_10001118_9,23/05/2022,Human Resources,CIPD LTD LONDON,221,Employee Subscriptions,8699,MEMBERSHIP ORGANIZATIONS NOT ELSEWHERE CLASSIFIED
CCC_10000991_23,23/05/2022,South Essex Parking Partnership,POLICE SUPPLIES KIRKBY,60.79,Clothing & Uniforms,5699,APPAREL AND ACCESSORY SHOPS -- MISCELLANEOUS
CCC_10000926_2,23/05/2022,Human Resources,CIPD LTD LONDON,195,Employee Subscriptions,8699,MEMBERSHIP ORGANIZATIONS NOT ELSEWHERE CLASSIFIED
CCC_10000926_13,23/05/2022,Human Resources,CHARTERED INSTITUTE OF LONDON,69,Employee Subscriptions,8398,CHARITABLE OR SOCIAL SERVICES ORGANIZATIONS
CCC_10001162_23,23/05/2022,Parks & Green Spaces,TESCO STORE 2330 CHELMSFORD 2,81,General Expense,5411,GROCERY STORES OR SUPERMARKETS
CCC_10000991_21,24/05/2022,South Essex Parking Partnership,TIMPSON LTD CHELMSFORD,6.67,New Equipment,5999,MISCELLANEOUS & SPECIALTY STORES
CCC_10001001_9,24/05/2022,South Essex Parking Partnership,AMZNMKTPLACE AMAZON.CO AMAZON.CO.UK,64.97,Clothing & Uniforms,5999,MISCELLANEOUS & SPECIALTY STORES
CCC_10000991_19,24/05/2022,South Essex Parking Partnership,AMZNMKTPLACE AMAZON.CO AMAZON.CO.UK,37.49,Clothing & Uniforms,5999,MISCELLANEOUS & SPECIALTY STORES
CCC_10000959_3,24/05/2022,Parks & Green Spaces,AUTODOC - 67346600 BERLIN,19.51,Grounds Maintenance Materials,5533," AUTOMOTIVE PARTS, ACCESSORIES STORES "
CCC_10002075_2,24/05/2022,Parking & Highways Operations,CYCLE PARKING CHELMSFORD,1,General Expense,4789,TRANSPORTATION SERVICES (NEC)
CCC_10000936_1,24/05/2022,Parking & Highways Operations,AMZNBUSINESS 258X14RM4 LUXEMBOURG L,39,Printing & Stationary,5999,MISCELLANEOUS & SPECIALTY STORES
CCC_10000936_3,24/05/2022,Parking & Highways Operations,AMZNBUSINESS 251R61RJ4 LUXEMBOURG L,19.5,Printing & Stationary,5999,MISCELLANEOUS & SPECIALTY STORES
CCC_10000991_20,24/05/2022,South Essex Parking Partnership,SHELL ARTERIAL ROAD WICKFORD,75.9,Fuel,5541,GAS/SERVICE STATIONS WITH/WITHOUT ANCILLARY SERVICES
CCC_10002097_2,24/05/2022,Building Services,WWW.NISBETS.COM 0845 1110281,62.39,General Expense,5964,CATALOG MERCHANT
CCC_10002097_1,24/05/2022,Building Services,TESCO STORES 5408 CHELMSFORD,6,General Expense,5411,GROCERY STORES OR SUPERMARKETS
CCC_10001292_2,24/05/2022,Parking & Highways Operations,AMZNMKTPLACE AMAZON.CO AMAZON.CO.UK,21.3,New Equipment,5999,MISCELLANEOUS & SPECIALTY STORES
CCC_10002075_3,24/05/2022,Parking & Highways Operations,CYCLE PARKING CHELMSFORD,1,General Expense,4789,TRANSPORTATION SERVICES (NEC)
CCC_10000959_6,24/05/2022,Parks & Green Spaces,S.R.B.E. LTD MILTON KEYNES,220,Grounds Maintenance Materials,7394," EQUIP, TOOL, FURNITURE, APPLIANCE LEASE/RENTAL "
CCC_10001003_1,24/05/2022,Parks & Green Spaces,TESCO STORES 5408 CHELMSFORD,8.55,General Expense,5411,GROCERY STORES OR SUPERMARKETS
CCC_10000991_22,24/05/2022,South Essex Parking Partnership,TECH DOCTOR - KILMARNO CHELMSFORD,6.67,New Equipment,4812,TELECOMMUNCATIONS EQUIPMENT INCLUDING TELEPHONE SALES
CCC_10000936_2,24/05/2022,Parking & Highways Operations,AMZNBUSINESS 255JI9RD4 LUXEMBOURG L,39,Printing & Stationary,5999,MISCELLANEOUS & SPECIALTY STORES
CCC_10000896_8,25/05/2022,Marketing & Communications Team,FACEBK  VLTK5DTY22 FB.ME/ADS,12,Advertising,7311,ADVERTISING SERVICES
CCC_10000896_7,25/05/2022,Marketing & Communications Team,LINKEDIN-789 2879234 LNKD.IN/BILL,56,Advertising,7311,ADVERTISING SERVICES
CCC_10000942_3,25/05/2022,Parks & Green Spaces,AMZNMKTPLACE AMAZON.CO.UK,61.99,General Expense,5999,MISCELLANEOUS & SPECIALTY STORES
CCC_10000995_1,25/05/2022,Leisure & Heritage Services,AMZNMKTPLACE AMAZON.CO.UK,23.32,New Equipment,5999,MISCELLANEOUS & SPECIALTY STORES
CCC_10000962_26,25/05/2022,Leisure & Heritage Services,THE STABLE CAFE CATERING,13.5,General Expense,5812,RESTAURANTS OR EATING PLACES
CCC_10000937_6,25/05/2022,Legal & Democratic Services,AMZNMKTPLACE AMAZON.CO AMAZON.CO.UK,11.72,Printing & Stationary,5999,MISCELLANEOUS & SPECIALTY STORES
CCC_10000991_18,25/05/2022,South Essex Parking Partnership,CHELMSFORD SAFETY SUPP CHELMSFORD,90.2,Clothing & Uniforms,5047," MEDICAL, DENTAL, OPHTHALMIC AND HOSPITAL EQUIP "
CCC_10000987_1,25/05/2022,Parking & Highways Operations,GSF CAR PARTS SPRINGFIELD,9.89,General Expense,5013,MOTOR VEHICLE SUPPLIES AND NEW PARTS
CCC_10001001_8,25/05/2022,South Essex Parking Partnership,CHELMSFORD SAFETY SUPP CHELMSFORD,17,Clothing & Uniforms,5047," MEDICAL, DENTAL, OPHTHALMIC AND HOSPITAL EQUIP "
CCC_10000933_1,25/05/2022,"Museums, Theatres & Cultural Services",GREATER ANGLIA 2727,26.92,Public Transport,4112,PASSENGER RAILWAYS
CCC_10002149_33,25/05/2022,Parking & Highways Operations,CYCLE PARKING CHELMSFORD,1,General Expense,4789,TRANSPORTATION SERVICES (NEC)
CCC_10002075_1,25/05/2022,Parking & Highways Operations,CYCLE PARKING CHELMSFORD,-1,General Expense,4789,TRANSPORTATION SERVICES (NEC)
CCC_10001014_10,25/05/2022,Street Care & Performance,AMZNMKTPLACE AMAZON.CO.UK,26.97,Printing & Stationary,5999,MISCELLANEOUS & SPECIALTY STORES
CCC_10001241_2,25/05/2022,"Museums, Theatres & Cultural Services",THETRAINLINE.COM +443332022222,68.36,Public Transport,4112,PASSENGER RAILWAYS
CCC_10001008_1,25/05/2022,Development Management,AMZNMKTPLACE AMAZON.CO.UK,12.42,Printing & Stationary,5999,MISCELLANEOUS & SPECIALTY STORES
CCC_10000962_27,25/05/2022,Leisure & Heritage Services,TESCO STORE 2330 CHELMSFORD 2,10.5,General Expense,5411,GROCERY STORES OR SUPERMARKETS
CCC_10001162_22,25/05/2022,Parks & Green Spaces,GREGGS PLC CHELMSFORD,18.55,General Expense,5812,RESTAURANTS OR EATING PLACES
CCC_10000991_16,26/05/2022,South Essex Parking Partnership,AMZNMKTPLACE AMAZON.CO.UK,64.97,Clothing & Uniforms,5999,MISCELLANEOUS & SPECIALTY STORES
CCC_10000999_1,26/05/2022,Leisure & Heritage Services,AMAZON.CO.UK 2G7ZG8444 AMAZON.CO.UK,11.66,New Equipment,5969,DIRECT MARKETERS (NEC)
CCC_10001004_3,26/05/2022,Leisure & Heritage Services,ROTACLOUD YORK,49,General Expense,5734,COMPUTER SOFTWARE STORES
CCC_10001020_4,26/05/2022,"Museums, Theatres & Cultural Services",MFG OAKLANDS CHELMSFORD,25.01,Fuel,5541,GAS/SERVICE STATIONS WITH/WITHOUT ANCILLARY SERVICES
CCC_10000937_5,26/05/2022,Legal & Democratic Services,AMZNMKTPLACE AMAZON.CO AMAZON.CO.UK,7.55,Printing & Stationary,5999,MISCELLANEOUS & SPECIALTY STORES
CCC_10001074_22,26/05/2022,Parks & Green Spaces,B & Q 1188 CHELMSFORD,7.98,General Expense,5200,HOME SUPPLY WAREHOUSE STORES
CCC_10001014_9,26/05/2022,Street Care & Performance,AMZNMKTPLACE AMAZON.CO.UK,20.49,General Expense,5999,MISCELLANEOUS & SPECIALTY STORES
CCC_10001023_1,26/05/2022,"Museums, Theatres & Cultural Services",PRIMARK CHELMSFORD,7.5,Printing & Stationary,5651,FAMILY CLOTHING STORES
CCC_10000835_4,26/05/2022,Marketing & Communications Team,WWW.SOLOPRESS.COM SOUTHEND-ON-S,127.88,Printing & Stationary,2741,MISCELLANEOUS PUBLISHING AND PRINTING
CCC_10000991_17,26/05/2022,South Essex Parking Partnership,AMZNMKTPLACE AMAZON.CO AMAZON.CO.UK,8.32,New Equipment,5999,MISCELLANEOUS & SPECIALTY STORES
CCC_10000958_2,26/05/2022,Leisure & Heritage Services,SPORTSDIRECT 222 08443325222,20.42,General Expense,5941,SPORTING GOODS STORES
CCC_10000931_3,26/05/2022,Public Health & Protection Services,AMZNMKTPLACE AMAZON.CO AMAZON.CO.UK,32.25,General Expense,5999,MISCELLANEOUS & SPECIALTY STORES
CCC_10001028_2,26/05/2022,Leisure & Heritage Services,PRINT MARKETPLACE 40 2802345,36.33,Printing & Stationary,7338," PRINT SHOPS, QUICK COPY SERVICES OR REPRODUCTION SERVICES "
CCC_10001074_20,27/05/2022,Parks & Green Spaces,TESCO-STORES 6724 CHELMSFORD,3,General Expense,5411,GROCERY STORES OR SUPERMARKETS
CCC_10000931_2,27/05/2022,Public Health & Protection Services,SAINSBURYS S/MKTS CHELMSFORD 41,4.5,General Expense,5411,GROCERY STORES OR SUPERMARKETS
CCC_10000944_1,27/05/2022,Marketing & Communications Team,CANVA  I03434-0467192 CAMDEN,32.69,Advertising,7221,PHOTOGRAPHIC STUDIOS
CCC_10001216_1,27/05/2022,Parks & Green Spaces,AMZNBUSINESS 2G5QB0Z44 LUXEMBOURG L,17.12,Grounds Maintenance Materials,5999,MISCELLANEOUS & SPECIALTY STORES
CCC_10001074_21,27/05/2022,Parks & Green Spaces,WILKO RETAIL LIMITED CHELMSFORD,3.8,General Expense,5399,GENERAL MERCHANDISE OR CONVENIENCE FOOD STORES
CCC_10001027_1,27/05/2022,"Museums, Theatres & Cultural Services",EBAY O 20-08676-77339 LONDON,15.25,Museum Exhibits,5311,DEPARTMENT STORES
CCC_10001078_8,27/05/2022,"Museums, Theatres & Cultural Services",AP LAMP DIS CM1 3AE,12,General Expense,5999,MISCELLANEOUS & SPECIALTY STORES
CCC_10000970_1,27/05/2022,Leisure & Heritage Services,THE RANGE COLCHESTER,17.99,New Equipment,5719,HOME FURNISHING SPECIALTY STORES -- MISCELLANEOUS
CCC_10001080_5,27/05/2022,Leisure & Heritage Services,CHELMER FLORIST CHELMSFORD,58.33,General Expense,5992,FLORISTS
CCC_10000938_3,27/05/2022,Leisure & Heritage Services,TEAPIGS LTD BRENTFORD,57,General Expense,5499,MISC FOOD STORES - SPECIALTY MARKETS & CONVENIENCE
CCC_10000943_2,28/05/2022,Operational Services,FACEBK BPGK2F7RM2 FB.ME/ADS,89.34,Advertising,7311,ADVERTISING SERVICES
CCC_10001015_2,28/05/2022,Digital Services,MSCRM-ADDONS.COM(PTM) GRAZ,4003.66,General Expense,5734,COMPUTER SOFTWARE STORES
CCC_10000941_1,28/05/2022,Operational Services,10TO8.COM CAMBRIDGE,60,General Expense,5817,DIGITAL GOODS: APPLICATIONS (EXCLUDES GAMES)
CCC_10001028_1,29/05/2022,Leisure & Heritage Services,PRINT MARKETPLACE 40 2802345,39.11,Printing & Stationary,7338," PRINT SHOPS, QUICK COPY SERVICES OR REPRODUCTION SERVICES "
CCC_10001014_8,29/05/2022,Street Care & Performance,AMZNMKTPLACE AMAZON.CO.UK,17.29,General Expense,5999,MISCELLANEOUS & SPECIALTY STORES
CCC_10001014_7,29/05/2022,Street Care & Performance,AMZNBUSINESS 2G1NF5T64 AMAZON.CO.UK,13.98,General Expense,5999,MISCELLANEOUS & SPECIALTY STORES
CCC_10001160_26,30/05/2022,Housing Services,BRAINTREE DC BRAINTREE,125.48,General Expense,9399,GOVERNMENT SERVICES (NEC) OR FIRE DEPARTMENTS
CCC_10001037_13,30/05/2022,Parks & Green Spaces,RONTEC WEST CHELMS CHELMSFORD,9.99,General Expense,5541,GAS/SERVICE STATIONS WITH/WITHOUT ANCILLARY SERVICES
CCC_10001046_1,30/05/2022,Human Resources,TOTALJOBS GROUP LTD LONDON,165,Advertising,7361,EMPLOYMENT AGENCIES OR TEMPORARY HELP SERVICES
CCC_10001162_21,30/05/2022,Parks & Green Spaces,HOMEBASE LTD CHELMSFORD,57.75,General Expense,5200,HOME SUPPLY WAREHOUSE STORES
CCC_10001004_2,30/05/2022,Leisure & Heritage Services,CURRYS ONLINE HEMEL HEMPSTE,49.99,New Equipment,5732,ELECTRONIC SALES
CCC_10001160_27,30/05/2022,Housing Services,BRAINTREE DC BRAINTREE,42.93,General Expense,9399,GOVERNMENT SERVICES (NEC) OR FIRE DEPARTMENTS
CCC_10001019_3,30/05/2022,"Museums, Theatres & Cultural Services",IKEA LTD 262 LAKESIDE WEST THURROCK,2.08,New Equipment,5712," FURNITURE, HOME FURNISHINGS & EQUIP STORES EXCL APPLIANCES "
CCC_10000972_4,30/05/2022,Operational Services,AMZNMKTPLACE AMAZON.CO.UK,12.98,General Expense,5999,MISCELLANEOUS & SPECIALTY STORES
CCC_10001160_19,30/05/2022,Housing Services,BRAINTREE DC BRAINTREE,329.16,General Expense,9399,GOVERNMENT SERVICES (NEC) OR FIRE DEPARTMENTS
CCC_10000972_3,30/05/2022,Operational Services,AMZNMKTPLACE AMAZON.CO AMAZON.CO.UK,14.75,General Expense,5999,MISCELLANEOUS & SPECIALTY STORES
CCC_10000942_2,30/05/2022,Parks & Green Spaces,ALLSOPS CTF LTD. WORTHING BN11,308.2,General Expense,7261,CREMATORIES OR FUNERAL SERVICES
CCC_10002149_31,30/05/2022,Parking & Highways Operations,CYCLE PARKING CHELMSFORD,1,General Expense,9399,GOVERNMENT SERVICES (NEC) OR FIRE DEPARTMENTS
CCC_10002149_30,30/05/2022,Parking & Highways Operations,CYCLE PARKING CHELMSFORD,1,General Expense,9399,GOVERNMENT SERVICES (NEC) OR FIRE DEPARTMENTS
CCC_10001160_28,30/05/2022,Housing Services,COLCHESTER BC ONLINE COLCHESTER,127,General Expense,9399,GOVERNMENT SERVICES (NEC) OR FIRE DEPARTMENTS
CCC_10002149_32,30/05/2022,Parking & Highways Operations,CYCLE PARKING CHELMSFORD,1,General Expense,9399,GOVERNMENT SERVICES (NEC) OR FIRE DEPARTMENTS
CCC_10001001_7,31/05/2022,South Essex Parking Partnership,POLICE SUPPLIES KIRKBY,60.79,Clothing & Uniforms,5699,APPAREL AND ACCESSORY SHOPS -- MISCELLANEOUS
CCC_10001831_8,31/05/2022,Digital Services,TRAINLINE.COM LONDON,254.13,Public Transport,4112,PASSENGER RAILWAYS
CCC_10001216_3,31/05/2022,Parks & Green Spaces,AMZNMKTPLACE AMAZON.CO.UK,9.39,Grounds Maintenance Materials,5999,MISCELLANEOUS & SPECIALTY STORES
CCC_10000962_25,31/05/2022,Leisure & Heritage Services,AMZNMKTPLACE AMAZON.CO.UK,19.49,New Equipment,5999,MISCELLANEOUS & SPECIALTY STORES
CCC_10000822_2,31/05/2022,Leisure & Heritage Services,PRINT MARKETPLACE 40 2802345,175.87,Printing & Stationary,7338," PRINT SHOPS, QUICK COPY SERVICES OR REPRODUCTION SERVICES "
CCC_10000962_24,31/05/2022,Leisure & Heritage Services,AMAZON.CO.UK 2G3OI0VY4 AMAZON.CO.UK,3.9,General Expense,5969,DIRECT MARKETERS (NEC)
CCC_10001037_12,31/05/2022,Parks & Green Spaces,B & Q 1188 CHELMSFORD,22.95,Grounds Maintenance Materials,5200,HOME SUPPLY WAREHOUSE STORES
CCC_10000822_3,31/05/2022,Leisure & Heritage Services,PRINT MARKETPLACE 40 2802345,29.28,Printing & Stationary,7338," PRINT SHOPS, QUICK COPY SERVICES OR REPRODUCTION SERVICES "
CCC_10001160_25,31/05/2022,Housing Services,BRAINTREE DC BRAINTREE,937.85,General Expense,9399,GOVERNMENT SERVICES (NEC) OR FIRE DEPARTMENTS
CCC_10001216_4,31/05/2022,Parks & Green Spaces,AMZNMKTPLACE AMAZON.CO.UK,9.98,Grounds Maintenance Materials,5999,MISCELLANEOUS & SPECIALTY STORES
CCC_10001162_20,31/05/2022,Parks & Green Spaces,PROTEK PRODUCTS SHEPTON MALLE,106.2,General Expense,5198," PAINTS, VARNISHES AND SUPPLIES "
CCC_10001216_2,31/05/2022,Parks & Green Spaces,SCREWFIX DIR LTD CHELMFOR1867,13.74,Grounds Maintenance Materials,5211,LUMBER AND BUILDING MATERIALS STORES
CCC_10001012_7,31/05/2022,Digital Services,123 REG LTD 03454502310,119.92,Publications,4816,COMPUTER NETWORK/INFO SVCS
CCC_10000875_4,31/05/2022,Marketing & Communications Team,FACEBK  D4AVJET9K2 FB.ME/ADS,363.58,Advertising,7311,ADVERTISING SERVICES
CCC_10000956_1,01/06/2022,Customer Services,AMZNMKTPLACE AMAZON.CO.UK,8.38,Printing & Stationary,5999,MISCELLANEOUS & SPECIALTY STORES
CCC_10001162_19,01/06/2022,Parks & Green Spaces,HOME BARGAINS CHELMSFORD,8.79,General Expense,5251,HARDWARE STORES
CCC_10001160_23,01/06/2022,Housing Services,BRAINTREE DC BRAINTREE,128.51,General Expense,9399,GOVERNMENT SERVICES (NEC) OR FIRE DEPARTMENTS
CCC_10000953_2,01/06/2022,Chief Executive's Office,IKEA LTD 262 LAKESIDE WEST THURROCK,3,General Expense,5712," FURNITURE, HOME FURNISHINGS & EQUIP STORES EXCL APPLIANCES "
CCC_10000992_5,01/06/2022,Parks & Green Spaces,AMZNMKTPLACE AMAZON.CO.UK,8.29,Printing & Stationary,5999,MISCELLANEOUS & SPECIALTY STORES
CCC_10000997_2,01/06/2022,Leisure & Heritage Services,WWW.CHELMSFORD.GOV CHELMSFORD,3,Car Parking,9399,GOVERNMENT SERVICES (NEC) OR FIRE DEPARTMENTS
CCC_10000952_9,01/06/2022,"Museums, Theatres & Cultural Services",AMZNMKTPLACE AMAZON.CO.UK,7.67,Printing & Stationary,5999,MISCELLANEOUS & SPECIALTY STORES
CCC_10001218_2,01/06/2022,Parks & Green Spaces,LAND REGISTRY ECOM CCC LONDON,5,Grounds Maintenance Materials,9399,GOVERNMENT SERVICES (NEC) OR FIRE DEPARTMENTS
CCC_10001162_16,01/06/2022,Parks & Green Spaces,D. BYFORD & SONS COLCHESTER CO,35.4,General Expense,5193," FLORIST SUPPLIES, NURSERY STOCK AND FLOWERS "
CCC_10000945_1,01/06/2022,Marketing & Communications Team,FACEBK WD2K3EFY52 FB.ME/ADS,339.05,Advertising,7311,ADVERTISING SERVICES
CCC_10001162_17,01/06/2022,Parks & Green Spaces,MARKS&SPENCER PLC SF CHLEMSFORD SF,74.2,General Expense,5411,GROCERY STORES OR SUPERMARKETS
CCC_10001037_11,01/06/2022,Parks & Green Spaces,CURRYS CHELMSFORD CHELMSFORD,149.99,New Equipment,5732,ELECTRONIC SALES
CCC_10000957_1,01/06/2022,Marketing & Communications Team,WWW.SOLOPRESS.COM SOUTHEND-ON-S,40.36,Printing & Stationary,2741,MISCELLANEOUS PUBLISHING AND PRINTING
CCC_10001162_18,01/06/2022,Parks & Green Spaces,TESCO STORE 2330 CHELMSFORD 2,51.09,General Expense,5411,GROCERY STORES OR SUPERMARKETS
CCC_10001218_1,01/06/2022,Parks & Green Spaces,WWW.DEEDFLOW.CO.UK 07540 853233,35.94,Grounds Maintenance Materials,7375,INFORMATION RETRIEVAL SERVICES
CCC_10001160_24,01/06/2022,Housing Services,COLCHESTER BC ONLINE COLCHESTER,146.12,General Expense,9399,GOVERNMENT SERVICES (NEC) OR FIRE DEPARTMENTS
CCC_10001292_1,01/06/2022,Parking & Highways Operations,AMZNMKTPLACE AMAZON.CO AMAZON.CO.UK,-25.56,New Equipment,5999,MISCELLANEOUS & SPECIALTY STORES
CCC_10000956_2,01/06/2022,Customer Services,AMZNMKTPLACE AMAZON.CO.UK,19.69,Printing & Stationary,5999,MISCELLANEOUS & SPECIALTY STORES
CCC_10001162_15,02/06/2022,Parks & Green Spaces,MARKS&SPENCER PLC SF CHLEMSFORD SF,70.05,General Expense,5411,GROCERY STORES OR SUPERMARKETS
CCC_10000985_1,03/06/2022,"Museums, Theatres & Cultural Services",AMZNMKTPLACE AMAZON.CO.UK,19.64,Museum Exhibits,5999,MISCELLANEOUS & SPECIALTY STORES
CCC_10000948_1,03/06/2022,Marketing & Communications Team,GOOGLE ADS9290904130 DUBLIN,264.93,Advertising,7311,ADVERTISING SERVICES
CCC_10000986_1,03/06/2022,"Museums, Theatres & Cultural Services",AMZNMKTPLACE AMAZON.CO.UK,2.71,Museum Exhibits,5999,MISCELLANEOUS & SPECIALTY STORES
CCC_10001037_10,04/06/2022,Parks & Green Spaces,TESCO-STORES 6724 CHELMSFORD,12.7,General Expense,5411,GROCERY STORES OR SUPERMARKETS
CCC_10000992_4,05/06/2022,Parks & Green Spaces,AMZNMKTPLACE AMAZON.CO.UK,96.6,New Equipment,5999,MISCELLANEOUS & SPECIALTY STORES
CCC_10000935_1,05/06/2022,Digital Services,AMAZON.CO.UK 2G1CH2U14 AMAZON.CO.UK,16.72,Printing & Stationary,5969,DIRECT MARKETERS (NEC)
CCC_10001006_1,06/06/2022,Spatial Planning,PPOINT_ PARK STORES 62 WITHAM,22.8,Publications,5499,MISC FOOD STORES - SPECIALTY MARKETS & CONVENIENCE
CCC_10000952_8,06/06/2022,"Museums, Theatres & Cultural Services",ROTACLOUD YORK,48,Employee Subscriptions,5734,COMPUTER SOFTWARE STORES
CCC_10000946_4,06/06/2022,Leisure & Heritage Services,WWW.SCREWFIX.COM YEOVIL,69.72,Grounds Maintenance Materials,5211,LUMBER AND BUILDING MATERIALS STORES
CCC_10001011_1,06/06/2022,South Essex Parking Partnership,LAVISH CAR WASH BRENTWOOD,41.67,General Expense,7542,CAR WASHES
CCC_10001218_3,06/06/2022,Parks & Green Spaces,THE PINK HOUSE KINGS LYNN,259,Grounds Maintenance Materials,5261,GARDEN AND LAWN SUPPLY STORES OR NURSERIES
CCC_10001162_14,06/06/2022,Parks & Green Spaces,TESCO STORE 2330 CHELMSFORD 2,96,General Expense,5411,GROCERY STORES OR SUPERMARKETS
CCC_10002149_27,06/06/2022,Parking & Highways Operations,CYCLE PARKING CHELMSFORD,1,General Expense,9399,GOVERNMENT SERVICES (NEC) OR FIRE DEPARTMENTS
CCC_10000984_1,06/06/2022,"Museums, Theatres & Cultural Services",WHALEYS /BRADFORD/ LTD BRADFORD,205,Museum Exhibits,5999,MISCELLANEOUS & SPECIALTY STORES
CCC_10000967_2,06/06/2022,Leisure & Heritage Services,MELBOURNE COOP 01245 347774,3.3,New Equipment,5411,GROCERY STORES OR SUPERMARKETS
CCC_10001935_5,06/06/2022,Revenue and Benefit Services,SOUTHEND COUNTY WWW.JUCTIC.GO,158,General Expense,9222,FINES
CCC_10002149_29,06/06/2022,Parking & Highways Operations,CYCLE PARKING CHELMSFORD,1,General Expense,9399,GOVERNMENT SERVICES (NEC) OR FIRE DEPARTMENTS
CCC_10001007_1,06/06/2022,Public Health & Protection Services,INTERFLORA BRITISH UNI SLEAFORD,69,General Expense,5992,FLORISTS
CCC_10000955_11,06/06/2022,Operational Services,CARTRIDGE SAVE STOCKPORT,74.47,Vehicle Repairs,5111," STATIONERY, OFFICE SUPPLIES, PRINTING AND WRITING PAPER "
CCC_10000983_1,06/06/2022,"Museums, Theatres & Cultural Services",AMZNMKTPLACE AMAZON.CO.UK,4.99,Museum Exhibits,5999,MISCELLANEOUS & SPECIALTY STORES
CCC_10002149_28,06/06/2022,Parking & Highways Operations,CYCLE PARKING CHELMSFORD,1,General Expense,9399,GOVERNMENT SERVICES (NEC) OR FIRE DEPARTMENTS
CCC_10000969_1,07/06/2022,Leisure & Heritage Services,BATTERYSTATION.CO.UK BRADFORD BD1,65.22,New Equipment,5999,MISCELLANEOUS & SPECIALTY STORES
CCC_10001218_4,07/06/2022,Parks & Green Spaces,HOMEBASE LTD CHELMSFORD,64.42,Grounds Maintenance Materials,5200,HOME SUPPLY WAREHOUSE STORES
CCC_10000926_7,07/06/2022,Human Resources,GREATERANGLIACOM LONDON,37.7,Public Transport,4112,PASSENGER RAILWAYS
CCC_10001004_1,07/06/2022,Leisure & Heritage Services,SOUNDTRACK YOUR BRAND STOCKHOLM,35,General Expense,5815," DIGITAL GOODS MEDIA: BOOKS, MOVIES, MUSIC "
CCC_10000955_10,07/06/2022,Operational Services,THURSTON ENGINEERI ONGAR,297.5,Vehicle Repairs,8911," ARCHITECTURAL, ENGINEERING AND SURVEYING SERVICES "
CCC_10000962_23,07/06/2022,Leisure & Heritage Services,WWW.OFCOM.ORG.UK LONDON SE1,75,General Expense,8699,MEMBERSHIP ORGANIZATIONS NOT ELSEWHERE CLASSIFIED
CCC_10000952_6,07/06/2022,"Museums, Theatres & Cultural Services",AMZNMKTPLACE AMAZON.CO.UK,5.74,Printing & Stationary,5999,MISCELLANEOUS & SPECIALTY STORES
CCC_10001163_1,07/06/2022,Leisure & Heritage Services,J P LENNARD LTD RUGBY,222.2,New Equipment,5941,SPORTING GOODS STORES
CCC_10001074_19,07/06/2022,Parks & Green Spaces,HOMEBASE LTD CHELMSFORD,23.15,General Expense,5200,HOME SUPPLY WAREHOUSE STORES
CCC_10000942_1,07/06/2022,Parks & Green Spaces,AMZNMKTPLACE AMAZON.CO.UK,10.48,Printing & Stationary,5999,MISCELLANEOUS & SPECIALTY STORES
CCC_10001218_5,07/06/2022,Parks & Green Spaces,AMZNMKTPLACE AMAZON.CO.UK,11.24,Grounds Maintenance Materials,5999,MISCELLANEOUS & SPECIALTY STORES
CCC_10000946_6,07/06/2022,Leisure & Heritage Services,WWW.SCREWFIX.COM YEOVIL,22.91,Grounds Maintenance Materials,5211,LUMBER AND BUILDING MATERIALS STORES
CCC_10000936_4,07/06/2022,Parking & Highways Operations,AMZNBUSINESS 2C2LQ64N4 LUXEMBOURG L,30.57,Printing & Stationary,5999,MISCELLANEOUS & SPECIALTY STORES
CCC_10001055_6,07/06/2022,Parks & Green Spaces,KDR SEATING LTD SHILTON,366.95,Vehicle Repairs,5714," DRAPERY, WINDOWCOVERING, AND UPHOLSTERY STORES "
CCC_10000962_21,07/06/2022,Leisure & Heritage Services,BOOKER LIMITED CHELMSF CHELMSFORD,196.54,General Expense,5811,CATERERS
CCC_10001074_18,07/06/2022,Parks & Green Spaces,TESCO-STORES 6724 CHELMSFORD,6.15,General Expense,5411,GROCERY STORES OR SUPERMARKETS
CCC_10000952_7,07/06/2022,"Museums, Theatres & Cultural Services",AMZNMKTPLACE AMAZON.CO.UK,36.79,Printing & Stationary,5999,MISCELLANEOUS & SPECIALTY STORES
CCC_10000982_1,07/06/2022,"Museums, Theatres & Cultural Services",AMZNMKTPLACE AMAZON.CO.UK,20.96,Museum Exhibits,5999,MISCELLANEOUS & SPECIALTY STORES
CCC_10000962_22,07/06/2022,Leisure & Heritage Services,BOOKER LIMITED CHELMSF CHELMSFORD,103.62,General Expense,5811,CATERERS
CCC_10000955_9,07/06/2022,Operational Services,MILLCOT TOOLS CHELMSFORD,17.08,New Equipment,5072," HARDWARE, PLUMBING, HEATING EQUIPMENT AND SUPPLIES "
CCC_10000930_2,08/06/2022,Public Health & Protection Services,GREATER ANGLIA 4278,28.6,Public Transport,4112,PASSENGER RAILWAYS
CCC_10000962_19,08/06/2022,Leisure & Heritage Services,TESCO STORE 2330 CHELMSFORD 2,14,General Expense,5411,GROCERY STORES OR SUPERMARKETS
CCC_10001180_5,08/06/2022,Public Health & Protection Services,AMZ AMAZON US 800-279-6620,-3.02,New Equipment,5942,BOOK STORES
CCC_10001020_3,08/06/2022,"Museums, Theatres & Cultural Services",SAINSBURYS S/MKTS CHELMSFORD 41,4.79,Training Expenses,5411,GROCERY STORES OR SUPERMARKETS
CCC_10000962_20,08/06/2022,Leisure & Heritage Services,B&Q COLCHESTER TOLLGAT COLCHESTE2722,4.93,New Equipment,5211,LUMBER AND BUILDING MATERIALS STORES
CCC_10000957_2,08/06/2022,Marketing & Communications Team,WWW.SOLOPRESS.COM SOUTHEND-ON-S,40.36,Printing & Stationary,2741,MISCELLANEOUS PUBLISHING AND PRINTING
CCC_10000936_5,08/06/2022,Parking & Highways Operations,FR JONES AND SON LONDON,-345,Printing & Stationary,5251,HARDWARE STORES
CCC_10001001_6,08/06/2022,South Essex Parking Partnership,POST OFFICE COUNTER CHELMSFORD,12.87,General Expense,9402,POSTAGE STAMPS
CCC_10001014_6,08/06/2022,Street Care & Performance,WH SMITH CHELMSFORD,5.99,Printing & Stationary,5994,NEWS DEALERS AND NEWSSTANDS
CCC_10000949_6,08/06/2022,Public Health & Protection Services,AMZNMKTPLACE AMAZON.CO.UK,81.14,General Expense,5999,MISCELLANEOUS & SPECIALTY STORES
CCC_10000996_1,08/06/2022,Leisure & Heritage Services,SP NEUFF ATHLETIC IVYBRIDGE,23.33,New Equipment,5941,SPORTING GOODS STORES
CCC_10000949_4,09/06/2022,Public Health & Protection Services,DIGITAL ID STOCKPORT,106.5,New Equipment,5045,COMPUTERS AND COMPUTER PERIPHERAL EQUIPMENT AND SOFTWARE
CCC_10000959_22,09/06/2022,Parks & Green Spaces,AUTODOC - 68247416 BERLIN,96.87,Grounds Maintenance Materials,5533," AUTOMOTIVE PARTS, ACCESSORIES STORES "
CCC_10000955_8,09/06/2022,Operational Services,UKSEALANTS.CO.UK NORWICH,123.47,Vehicle Repairs,5231," GLASS, PAINT OR WALLPAPER STORES "
CCC_10000972_2,09/06/2022,Operational Services,WWW.EXPORTAGLOBAL.CO.U KINROSS,431.18,New Equipment,4214," MOTOR FREIGHT CARRIERS, TRUCK-LOCAL/LONG "
CCC_10001014_4,09/06/2022,Street Care & Performance,AMZNMKTPLACE AMAZON.CO AMAZON.CO.UK,9.49,Printing & Stationary,5999,MISCELLANEOUS & SPECIALTY STORES
CCC_10000936_6,09/06/2022,Parking & Highways Operations,AMZNMKTPLACE AMAZON.CO AMAZON.CO.UK,13.32,Printing & Stationary,5999,MISCELLANEOUS & SPECIALTY STORES
CCC_10001037_9,09/06/2022,Parks & Green Spaces,AMAZON.CO.UK 2C88J9AK4 AMAZON.CO.UK,20.79,Printing & Stationary,5969,DIRECT MARKETERS (NEC)
CCC_10000962_17,09/06/2022,Leisure & Heritage Services,AMZNMKTPLACE AMAZON.CO.UK,131.08,General Expense,5999,MISCELLANEOUS & SPECIALTY STORES
CCC_10001927_33,09/06/2022,Public Health & Protection Services,TRAINLINE LONDON,35.87,Public Transport,4112,PASSENGER RAILWAYS
CCC_10001014_3,09/06/2022,Street Care & Performance,PAYPAL  ASPOD 35314369001,19.86,New Equipment,5999,MISCELLANEOUS & SPECIALTY STORES
CCC_10001014_5,09/06/2022,Street Care & Performance,AMZNMKTPLACE AMAZON.CO AMAZON.CO.UK,14.79,Printing & Stationary,5999,MISCELLANEOUS & SPECIALTY STORES
CCC_10000940_3,09/06/2022,Parks & Green Spaces,DVLA VEHICLE TAX 0300 1234321,292.5,Vehicle Tax,9311,TAX PAYMENTS
CCC_10001012_6,09/06/2022,Digital Services,WWW.ALIEXPRESS.COM INTERNET,167.47,General Expense,5964,CATALOG MERCHANT
CCC_10001012_4,09/06/2022,Digital Services,COMMS EXPRESS LTD CHELMSFORD,82.64,General Expense,5732,ELECTRONIC SALES
CCC_10001012_5,09/06/2022,Digital Services,COMMS EXPRESS LTD CHELMSFORD,57.65,General Expense,5732,ELECTRONIC SALES
CCC_10000940_4,09/06/2022,Parks & Green Spaces,OEPPWEBECOM SWANSEA,88.34,Vehicle Tax,9399,GOVERNMENT SERVICES (NEC) OR FIRE DEPARTMENTS
CCC_10000907_5,09/06/2022,Operational Services,AMZNMKTPLACE AMAZON.CO.UK,8.32,New Equipment,5999,MISCELLANEOUS & SPECIALTY STORES
CCC_10000938_2,09/06/2022,Leisure & Heritage Services,CHARNWOOD MILLING COMP FRAMLINGHAM,76,General Expense,5995," PET SHOPS, PET FOODS AND SUPPLIES STORES "
CCC_10000907_7,09/06/2022,Operational Services,AMZNMKTPLACE AMAZON.CO.UK,12.49,Printing & Stationary,5999,MISCELLANEOUS & SPECIALTY STORES
CCC_10000961_1,09/06/2022,"Procurement, Risk and Insurance",THOMSON REUTERS UK LTD 08456009355,74,General Expense,8999,PROFESSIONAL SERVICES (NEC)
CCC_10000962_18,09/06/2022,Leisure & Heritage Services,AMZNMKTPLACE AMAZON.CO.UK,65.92,New Equipment,5999,MISCELLANEOUS & SPECIALTY STORES
CCC_10001192_1,10/06/2022,Leisure & Heritage Services,GREATER ANGLIA T/O CHLMSFRD 6836,24.1,Public Transport,4112,PASSENGER RAILWAYS
CCC_10001218_8,10/06/2022,Parks & Green Spaces,AMZNMKTPLACE AMAZON.CO.UK,14.57,Grounds Maintenance Materials,5999,MISCELLANEOUS & SPECIALTY STORES
CCC_10001021_1,10/06/2022,"Museums, Theatres & Cultural Services",A C LEIGH NORWICH,71.75,General Expense,7393," DETECTIVE AGENCY, PROTECTIVE SERV, GUARD DOG, ARMORED CAR "
CCC_10000968_1,10/06/2022,Leisure & Heritage Services,SCREWFIX DIR LTD CHELMFOR1867,13.32,New Equipment,5211,LUMBER AND BUILDING MATERIALS STORES
CCC_10001163_2,10/06/2022,Leisure & Heritage Services,WWW.GLASDON.COM INTERNET,314,New Equipment,7399,BUSINESS SERVICES (NEC)
CCC_10000972_1,10/06/2022,Operational Services,NCP PCN PAYMENT ONLINE,100,General Expense,7523,AUTOMOBILE PARKING OR PARKING LOTS
CCC_10001014_1,10/06/2022,Street Care & Performance,AMZNMKTPLACE AMAZON.CO AMAZON.CO.UK,8.99,Printing & Stationary,5999,MISCELLANEOUS & SPECIALTY STORES
CCC_10001012_3,10/06/2022,Digital Services,DECISO SALES B.V. MIDDELHARNIS,485.66,Capital Items,7372," COMPUTER PROGRAMMING, SYSTEMS DESIGN OR DATA PROCESSING SERV "
CCC_10001218_6,10/06/2022,Parks & Green Spaces,SUREGREEN LTD FINCHINGFIELD,90.91,Grounds Maintenance Materials,5261,GARDEN AND LAWN SUPPLY STORES OR NURSERIES
CCC_10002149_25,10/06/2022,Parking & Highways Operations,CYCLE PARKING CHELMSFORD,1,General Expense,9399,GOVERNMENT SERVICES (NEC) OR FIRE DEPARTMENTS
CCC_10001015_1,10/06/2022,Digital Services,UDEMY UDEMY.COM,72.96,General Expense,7372," COMPUTER PROGRAMMING, SYSTEMS DESIGN OR DATA PROCESSING SERV "
CCC_10001193_1,10/06/2022,Leisure & Heritage Services,GREATER ANGLIA T/O CHLMSFRD 6836,90,Public Transport,4112,PASSENGER RAILWAYS
CCC_10002149_26,10/06/2022,Parking & Highways Operations,CYCLE PARKING CHELMSFORD,1,General Expense,9399,GOVERNMENT SERVICES (NEC) OR FIRE DEPARTMENTS
CCC_10001162_13,10/06/2022,Parks & Green Spaces,D. BYFORD & SONS COLCHESTER CO,35.4,General Expense,5193," FLORIST SUPPLIES, NURSERY STOCK AND FLOWERS "
CCC_10000989_5,10/06/2022,"Museums, Theatres & Cultural Services",AMZNMKTPLACE AMAZON.CO.UK,9.98,New Equipment,5999,MISCELLANEOUS & SPECIALTY STORES
CCC_10000962_16,10/06/2022,Leisure & Heritage Services,AMAZON.CO.UK 2C2A151C4 AMAZON.CO.UK,12.45,General Expense,5969,DIRECT MARKETERS (NEC)
CCC_10002149_24,10/06/2022,Parking & Highways Operations,CYCLE PARKING CHELMSFORD,1,General Expense,9399,GOVERNMENT SERVICES (NEC) OR FIRE DEPARTMENTS
CCC_10000981_1,10/06/2022,"Museums, Theatres & Cultural Services",AMZNMKTPLACE AMAZON.CO.UK,34.16,Printing & Stationary,5999,MISCELLANEOUS & SPECIALTY STORES
CCC_10001218_7,10/06/2022,Parks & Green Spaces,MANCHESTERSAFETY. 01706 364943,69.95,Grounds Maintenance Materials,5046,COMMERCIAL EQUIPMENT (NEC)
CCC_10001019_2,10/06/2022,"Museums, Theatres & Cultural Services",AMZNMKTPLACE AMAZON.CO AMAZON.CO.UK,17.49,Museum Exhibits,5999,MISCELLANEOUS & SPECIALTY STORES
CCC_10001026_1,10/06/2022,"Museums, Theatres & Cultural Services",AMZNMKTPLACE AMAZON.CO AMAZON.CO.UK,3.71,General Expense,5999,MISCELLANEOUS & SPECIALTY STORES
CCC_10001022_1,10/06/2022,"Museums, Theatres & Cultural Services",WWW.SCREWFIX.COM YEOVIL,37.99,Clothing & Uniforms,5211,LUMBER AND BUILDING MATERIALS STORES
CCC_10001218_9,10/06/2022,Parks & Green Spaces,AMZNBUSINESS 2C7WH9PR4 AMAZON.CO.UK,44.98,Grounds Maintenance Materials,5999,MISCELLANEOUS & SPECIALTY STORES
CCC_10000994_1,10/06/2022,Leisure & Heritage Services,J AND A INTERNATIONAL SPILSBY,140.31,General Expense,5137," MEN'S, WOMEN'S AND CHILDREN'S UNIFORMS "
CCC_10000907_2,10/06/2022,Operational Services,AMZNMKTPLACE AMAZON.CO.UK,10.41,New Equipment,5999,MISCELLANEOUS & SPECIALTY STORES
CCC_10000938_1,10/06/2022,Leisure & Heritage Services,AMZNMKTPLACE AMAZON.CO.UK,37.22,Printing & Stationary,5999,MISCELLANEOUS & SPECIALTY STORES
CCC_10001021_3,10/06/2022,"Museums, Theatres & Cultural Services",AMZNMKTPLACE AMAZON.CO AMAZON.CO.UK,4.16,General Expense,5999,MISCELLANEOUS & SPECIALTY STORES
CCC_10001037_8,10/06/2022,Parks & Green Spaces,SCREWFIX DIR LTD CHELMFOR1867,39.99,New Equipment,5211,LUMBER AND BUILDING MATERIALS STORES
CCC_10000930_1,10/06/2022,Public Health & Protection Services,GREATER ANGLIA 8857,46.45,Public Transport,4112,PASSENGER RAILWAYS
CCC_10001025_1,10/06/2022,"Museums, Theatres & Cultural Services",AMZNMKTPLACE AMAZON.CO AMAZON.CO.UK,29.44,General Expense,5999,MISCELLANEOUS & SPECIALTY STORES
CCC_10001080_4,10/06/2022,Leisure & Heritage Services,TRAINLINE.COM LONDON,-54.8,Public Transport,4112,PASSENGER RAILWAYS
CCC_10001014_2,10/06/2022,Street Care & Performance,AMZNMKTPLACE AMAZON.CO AMAZON.CO.UK,6.3,Printing & Stationary,5999,MISCELLANEOUS & SPECIALTY STORES
CCC_10001020_2,10/06/2022,"Museums, Theatres & Cultural Services",MARKS&SPENCER PLC SACA CHELMSFORD SF,3.33,Training Expenses,5411,GROCERY STORES OR SUPERMARKETS
CCC_10001021_4,10/06/2022,"Museums, Theatres & Cultural Services",AMZNMKTPLACE AMAZON.CO AMAZON.CO.UK,4.47,Printing & Stationary,5999,MISCELLANEOUS & SPECIALTY STORES
CCC_10002149_20,11/06/2022,Parking & Highways Operations,CYCLE PARKING CHELMSFORD,1,General Expense,9399,GOVERNMENT SERVICES (NEC) OR FIRE DEPARTMENTS
CCC_10002149_19,11/06/2022,Parking & Highways Operations,CYCLE PARKING CHELMSFORD,1,General Expense,9399,GOVERNMENT SERVICES (NEC) OR FIRE DEPARTMENTS
CCC_10000955_6,11/06/2022,Operational Services,AMAZON PRIME 2C4FW6VU4 LUXEMBOURG,80,New Equipment,5968,CONTINUITY/SUBSCRIPTION MERCHANT
CCC_10000967_1,11/06/2022,Leisure & Heritage Services,MELBOURNE COOP 01245 347774,4.05,New Equipment,5411,GROCERY STORES OR SUPERMARKETS
CCC_10002072_1,11/06/2022,Parking & Highways Operations,TESCO STORES 2327 CHELMSFORD 1,7.5,General Expense,5411,GROCERY STORES OR SUPERMARKETS
CCC_10000989_4,11/06/2022,"Museums, Theatres & Cultural Services",AMZNMKTPLACE AMAZON.CO.UK,17.74,New Equipment,5999,MISCELLANEOUS & SPECIALTY STORES
CCC_10002149_23,11/06/2022,Parking & Highways Operations,CYCLE PARKING CHELMSFORD,1,General Expense,9399,GOVERNMENT SERVICES (NEC) OR FIRE DEPARTMENTS
CCC_10002149_22,11/06/2022,Parking & Highways Operations,CYCLE PARKING CHELMSFORD,1,General Expense,9399,GOVERNMENT SERVICES (NEC) OR FIRE DEPARTMENTS
CCC_10000955_7,11/06/2022,Operational Services,HALFORDS 0566 CHELMSFORD,18.74,Vehicle Repairs,5940,BICYCLE SHOPS -- SALES AND SERVICE
CCC_10001017_2,11/06/2022,Marketing & Communications Team,FACEBK HRXUPE7KD2 FB.ME/ADS,30.92,Advertising,7311,ADVERTISING SERVICES
CCC_10002149_18,11/06/2022,Parking & Highways Operations,CYCLE PARKING CHELMSFORD,1,General Expense,9399,GOVERNMENT SERVICES (NEC) OR FIRE DEPARTMENTS
CCC_10000946_5,11/06/2022,Leisure & Heritage Services,WWW.SCREWFIX.COM YEOVIL,11.81,Grounds Maintenance Materials,5211,LUMBER AND BUILDING MATERIALS STORES
CCC_10002149_21,11/06/2022,Parking & Highways Operations,CYCLE PARKING CHELMSFORD,1,General Expense,9399,GOVERNMENT SERVICES (NEC) OR FIRE DEPARTMENTS
CCC_10001148_1,12/06/2022,Leisure & Heritage Services,WWW.PDHSPORTS.COM INTERNET,51.62,New Equipment,5941,SPORTING GOODS STORES
CCC_10000989_3,12/06/2022,"Museums, Theatres & Cultural Services",AMZNMKTPLACE AMAZON.CO.UK,20.25,New Equipment,5999,MISCELLANEOUS & SPECIALTY STORES
CCC_10001012_2,12/06/2022,Digital Services,AMZNMKTPLACE AMAZON.CO.UK,34.97,General Expense,5999,MISCELLANEOUS & SPECIALTY STORES
CCC_10001074_17,13/06/2022,Parks & Green Spaces,ASDA SUPERSTORE CHELMSFORD,31.68,General Expense,5411,GROCERY STORES OR SUPERMARKETS
CCC_10000989_1,13/06/2022,"Museums, Theatres & Cultural Services",AMZNMKTPLACE AMAZON.CO.UK,19.94,New Equipment,5999,MISCELLANEOUS & SPECIALTY STORES
CCC_10000949_3,13/06/2022,Public Health & Protection Services,DVLA VEHICLE TAX 0300 1234321,162,Vehicle Tax,9311,TAX PAYMENTS
CCC_10000949_2,13/06/2022,Public Health & Protection Services,DVLA VEHICLE TAX 0300 1234321,162,Vehicle Tax,9311,TAX PAYMENTS
CCC_10001223_23,13/06/2022,Housing Services,ESSEX COUNTY COUNCI EC CHELMSFORD,11,General Expense,9399,GOVERNMENT SERVICES (NEC) OR FIRE DEPARTMENTS
CCC_10000943_1,13/06/2022,Operational Services,SQ  MONARCH SPRINGFIELD,50,Clothing & Uniforms,7230,BARBER OR BEAUTY SHOPS
CCC_10001074_16,13/06/2022,Parks & Green Spaces,TESCO-STORES 6724 CHELMSFORD,2.25,General Expense,5411,GROCERY STORES OR SUPERMARKETS
CCC_10001223_22,13/06/2022,Housing Services,REGISTER OFFICE BARKING,13.5,General Expense,9399,GOVERNMENT SERVICES (NEC) OR FIRE DEPARTMENTS
CCC_10000989_2,13/06/2022,"Museums, Theatres & Cultural Services",AMZNMKTPLACE AMAZON.CO.UK,4.39,New Equipment,5999,MISCELLANEOUS & SPECIALTY STORES
CCC_10000976_1,13/06/2022,Operational Services,PASS  PORTABLE APPLIAN STOCKTON ON T,120,General Expense,8734,TESTING LABORATORIES (NON-MEDICAL TESTING)
CCC_10000937_4,13/06/2022,Legal & Democratic Services,AMZNMKTPLACE AMAZON.CO AMAZON.CO.UK,7.06,Printing & Stationary,5999,MISCELLANEOUS & SPECIALTY STORES
CCC_10000953_1,13/06/2022,Chief Executive's Office,B&M 560 - CHELMSFORD CHELMSFORD,3.99,General Expense,5399,GENERAL MERCHANDISE OR CONVENIENCE FOOD STORES
CCC_10001037_7,13/06/2022,Parks & Green Spaces,SUPREME TURF & SOILS L BILLERICAY,264,Grounds Maintenance Materials,5211,LUMBER AND BUILDING MATERIALS STORES
CCC_10001162_11,13/06/2022,Parks & Green Spaces,TESCO STORE 2330 CHELMSFORD 2,75,General Expense,5411,GROCERY STORES OR SUPERMARKETS
CCC_10001162_12,13/06/2022,Parks & Green Spaces,TESCO STORE 2330 CHELMSFORD 2,30,General Expense,5411,GROCERY STORES OR SUPERMARKETS
CCC_10002149_17,14/06/2022,Parking & Highways Operations,CYCLE PARKING CHELMSFORD,1,General Expense,9399,GOVERNMENT SERVICES (NEC) OR FIRE DEPARTMENTS
CCC_10000937_3,14/06/2022,Legal & Democratic Services,AMZNMKTPLACE AMAZON.CO.UK,9.04,Printing & Stationary,5999,MISCELLANEOUS & SPECIALTY STORES
CCC_10001218_10,14/06/2022,Parks & Green Spaces,AMZNMKTPLACE AMAZON.CO.UK,14.98,Grounds Maintenance Materials,5999,MISCELLANEOUS & SPECIALTY STORES
CCC_10000991_15,14/06/2022,South Essex Parking Partnership,EXPO SUPPLIES LIMITED BIRMINGHAM,1.73,Conference Expenses,5251,HARDWARE STORES
CCC_10000937_1,14/06/2022,Legal & Democratic Services,AMZNMKTPLACE AMAZON.CO AMAZON.CO.UK,4.24,Printing & Stationary,5999,MISCELLANEOUS & SPECIALTY STORES
CCC_10000991_12,14/06/2022,South Essex Parking Partnership,AMADEUS NEC BIRMINGHAM,24.37,Conference Expenses,5811,CATERERS
CCC_10000937_2,14/06/2022,Legal & Democratic Services,AMZNMKTPLACE AMAZON.CO.UK,16.66,Printing & Stationary,5999,MISCELLANEOUS & SPECIALTY STORES
CCC_10001074_14,14/06/2022,Parks & Green Spaces,CHANDLER MATERIALS CHELMSFORD,70.62,General Expense,5211,LUMBER AND BUILDING MATERIALS STORES
CCC_10000991_14,14/06/2022,South Essex Parking Partnership,AMADEUS NEC BIRMINGHAM,2.5,Conference Expenses,5811,CATERERS
CCC_10000991_11,14/06/2022,South Essex Parking Partnership,FRESH CAMBRIDGE,9.5,Conference Expenses,5812,RESTAURANTS OR EATING PLACES
CCC_10002149_15,14/06/2022,Parking & Highways Operations,CYCLE PARKING CHELMSFORD,1,General Expense,9399,GOVERNMENT SERVICES (NEC) OR FIRE DEPARTMENTS
CCC_10001074_15,14/06/2022,Parks & Green Spaces,JAMES ODDY AND SON CHELMSFORD,45.36,General Expense,5211,LUMBER AND BUILDING MATERIALS STORES
CCC_10000962_15,14/06/2022,Leisure & Heritage Services,HOMEBASE LTD CHELMSFORD,75.15,New Equipment,5200,HOME SUPPLY WAREHOUSE STORES
CCC_10001002_1,14/06/2022,Corporate Property Services,WWW.PLANNING.CO BRISTOL,617.2,General Expense,7399,BUSINESS SERVICES (NEC)
CCC_10002149_16,14/06/2022,Parking & Highways Operations,CYCLE PARKING CHELMSFORD,1,General Expense,9399,GOVERNMENT SERVICES (NEC) OR FIRE DEPARTMENTS
CCC_10002100_1,14/06/2022,Building Services,TESCO STORES 5408 CHELMSFORD,2,General Expense,5411,GROCERY STORES OR SUPERMARKETS
CCC_10000991_13,14/06/2022,South Essex Parking Partnership,THE NEC BIRMINGHAM,14.12,Conference Expenses,7523,AUTOMOBILE PARKING OR PARKING LOTS
CCC_10000962_14,14/06/2022,Leisure & Heritage Services,WWW.SCREWFIX.COM YEOVIL,64.99,New Equipment,5211,LUMBER AND BUILDING MATERIALS STORES
CCC_10000931_1,15/06/2022,Public Health & Protection Services,HOTEL AT BOOKING.COM CAMBRIDGE,95,Accommodation,7011," LODGING,HOTELS,MOTELS,RESORTS "
CCC_10001055_5,15/06/2022,Parks & Green Spaces,CHANDLER MATERIALS CHELMSFORD,95.24,Grounds Maintenance Materials,5211,LUMBER AND BUILDING MATERIALS STORES
CCC_10001078_7,15/06/2022,"Museums, Theatres & Cultural Services",AP LAMP DIS CM1 3AE,2,General Expense,5999,MISCELLANEOUS & SPECIALTY STORES
CCC_10000991_9,15/06/2022,South Essex Parking Partnership,TESCO STORE 3177 SOUTHEND,86.83,General Expense,5411,GROCERY STORES OR SUPERMARKETS
CCC_10000955_5,15/06/2022,Operational Services,WWW.HGVDIRECT.CO.UK INTERNET,113.88,Vehicle Repairs,5533," AUTOMOTIVE PARTS, ACCESSORIES STORES "
CCC_10002142_1,15/06/2022,Parks & Green Spaces,IZ  LAEOG KETTERING,100,Employee Subscriptions,8699,MEMBERSHIP ORGANIZATIONS NOT ELSEWHERE CLASSIFIED
CCC_10000940_1,15/06/2022,Parks & Green Spaces,AMZNMKTPLACE AMAZON.CO.UK,8.79,Printing & Stationary,5999,MISCELLANEOUS & SPECIALTY STORES
CCC_10000962_13,15/06/2022,Leisure & Heritage Services,AMZNMKTPLACE AMAZON.CO.UK,7.79,General Expense,5999,MISCELLANEOUS & SPECIALTY STORES
CCC_10000955_3,15/06/2022,Operational Services,MACHINE MART LTD LEIGH-N-SE 60,169.98,New Equipment,5722,APPLIANCE STORES (NEC) OR HOUSEHOLD APPLIANCE STORES
CCC_10000988_1,15/06/2022,"Museums, Theatres & Cultural Services",GREATER ANGLIA T/O CHLMSFRD 6836,81.5,Public Transport,4112,PASSENGER RAILWAYS
CCC_10000966_1,15/06/2022,Leisure & Heritage Services,SCREWFIX DIR LTD CHELMFOR1867,12.49,New Equipment,5211,LUMBER AND BUILDING MATERIALS STORES
CCC_10000975_1,15/06/2022,"Museums, Theatres & Cultural Services",NCP COLCHESTER STATION GREATER ANGLI,11,Car Parking,7523,AUTOMOBILE PARKING OR PARKING LOTS
CCC_10001080_3,15/06/2022,Leisure & Heritage Services,AMZNMKTPLACE AMAZON.CO AMAZON.CO.UK,31.96,New Equipment,5999,MISCELLANEOUS & SPECIALTY STORES
CCC_10000955_4,15/06/2022,Operational Services,DART-CHARGE LEEDS,76,Vehicle Repairs,4784," TOLLS, ROAD AND BRIDGE FEES "
CCC_10000758_4,15/06/2022,"Museums, Theatres & Cultural Services",TESCO STORE 2330 CHELMSFORD 2,8.96,Training Expenses,5411,GROCERY STORES OR SUPERMARKETS
CCC_10002149_14,15/06/2022,Parking & Highways Operations,CYCLE PARKING CHELMSFORD,1,General Expense,9399,GOVERNMENT SERVICES (NEC) OR FIRE DEPARTMENTS
CCC_10001090_2,15/06/2022,Leisure & Heritage Services,SPOTIFY UK LONDON,9.99,General Expense,5815," DIGITAL GOODS MEDIA: BOOKS, MOVIES, MUSIC "
CCC_10001001_5,15/06/2022,South Essex Parking Partnership,AMZNMKTPLACE AMAZON.CO AMAZON.CO.UK,55.81,Clothing & Uniforms,5999,MISCELLANEOUS & SPECIALTY STORES
CCC_10000978_1,15/06/2022,"Museums, Theatres & Cultural Services",ZTL HUMDINGERS?S LONDON,28.42,Subsistence,5812,RESTAURANTS OR EATING PLACES
CCC_10002149_13,15/06/2022,Parking & Highways Operations,CYCLE PARKING CHELMSFORD,1,General Expense,9399,GOVERNMENT SERVICES (NEC) OR FIRE DEPARTMENTS
CCC_10000940_2,15/06/2022,Parks & Green Spaces,AMZNMKTPLACE AMAZON.CO.UK,52,Printing & Stationary,5999,MISCELLANEOUS & SPECIALTY STORES
CCC_10000979_1,15/06/2022,"Museums, Theatres & Cultural Services",GREATER ANGLIA T/O COLCHESTER,64.1,Public Transport,4112,PASSENGER RAILWAYS
CCC_10002142_2,15/06/2022,Parks & Green Spaces,AMZNMKTPLACE AMAZON.CO.UK,39.53,Printing & Stationary,5999,MISCELLANEOUS & SPECIALTY STORES
CCC_10000991_10,15/06/2022,South Essex Parking Partnership,ROXWELL RD HAND CAR WA LONDON CM1,16.67,General Expense,7535,AUTOMOTIVE PAINT SHOPS
CCC_10000980_1,15/06/2022,Development Management,AMZNMKTPLACE AMAZON.CO.UK,21.79,New Equipment,5999,MISCELLANEOUS & SPECIALTY STORES
CCC_10001169_7,16/06/2022,"Museums, Theatres & Cultural Services",UK THEATRE LONDON,170,Training Expenses,8699,MEMBERSHIP ORGANIZATIONS NOT ELSEWHERE CLASSIFIED
CCC_10000932_1,16/06/2022,Leisure & Heritage Services,TESCO STORES 2327 CHELMSFORD 1,6.45,General Expense,5411,GROCERY STORES OR SUPERMARKETS
CCC_10001021_2,16/06/2022,"Museums, Theatres & Cultural Services",TIMPSON LTD SPRINGFIELD S,14.33,General Expense,5999,MISCELLANEOUS & SPECIALTY STORES
CCC_10000926_11,16/06/2022,Human Resources,PPMA PAYMENT DARWEN,300,Employee Subscriptions,8699,MEMBERSHIP ORGANIZATIONS NOT ELSEWHERE CLASSIFIED
CCC_10000991_7,16/06/2022,South Essex Parking Partnership,MARTIN MCCOLL BASILDON,1.46,Printing & Stationary,5499,MISC FOOD STORES - SPECIALTY MARKETS & CONVENIENCE
CCC_10001223_21,16/06/2022,Housing Services,AMZNMKTPLACE AMAZON.CO.UK,16.99,New Equipment,5999,MISCELLANEOUS & SPECIALTY STORES
CCC_10001016_4,16/06/2022,Leisure & Heritage Services,WWW.NEWBLINDS.CO.UK HYDE,545.18,General Expense,5734,COMPUTER SOFTWARE STORES
CCC_10000949_1,16/06/2022,Public Health & Protection Services,CHARTERED INSTITUTE OF LONDON,99,General Expense,8398,CHARITABLE OR SOCIAL SERVICES ORGANIZATIONS
CCC_10000955_2,16/06/2022,Operational Services,PARTS PLUS BRISTOL,82.78,Vehicle Repairs,5533," AUTOMOTIVE PARTS, ACCESSORIES STORES "
CCC_10000962_12,16/06/2022,Leisure & Heritage Services,TESCO STORE 2330 CHELMSFORD 2,4,General Expense,5411,GROCERY STORES OR SUPERMARKETS
CCC_10001074_13,16/06/2022,Parks & Green Spaces,JAMES ODDY AND SON CHELMSFORD,105,General Expense,5211,LUMBER AND BUILDING MATERIALS STORES
CCC_10000992_3,16/06/2022,Parks & Green Spaces,AMZNMKTPLACE AMAZON.CO.UK,5.82,Printing & Stationary,5999,MISCELLANEOUS & SPECIALTY STORES
CCC_10002149_12,16/06/2022,Parking & Highways Operations,CYCLE PARKING CHELMSFORD,1,General Expense,9399,GOVERNMENT SERVICES (NEC) OR FIRE DEPARTMENTS
CCC_10000926_12,16/06/2022,Human Resources,SUMUP   DEVON PARTNERS EXETER,216,General Expense,5999,MISCELLANEOUS & SPECIALTY STORES
CCC_10001055_4,16/06/2022,Parks & Green Spaces,JOHN ATTWOOLL AND COMP WHITMINSTER,613.2,Vehicle Repairs,5998,AWNING AND TENT SHOPS
CCC_10001223_24,16/06/2022,Housing Services,TRAINLINE LONDON,74.07,General Expense,4112,PASSENGER RAILWAYS
CCC_10000962_11,16/06/2022,Leisure & Heritage Services,AMZNMKTPLACE AMAZON.CO.UK,35.03,General Expense,5999,MISCELLANEOUS & SPECIALTY STORES
CCC_10002149_11,16/06/2022,Parking & Highways Operations,CYCLE PARKING CHELMSFORD,1,General Expense,9399,GOVERNMENT SERVICES (NEC) OR FIRE DEPARTMENTS
CCC_10000991_8,16/06/2022,South Essex Parking Partnership,POST OFFICE COUNTER BASILDON,5.71,Printing & Stationary,9402,POSTAGE STAMPS
CCC_10000962_10,17/06/2022,Leisure & Heritage Services,B & Q 1188 CHELMSFORD,64,New Equipment,5200,HOME SUPPLY WAREHOUSE STORES
CCC_10000896_2,17/06/2022,Marketing & Communications Team,FACEBK  ZGA4SCPY22 FB.ME/ADS,9.96,Advertising,7311,ADVERTISING SERVICES
CCC_10002149_10,17/06/2022,Parking & Highways Operations,CYCLE PARKING CHELMSFORD,1,General Expense,9399,GOVERNMENT SERVICES (NEC) OR FIRE DEPARTMENTS
CCC_10002149_8,17/06/2022,Parking & Highways Operations,CYCLE PARKING CHELMSFORD,1,General Expense,9399,GOVERNMENT SERVICES (NEC) OR FIRE DEPARTMENTS
CCC_10000974_1,17/06/2022,Development Management,AMZNMKTPLACE AMAZON.CO.UK,87.17,Printing & Stationary,5999,MISCELLANEOUS & SPECIALTY STORES
CCC_10001001_3,17/06/2022,South Essex Parking Partnership,ROXWELL RD HAND CAR WA LONDON CM1,20.83,General Expense,7535,AUTOMOTIVE PAINT SHOPS
CCC_10001029_1,17/06/2022,Leisure & Heritage Services,PAYPAL  BEE TEE 35314369001,37.56,New Equipment,5661,SHOE STORES
CCC_10001078_5,17/06/2022,"Museums, Theatres & Cultural Services",BOOKER LIMITED CHELMSF CHELMSFORD,206.3,General Expense,5811,CATERERS
CCC_10000962_9,17/06/2022,Leisure & Heritage Services,FLOORING HUTD LTD WEST SUSSEX,107.29,General Expense,5734,COMPUTER SOFTWARE STORES
CCC_10001001_4,17/06/2022,South Essex Parking Partnership,ROXWELL RD HAND CAR WA LONDON CM1,16.67,General Expense,7535,AUTOMOTIVE PAINT SHOPS
CCC_10000965_1,17/06/2022,Leisure & Heritage Services,AMZNMKTPLACE AMAZON.CO.UK,19.14,New Equipment,5999,MISCELLANEOUS & SPECIALTY STORES
CCC_10000946_3,17/06/2022,Leisure & Heritage Services,TESCO STORES 2327 CHELMSFORD 1,27.92,Grounds Maintenance Materials,5411,GROCERY STORES OR SUPERMARKETS
CCC_10002149_9,17/06/2022,Parking & Highways Operations,CYCLE PARKING CHELMSFORD,1,General Expense,9399,GOVERNMENT SERVICES (NEC) OR FIRE DEPARTMENTS
CCC_10000962_8,17/06/2022,Leisure & Heritage Services,AMZNMKTPLACE AMAZON.CO AMAZON.CO.UK,42.98,General Expense,5999,MISCELLANEOUS & SPECIALTY STORES
CCC_10001074_12,17/06/2022,Parks & Green Spaces,CHANDLER MATERIALS CHELMSFORD,44.5,General Expense,5211,LUMBER AND BUILDING MATERIALS STORES
CCC_10000939_1,17/06/2022,Revenue and Benefit Services,AMZNMKTPLACE AMAZON.CO.UK,6.04,Printing & Stationary,5999,MISCELLANEOUS & SPECIALTY STORES
CCC_10001078_6,17/06/2022,"Museums, Theatres & Cultural Services",BOOKER LIMITED CHELMSF CHELMSFORD,158.17,General Expense,5811,CATERERS
CCC_10000959_2,17/06/2022,Parks & Green Spaces,LOOKERS NEWCASTLE,502.61,Grounds Maintenance Materials,7538,AUTOMOTIVE SERVICE SHOPS (NON-DEALER)
CCC_10001037_6,17/06/2022,Parks & Green Spaces,D. BYFORD & SONS COLCHESTER CO,37.2,Grounds Maintenance Materials,5193," FLORIST SUPPLIES, NURSERY STOCK AND FLOWERS "
CCC_10002100_2,17/06/2022,Building Services,CURRYS ONLINE HEMEL HEMPSTE,55.82,General Expense,5732,ELECTRONIC SALES
CCC_10000991_6,18/06/2022,South Essex Parking Partnership,POUNDSTRETCHER 279 LEICESTER,6.54,General Expense,5331,VARIETY STORES
CCC_10000958_1,18/06/2022,Leisure & Heritage Services,TIMPSON LTD CHELMSFORD,10,Grounds Maintenance Materials,5999,MISCELLANEOUS & SPECIALTY STORES
CCC_10000952_5,18/06/2022,"Museums, Theatres & Cultural Services",AMZNBUSINESS 270J60OL4 LUXEMBOURG L,57.5,New Equipment,5999,MISCELLANEOUS & SPECIALTY STORES
CCC_10001078_4,18/06/2022,"Museums, Theatres & Cultural Services",SCREWFIX DIR LTD CHELMFOR1867,10.34,General Expense,5211,LUMBER AND BUILDING MATERIALS STORES
CCC_10001078_3,18/06/2022,"Museums, Theatres & Cultural Services",BOOKER LIMITED CHELMSF CHELMSFORD,182.96,General Expense,5811,CATERERS
CCC_10000962_7,19/06/2022,Leisure & Heritage Services,AMAZON.CO.UK 277SD7OC4 AMAZON.CO.UK,16.19,General Expense,5969,DIRECT MARKETERS (NEC)
CCC_10000962_6,19/06/2022,Leisure & Heritage Services,AMZ UK QUICK DISPATCH AMAZON.CO.UK,-26.3,General Expense,5999,MISCELLANEOUS & SPECIALTY STORES
CCC_10000992_2,19/06/2022,Parks & Green Spaces,AMZNMKTPLACE AMAZON.CO.UK,16.67,Printing & Stationary,5999,MISCELLANEOUS & SPECIALTY STORES
CCC_10000946_2,19/06/2022,Leisure & Heritage Services,WWW.SCREWFIX.COM YEOVIL,79.8,Grounds Maintenance Materials,5211,LUMBER AND BUILDING MATERIALS STORES
CCC_10001072_4,19/06/2022,Marketing & Communications Team,PRINT MARKETPLACE 40 2802345,45.2,Printing & Stationary,7338," PRINT SHOPS, QUICK COPY SERVICES OR REPRODUCTION SERVICES "
CCC_10002062_8,19/06/2022,Marketing & Communications Team,WORDPRESS SZF5SQ7M4L DUBLIN,10,General Expense,5734,COMPUTER SOFTWARE STORES
CCC_10002100_5,19/06/2022,Building Services,AMZNMKTPLACE AMAZON.CO.UK,31.66,General Expense,5999,MISCELLANEOUS & SPECIALTY STORES
CCC_10000957_3,20/06/2022,Marketing & Communications Team,ISTOCK.COM NEW YORK,7,Advertising,7333," PHOTOGRAPHY, ART AND GRAPHIC -- COMMERCIAL "
CCC_10001018_6,20/06/2022,Operational Services,DVLA VEHICLE TAX 0300 1234321,302.5,Vehicle Tax,9311,TAX PAYMENTS
CCC_10001074_11,20/06/2022,Parks & Green Spaces,AMZNMKTPLACE AMAZON.CO.UK,25.96,General Expense,5999,MISCELLANEOUS & SPECIALTY STORES
CCC_10001001_2,20/06/2022,South Essex Parking Partnership,AMZNMKTPLACE AMAZON.CO AMAZON.CO.UK,76.72,Clothing & Uniforms,5999,MISCELLANEOUS & SPECIALTY STORES
CCC_10000962_5,20/06/2022,Leisure & Heritage Services,WWW.STUFF-UK.NET BETCHWORTH,101.93,New Equipment,7372," COMPUTER PROGRAMMING, SYSTEMS DESIGN OR DATA PROCESSING SERV "
CCC_10000991_4,20/06/2022,South Essex Parking Partnership,BP MAYFLOWER S/SERVE BILLERICAY ES,16.68,Fuel,5541,GAS/SERVICE STATIONS WITH/WITHOUT ANCILLARY SERVICES
CCC_10000957_5,20/06/2022,Marketing & Communications Team,ISTOCK.COM NEW YORK,20,Advertising,7333," PHOTOGRAPHY, ART AND GRAPHIC -- COMMERCIAL "
CCC_10001055_3,20/06/2022,Parks & Green Spaces,POWER PRECISION AND FA GUNNISLAKE,274.6,Vehicle Repairs,7299,MISC PERSONAL SERVICES NOT ELSEWHERE CLASSIFIED
CCC_10001017_1,20/06/2022,Marketing & Communications Team,FACEBK GDWEXE7KD2 FB.ME/ADS,7.07,Advertising,7311,ADVERTISING SERVICES
CCC_10000957_4,20/06/2022,Marketing & Communications Team,ISTOCK.COM NEW YORK,20,Advertising,7333," PHOTOGRAPHY, ART AND GRAPHIC -- COMMERCIAL "
CCC_10002100_4,20/06/2022,Building Services,AMZNMKTPLACE AMAZON.CO.UK,83.32,General Expense,5999,MISCELLANEOUS & SPECIALTY STORES
CCC_10000964_1,20/06/2022,Leisure & Heritage Services,AMZNMKTPLACE AMAZON.CO.UK,27.49,New Equipment,5999,MISCELLANEOUS & SPECIALTY STORES
CCC_10000962_4,20/06/2022,Leisure & Heritage Services,TESCO STORE 2330 CHELMSFORD 2,4,General Expense,5411,GROCERY STORES OR SUPERMARKETS
CCC_10001018_5,20/06/2022,Operational Services,DVLA VEHICLE TAX 0300 1234321,302.5,Vehicle Tax,9311,TAX PAYMENTS
CCC_10002100_3,20/06/2022,Building Services,TESCO STORES 5408 CHELMSFORD,6,General Expense,5411,GROCERY STORES OR SUPERMARKETS
CCC_10001074_10,20/06/2022,Parks & Green Spaces,TESCO-STORES 6724 CHELMSFORD,3,General Expense,5411,GROCERY STORES OR SUPERMARKETS
CCC_10000991_5,20/06/2022,South Essex Parking Partnership,TIMPSON LTD SOUTHEND TESC,33.33,General Expense,5999,MISCELLANEOUS & SPECIALTY STORES
CCC_10000952_4,20/06/2022,"Museums, Theatres & Cultural Services",AMZNMKTPLACE AMAZON.CO.UK,17.87,New Equipment,5999,MISCELLANEOUS & SPECIALTY STORES
CCC_10000955_1,20/06/2022,Operational Services,HSQE LTD CHELMSFORD,18,Vehicle Repairs,8299,SCHOOLS AND EDUCATIONAL SERVICES (NEC)
CCC_10000952_3,20/06/2022,"Museums, Theatres & Cultural Services",AMZNMKTPLACE AMAZON.CO.UK,39.57,New Equipment,5999,MISCELLANEOUS & SPECIALTY STORES
CCC_10001018_3,20/06/2022,Operational Services,DVLA VEHICLE TAX 0300 1234321,292.5,Vehicle Tax,9311,TAX PAYMENTS
CCC_10001162_10,20/06/2022,Parks & Green Spaces,TESCO STORE 2330 CHELMSFORD 2,67,General Expense,5411,GROCERY STORES OR SUPERMARKETS
CCC_10001018_4,20/06/2022,Operational Services,DVLA VEHICLE TAX 0300 1234321,302.5,Vehicle Tax,9311,TAX PAYMENTS
CCC_10000954_3,20/06/2022,"Museums, Theatres & Cultural Services",AMZNMKTPLACE AMAZON.CO.UK,17.36,New Equipment,5999,MISCELLANEOUS & SPECIALTY STORES
CCC_10001074_8,20/06/2022,Parks & Green Spaces,AMZNMKTPLACE AMAZON.CO AMAZON.CO.UK,7.99,General Expense,5999,MISCELLANEOUS & SPECIALTY STORES
CCC_10001074_9,20/06/2022,Parks & Green Spaces,AMZNMKTPLACE AMAZON.CO AMAZON.CO.UK,10.13,General Expense,5999,MISCELLANEOUS & SPECIALTY STORES
CCC_10001062_3,20/06/2022,Development Management,HISTORIC ENGLAND SWINDON,27.36,Printing & Stationary,7991,TOURIST ATTRACTIONS AND EXHIBITS
CCC_10001078_2,20/06/2022,"Museums, Theatres & Cultural Services",AMZNMKTPLACE AMAZON.CO AMAZON.CO.UK,7.08,General Expense,5999,MISCELLANEOUS & SPECIALTY STORES
CCC_10001018_2,20/06/2022,Operational Services,DVLA VEHICLE TAX 0300 1234321,292.5,Vehicle Tax,9311,TAX PAYMENTS
CCC_10000991_3,20/06/2022,South Essex Parking Partnership,BIGCLOTHING4U LIMITED SCUNTHORPE,40.82,Clothing & Uniforms,5999,MISCELLANEOUS & SPECIALTY STORES
CCC_10001074_6,21/06/2022,Parks & Green Spaces,AMZNMKTPLACE AMAZON.CO AMAZON.CO.UK,19.99,General Expense,5999,MISCELLANEOUS & SPECIALTY STORES
CCC_10000954_2,21/06/2022,"Museums, Theatres & Cultural Services",AMZNMKTPLACE AMAZON.CO.UK,22.47,New Equipment,5999,MISCELLANEOUS & SPECIALTY STORES
CCC_10000959_1,21/06/2022,Parks & Green Spaces,MOTEX CHELMSFORD,37.27,Grounds Maintenance Materials,5533," AUTOMOTIVE PARTS, ACCESSORIES STORES "
CCC_10001180_4,21/06/2022,Public Health & Protection Services,PRINT MARKETPLACE 40 2802345,106.15,Printing & Stationary,7338," PRINT SHOPS, QUICK COPY SERVICES OR REPRODUCTION SERVICES "
CCC_10001162_9,21/06/2022,Parks & Green Spaces,WWW.THEGMA.ORG.UK MILTON KEYNES,175,General Expense,8699,MEMBERSHIP ORGANIZATIONS NOT ELSEWHERE CLASSIFIED
CCC_10001018_1,21/06/2022,Operational Services,POST OFFICE COUNTER CHELMSFORD,297.5,Vehicle Tax,9402,POSTAGE STAMPS
CCC_10001031_1,21/06/2022,Accountancy Services,AMZNMKTPLACE AMAZON.CO.UK,14.14,Printing & Stationary,5999,MISCELLANEOUS & SPECIALTY STORES
CCC_10000954_1,21/06/2022,"Museums, Theatres & Cultural Services",AMZNMKTPLACE AMAZON.CO.UK,14.16,New Equipment,5999,MISCELLANEOUS & SPECIALTY STORES
CCC_10000952_2,21/06/2022,"Museums, Theatres & Cultural Services",AMZNMKTPLACE AMAZON.CO AMAZON.CO.UK,10.82,Printing & Stationary,5999,MISCELLANEOUS & SPECIALTY STORES
CCC_10000952_1,21/06/2022,"Museums, Theatres & Cultural Services",AMZNMKTPLACE AMAZON.CO.UK,14.16,New Equipment,5999,MISCELLANEOUS & SPECIALTY STORES
CCC_10002100_6,21/06/2022,Building Services,TESCO STORES 5408 CHELMSFORD,9.1,General Expense,5411,GROCERY STORES OR SUPERMARKETS
CCC_10001001_1,21/06/2022,South Essex Parking Partnership,AMZNMKTPLACE AMAZON.CO.UK,39.95,Clothing & Uniforms,5999,MISCELLANEOUS & SPECIALTY STORES
CCC_10000962_3,21/06/2022,Leisure & Heritage Services,BOOKER LIMITED CHELMSF CHELMSFORD,43.24,General Expense,5811,CATERERS
CCC_10001074_7,21/06/2022,Parks & Green Spaces,T&M B2C ECOMM WWW.THOMPSON-,48.74,General Expense,5399,GENERAL MERCHANDISE OR CONVENIENCE FOOD STORES
CCC_10000946_1,21/06/2022,Leisure & Heritage Services,WWW.SCREWFIX.COM YEOVIL,49.37,Grounds Maintenance Materials,5211,LUMBER AND BUILDING MATERIALS STORES
CCC_10001072_3,22/06/2022,Marketing & Communications Team,TRAINLINE.COM LONDON,39.83,Public Transport,4112,PASSENGER RAILWAYS
CCC_10000991_1,22/06/2022,South Essex Parking Partnership,ARCO LTD BASILDON,100.08,Clothing & Uniforms,5085,INDUSTRIAL SUPPLIES (NEC)
CCC_10000962_1,22/06/2022,Leisure & Heritage Services,AMZNMKTPLACE AMAZON.CO AMAZON.CO.UK,73.6,General Expense,5999,MISCELLANEOUS & SPECIALTY STORES
CCC_10001048_1,22/06/2022,Human Resources,SHL GROUP LTD THAMES DITTON,176,General Expense,7399,BUSINESS SERVICES (NEC)
CCC_10000950_1,22/06/2022,Public Health & Protection Services,ESSEX COUNTY COUNCI EC CHELMSFORD,11,Printing & Stationary,9399,GOVERNMENT SERVICES (NEC) OR FIRE DEPARTMENTS
CCC_10001031_2,22/06/2022,Accountancy Services,AMZ LISHUI AMAZON.CO.UK,-4.16,Printing & Stationary,5999,MISCELLANEOUS & SPECIALTY STORES
CCC_10001062_1,22/06/2022,Development Management,WWW.AAT-ORG.UK LONDON EC1R,105,Training Expenses,8931," ACCOUNTING, BOOKKEEPING OR AUDITING SERVICES "
CCC_10000991_2,22/06/2022,South Essex Parking Partnership,HASANI HAND CAR WASH L BASILDON,25,General Expense,7542,CAR WASHES
CCC_10001343_22,22/06/2022,Operational Services,MILLCOT TOOLS CHELMSFORD,545.78,Vehicle Repairs,5072," HARDWARE, PLUMBING, HEATING EQUIPMENT AND SUPPLIES "
CCC_10001072_2,22/06/2022,Marketing & Communications Team,TRAINLINE.COM LONDON,33.41,Public Transport,4112,PASSENGER RAILWAYS
CCC_10000963_1,22/06/2022,Leisure & Heritage Services,POST OFFICE COUNTER CHELMSFORD,6.37,General Expense,9402,POSTAGE STAMPS
CCC_10001062_2,22/06/2022,Development Management,APPIAN TRADING LIMITED LONDON N1 7JE,60,Training Expenses,8999,PROFESSIONAL SERVICES (NEC)
CCC_10000962_2,22/06/2022,Leisure & Heritage Services,AMZNMKTPLACE AMAZON.CO.UK,13.68,General Expense,5999,MISCELLANEOUS & SPECIALTY STORES
CCC_10001012_1,22/06/2022,Digital Services,COMMS EXPRESS LTD CHELMSFORD,31.01,General Expense,5732,ELECTRONIC SALES
CCC_10001074_4,22/06/2022,Parks & Green Spaces,CHANDLER MATERIALS CHELMSFORD,31.74,General Expense,5211,LUMBER AND BUILDING MATERIALS STORES
CCC_10001074_5,22/06/2022,Parks & Green Spaces,MARKS&SPENCER PLC SACA CHELMSFORD SF,13.7,General Expense,5411,GROCERY STORES OR SUPERMARKETS
CCC_10002100_7,23/06/2022,Building Services,AMZNMKTPLACE AMAZON.CO AMAZON.CO.UK,23.92,General Expense,5999,MISCELLANEOUS & SPECIALTY STORES
CCC_10001609_17,23/06/2022,Parking & Highways Operations,CYCLE PARKING CHELMSFORD,1,General Expense,9399,GOVERNMENT SERVICES (NEC) OR FIRE DEPARTMENTS
CCC_10001223_20,23/06/2022,Housing Services,WWW.LBHF.GOV.UK LONDON W6,13,General Expense,9399,GOVERNMENT SERVICES (NEC) OR FIRE DEPARTMENTS
CCC_10001042_1,23/06/2022,Leisure & Heritage Services,THE STABLE CAFE CATERING,3.73,General Expense,5812,RESTAURANTS OR EATING PLACES
CCC_10001223_19,23/06/2022,Housing Services,NORFOLK COUNTY COUNCIL NORWICH.,11,General Expense,9399,GOVERNMENT SERVICES (NEC) OR FIRE DEPARTMENTS
CCC_10000992_1,23/06/2022,Parks & Green Spaces,AMZNMKTPLACE AMAZON.CO.UK,28.32,Printing & Stationary,5999,MISCELLANEOUS & SPECIALTY STORES
CCC_10001223_18,23/06/2022,Housing Services,NORFOLK COUNTY COUNCIL NORWICH.,11,General Expense,9399,GOVERNMENT SERVICES (NEC) OR FIRE DEPARTMENTS
CCC_10000973_1,23/06/2022,"Museums, Theatres & Cultural Services",AMZNMKTPLACE AMAZON.CO AMAZON.CO.UK,33.27,Printing & Stationary,5999,MISCELLANEOUS & SPECIALTY STORES
CCC_10001074_3,23/06/2022,Parks & Green Spaces,ASDA SUPERSTORE CHELMSFORD,23.45,General Expense,5411,GROCERY STORES OR SUPERMARKETS
CCC_10001126_1,23/06/2022,Leisure & Heritage Services,ANGLIA RUSKIN UNI CHELMSFORD,2.2,General Expense,5812,RESTAURANTS OR EATING PLACES
CCC_10001609_16,23/06/2022,Parking & Highways Operations,CYCLE PARKING CHELMSFORD,1,General Expense,9399,GOVERNMENT SERVICES (NEC) OR FIRE DEPARTMENTS
CCC_10001169_6,23/06/2022,"Museums, Theatres & Cultural Services",MERCURY THEATRE THEATRE INTER,2.5,Car Parking,7922," THEATRICAL PRODUCERS (EXCL MOTION PICTURES), TICKET AGENCIES "
CCC_10001140_1,23/06/2022,South Essex Parking Partnership,SPORTSDIRECT 266 08443325266,87.49,Clothing & Uniforms,5941,SPORTING GOODS STORES
CCC_10000997_1,23/06/2022,Leisure & Heritage Services,TICKETS 80424004 NOTTINGHAM,34.5,General Expense,7922," THEATRICAL PRODUCERS (EXCL MOTION PICTURES), TICKET AGENCIES "
CCC_10001831_7,23/06/2022,Digital Services,TRAINLINE.COM LONDON,-113.7,Public Transport,4112,PASSENGER RAILWAYS
CCC_10001609_13,24/06/2022,Parking & Highways Operations,CYCLE PARKING CHELMSFORD,1,General Expense,9399,GOVERNMENT SERVICES (NEC) OR FIRE DEPARTMENTS
CCC_10001609_12,24/06/2022,Parking & Highways Operations,CYCLE PARKING CHELMSFORD,1,General Expense,9399,GOVERNMENT SERVICES (NEC) OR FIRE DEPARTMENTS
CCC_10001071_4,24/06/2022,Parks & Green Spaces,AMZNMKTPLACE AMAZON.CO.UK,22.92,Printing & Stationary,5999,MISCELLANEOUS & SPECIALTY STORES
CCC_10000972_10,24/06/2022,Operational Services,B & Q 1188 CHELMSFORD,84.5,General Expense,5200,HOME SUPPLY WAREHOUSE STORES
CCC_10001052_5,24/06/2022,Parks & Green Spaces,D. BYFORD & SONS COLCHESTER CO,29.5,Grounds Maintenance Materials,5193," FLORIST SUPPLIES, NURSERY STOCK AND FLOWERS "
CCC_10001047_1,24/06/2022,"Museums, Theatres & Cultural Services",AMZNBUSINESS 270LR5S04 AMAZON.CO.UK,19.08,New Equipment,5999,MISCELLANEOUS & SPECIALTY STORES
CCC_10001609_15,24/06/2022,Parking & Highways Operations,CYCLE PARKING CHELMSFORD,1,General Expense,9399,GOVERNMENT SERVICES (NEC) OR FIRE DEPARTMENTS
CCC_10001049_2,24/06/2022,Public Health & Protection Services,ESSEX COUNTY COUNCI EC CHELMSFORD,11,Printing & Stationary,9399,GOVERNMENT SERVICES (NEC) OR FIRE DEPARTMENTS
CCC_10001609_14,24/06/2022,Parking & Highways Operations,CYCLE PARKING CHELMSFORD,1,General Expense,9399,GOVERNMENT SERVICES (NEC) OR FIRE DEPARTMENTS
CCC_10001075_7,24/06/2022,Operational Services,YUMPU NEWS  I-MAGAZINE DIEPOLDSAU,5.97,Employee Subscriptions,5818,LARGE DIGITAL GOODS MERCHANT
CCC_10001457_5,25/06/2022,Leisure & Heritage Services,AMZNMKTPLACE AMAZON.CO.UK,30.98,New Equipment,5999,MISCELLANEOUS & SPECIALTY STORES
CCC_10001220_18,25/06/2022,Leisure & Heritage Services,AMAZON PRIME 277TT3U54 AMZN.CO.UK/PM,3.99,New Equipment,5968,CONTINUITY/SUBSCRIPTION MERCHANT
CCC_10001071_2,25/06/2022,Parks & Green Spaces,AMZNMKTPLACE AMAZON.CO.UK,22.92,Printing & Stationary,5999,MISCELLANEOUS & SPECIALTY STORES
CCC_10001609_11,25/06/2022,Parking & Highways Operations,CYCLE PARKING CHELMSFORD,1,General Expense,9399,GOVERNMENT SERVICES (NEC) OR FIRE DEPARTMENTS
CCC_10001039_4,25/06/2022,Digital Services,PAYPAL  TRIMBLE 35314369001,245,General Expense,8911," ARCHITECTURAL, ENGINEERING AND SURVEYING SERVICES "
CCC_10001609_10,25/06/2022,Parking & Highways Operations,CYCLE PARKING CHELMSFORD,1,General Expense,9399,GOVERNMENT SERVICES (NEC) OR FIRE DEPARTMENTS
CCC_10001071_3,25/06/2022,Parks & Green Spaces,AMZNMKTPLACE AMAZON.CO.UK,22.92,Printing & Stationary,5999,MISCELLANEOUS & SPECIALTY STORES
CCC_10001396_19,26/06/2022,Leisure & Heritage Services,ROTACLOUD YORK,49,General Expense,5734,COMPUTER SOFTWARE STORES
CCC_10000957_6,26/06/2022,Marketing & Communications Team,PRINT MARKETPLACE 40 2802345,22.49,Printing & Stationary,7338," PRINT SHOPS, QUICK COPY SERVICES OR REPRODUCTION SERVICES "
CCC_10001032_2,26/06/2022,Marketing & Communications Team,EPH RECEPTION BIRMINGHAM,76.67,Accommodation,7011," LODGING,HOTELS,MOTELS,RESORTS "
CCC_10001081_6,26/06/2022,Parks & Green Spaces,AMZNMKTPLACE AMAZON.CO.UK,4.99,Printing & Stationary,5999,MISCELLANEOUS & SPECIALTY STORES
CCC_10001075_6,26/06/2022,Operational Services,FACEBK EGUSNFBRM2 FB.ME/ADS,400,Advertising,7311,ADVERTISING SERVICES
CCC_10001081_5,26/06/2022,Parks & Green Spaces,AMZNMKTPLACE AMAZON.CO.UK,14.98,Printing & Stationary,5999,MISCELLANEOUS & SPECIALTY STORES
CCC_10000944_3,27/06/2022,Marketing & Communications Team,CANVA  I03465-0692255 CAMDEN,33.58,Advertising,7221,PHOTOGRAPHIC STUDIOS
CCC_10001218_11,27/06/2022,Parks & Green Spaces,THE PINK HOUSE KINGS LYNN,147,Grounds Maintenance Materials,5261,GARDEN AND LAWN SUPPLY STORES OR NURSERIES
CCC_10001060_1,27/06/2022,"Museums, Theatres & Cultural Services",POST OFFICE COUNTER CHELMSFORD,8.95,Printing & Stationary,9402,POSTAGE STAMPS
CCC_10000849_3,27/06/2022,"Procurement, Risk and Insurance",AMZNMKTPLACE AMAZON.CO.UK,12.48,New Equipment,5999,MISCELLANEOUS & SPECIALTY STORES
CCC_10001162_8,27/06/2022,Parks & Green Spaces,TESCO STORE 2330 CHELMSFORD 2,57,General Expense,5411,GROCERY STORES OR SUPERMARKETS
CCC_10001039_3,27/06/2022,Digital Services,TEXTHELPLTD ANTRIM,234,General Expense,5734,COMPUTER SOFTWARE STORES
CCC_10001140_2,27/06/2022,South Essex Parking Partnership,WILKO RETAIL LIMITED BRENTWOOD,2.75,General Expense,5399,GENERAL MERCHANDISE OR CONVENIENCE FOOD STORES
CCC_10001074_2,27/06/2022,Parks & Green Spaces,FIELD STUDIES COUNCIL SHREWSBURY,93.25,General Expense,8299,SCHOOLS AND EDUCATIONAL SERVICES (NEC)
CCC_10001058_1,27/06/2022,Parking & Highways Operations,WICKES BRAINTREE BRAINTREE,9.17,New Equipment,5211,LUMBER AND BUILDING MATERIALS STORES
CCC_10001059_5,27/06/2022,Leisure & Heritage Services,DPD WL BOLTON,13.24,Grounds Maintenance Materials,4215," COURIER SERVICES-AIR OR GROUND, FREIGHT "
CCC_10001140_3,27/06/2022,South Essex Parking Partnership,T K MAXX WATFORD,30.82,Clothing & Uniforms,5331,VARIETY STORES
CCC_10002100_8,28/06/2022,Building Services,FAST KEY SERVICES LIMI WICKFORD,7.15,General Expense,7399,BUSINESS SERVICES (NEC)
CCC_10001080_2,28/06/2022,Leisure & Heritage Services,THE STABLE CAFE CATERING,4.23,General Expense,5812,RESTAURANTS OR EATING PLACES
CCC_10001140_4,28/06/2022,South Essex Parking Partnership,SPORTSDIRECT 297 08443325297,33.33,Clothing & Uniforms,5941,SPORTING GOODS STORES
CCC_10002100_9,28/06/2022,Building Services,AMZNMKTPLACE AMAZON.CO.UK,29.98,General Expense,5999,MISCELLANEOUS & SPECIALTY STORES
CCC_10000957_7,28/06/2022,Marketing & Communications Team,PRINT MARKETPLACE 40 2802345,157.51,Printing & Stationary,7338," PRINT SHOPS, QUICK COPY SERVICES OR REPRODUCTION SERVICES "
CCC_10001043_2,28/06/2022,Operational Services,10TO8.COM CAMBRIDGE,50,General Expense,5817,DIGITAL GOODS: APPLICATIONS (EXCLUDES GAMES)
CCC_10001059_7,28/06/2022,Leisure & Heritage Services,CHANDLER MATERIALS CHELMSFORD,8.66,Grounds Maintenance Materials,5211,LUMBER AND BUILDING MATERIALS STORES
CCC_10001057_1,28/06/2022,Public Health & Protection Services,SPRINGER CUSTOMER SERV HEIDELBERG,34.99,Training Expenses,2741,MISCELLANEOUS PUBLISHING AND PRINTING
CCC_10001057_2,28/06/2022,Public Health & Protection Services,WHSMITH.CO.UK OXFORD,32.98,Training Expenses,5943," STATIONERY STORES, OFFICE & SCHOOL SUPPLY STORES "
CCC_10001078_1,28/06/2022,"Museums, Theatres & Cultural Services",WWW.SCREWFIX.COM YEOVIL,58.31,General Expense,5211,LUMBER AND BUILDING MATERIALS STORES
CCC_10001075_5,28/06/2022,Operational Services,FACEBK BEJHBFFQM2 FB.ME/ADS,56.22,Advertising,7311,ADVERTISING SERVICES
CCC_10001037_5,28/06/2022,Parks & Green Spaces,WWW.SCREWFIX.COM YEOVIL,35.99,New Equipment,5211,LUMBER AND BUILDING MATERIALS STORES
CCC_10001107_13,28/06/2022,Leisure & Heritage Services,TESCO STORE 2330 CHELMSFORD 2,18.46,General Expense,5411,GROCERY STORES OR SUPERMARKETS
CCC_10001218_13,29/06/2022,Parks & Green Spaces,AMZNMKTPLACE AMAZON.CO.UK,19.98,Grounds Maintenance Materials,5999,MISCELLANEOUS & SPECIALTY STORES
CCC_10001074_1,29/06/2022,Parks & Green Spaces,HOMEBASE LTD CHELMSFORD,48,General Expense,5200,HOME SUPPLY WAREHOUSE STORES
CCC_10001609_8,29/06/2022,Parking & Highways Operations,CYCLE PARKING CHELMSFORD,98,General Expense,9399,GOVERNMENT SERVICES (NEC) OR FIRE DEPARTMENTS
CCC_10001075_4,29/06/2022,Operational Services,SHUTTERSTOCK IRELAND L DUBLIN 2,34.8,General Expense,7333," PHOTOGRAPHY, ART AND GRAPHIC -- COMMERCIAL "
CCC_10001218_12,29/06/2022,Parks & Green Spaces,AMZNMKTPLACE AMAZON.CO.UK,19.12,Grounds Maintenance Materials,5999,MISCELLANEOUS & SPECIALTY STORES
CCC_10001171_3,29/06/2022,"Museums, Theatres & Cultural Services",AMZNMKTPLACE AMAZON.CO.UK,46.25,Printing & Stationary,5999,MISCELLANEOUS & SPECIALTY STORES
CCC_10001064_1,29/06/2022,"Museums, Theatres & Cultural Services",AMZNMKTPLACE AMAZON.CO.UK,24.13,Printing & Stationary,5999,MISCELLANEOUS & SPECIALTY STORES
CCC_10001082_3,29/06/2022,Leisure & Heritage Services,AMZNMKTPLACE AMAZON.CO.UK,10.38,General Expense,5999,MISCELLANEOUS & SPECIALTY STORES
CCC_10001831_6,29/06/2022,Digital Services,TRAINLINE.COM LONDON,-10,Public Transport,4112,PASSENGER RAILWAYS
CCC_10001609_9,29/06/2022,Parking & Highways Operations,CYCLE PARKING CHELMSFORD,1,General Expense,9399,GOVERNMENT SERVICES (NEC) OR FIRE DEPARTMENTS
CCC_10001082_4,29/06/2022,Leisure & Heritage Services,AMZNMKTPLACE AMAZON.CO.UK,8.08,General Expense,5999,MISCELLANEOUS & SPECIALTY STORES
CCC_10001082_2,29/06/2022,Leisure & Heritage Services,AMZNMKTPLACE AMAZON.CO.UK,14.14,General Expense,5999,MISCELLANEOUS & SPECIALTY STORES
CCC_10001107_12,29/06/2022,Leisure & Heritage Services,SP TABLEPROTECTORDIR ROMNEY MARSH,37.47,New Equipment,5712," FURNITURE, HOME FURNISHINGS & EQUIP STORES EXCL APPLIANCES "
CCC_10002100_10,29/06/2022,Building Services,DUKE STREET COOP 01245 345490,3.89,General Expense,5311,DEPARTMENT STORES
CCC_10001189_5,29/06/2022,Digital Services,123 REG LTD 03454502310,53.97,Publications,4816,COMPUTER NETWORK/INFO SVCS
CCC_10001072_1,30/06/2022,Marketing & Communications Team,FACEBK  F59PKGFAK2 FB.ME/ADS,16,Advertising,7311,ADVERTISING SERVICES
CCC_10001037_4,30/06/2022,Parks & Green Spaces,AMZNMKTPLACE AMAZON.CO.UK,8.11,Printing & Stationary,5999,MISCELLANEOUS & SPECIALTY STORES
CCC_10001055_2,30/06/2022,Parks & Green Spaces,HOMEBASE LTD CHELMSFORD,13.29,Grounds Maintenance Materials,5200,HOME SUPPLY WAREHOUSE STORES
CCC_10001053_1,30/06/2022,Human Resources,CIM MAIDENHEAD,65,Employee Subscriptions,8299,SCHOOLS AND EDUCATIONAL SERVICES (NEC)
CCC_10001140_5,30/06/2022,South Essex Parking Partnership,AMZNMKTPLACE AMAZON.CO.UK,39.05,New Equipment,5999,MISCELLANEOUS & SPECIALTY STORES
CCC_10002137_1,30/06/2022,Parks & Green Spaces,T&M B2C ECOMM WWW.THOMPSON-,-5.99,General Expense,5399,GENERAL MERCHANDISE OR CONVENIENCE FOOD STORES
CCC_10001140_6,30/06/2022,South Essex Parking Partnership,TESCO STORES 2327 CHELMSFORD 1,2.08,General Expense,5411,GROCERY STORES OR SUPERMARKETS
CCC_10001076_1,30/06/2022,Parking & Highways Operations,WWW.SCREWFIX.COM YEOVIL,24.97,Car Parking,5211,LUMBER AND BUILDING MATERIALS STORES
CCC_10001068_1,30/06/2022,Leisure & Heritage Services,AMZNMKTPLACE AMAZON.CO.UK,14.15,New Equipment,5999,MISCELLANEOUS & SPECIALTY STORES
CCC_10001169_5,30/06/2022,"Museums, Theatres & Cultural Services",GREATERANGLIACOM LONDON,63.2,Public Transport,4112,PASSENGER RAILWAYS
CCC_10001140_8,30/06/2022,South Essex Parking Partnership,ARCO LIMITED (SAP) 01482611611,53.69,Clothing & Uniforms,5085,INDUSTRIAL SUPPLIES (NEC)
CCC_10002162_82,30/06/2022,Building Services,WWW.CUSTOM-CABLE.CO.UK INTERNET,36.34,General Expense,5722,APPLIANCE STORES (NEC) OR HOUSEHOLD APPLIANCE STORES
CCC_10001069_2,30/06/2022,Marketing & Communications Team,REPLACEMENT KEYS LTD LEIGHTON BUZZ,19.29,General Expense,5399,GENERAL MERCHANDISE OR CONVENIENCE FOOD STORES
CCC_10001140_7,30/06/2022,South Essex Parking Partnership,TRAVIS PERKINS NORTHAMPTON,9.13,General Expense,5211,LUMBER AND BUILDING MATERIALS STORES
CCC_10002140_1,30/06/2022,Marketing & Communications Team,CANVA  I03467-11991986 CAMDEN,99.99,General Expense,7221,PHOTOGRAPHIC STUDIOS
CCC_10001441_2,01/07/2022,Parks & Green Spaces,AMZNMKTPLACE AMAZON.CO AMAZON.CO.UK,30.75,Grounds Maintenance Materials,5999,MISCELLANEOUS & SPECIALTY STORES
CCC_10001077_5,01/07/2022,Leisure & Heritage Services,AMZNMKTPLACE AMAZON.CO AMAZON.CO.UK,28.83,General Expense,5999,MISCELLANEOUS & SPECIALTY STORES
CCC_10001107_11,01/07/2022,Leisure & Heritage Services,ATLANTIC SHOPPING BIRMINGHAM,133.32,New Equipment,5712," FURNITURE, HOME FURNISHINGS & EQUIP STORES EXCL APPLIANCES "
CCC_10001173_1,01/07/2022,"Museums, Theatres & Cultural Services",BOOKER LIMITED CHELMSF CHELMSFORD,29.27,Conference Expenses,5811,CATERERS
CCC_10001049_1,01/07/2022,Public Health & Protection Services,ESSEX CC CARD PAYMENT CHELMSFORD,90,Printing & Stationary,9399,GOVERNMENT SERVICES (NEC) OR FIRE DEPARTMENTS
CCC_10001039_2,01/07/2022,Digital Services,PDQ.COM 801-657-4657,2235.22,General Expense,5045,COMPUTERS AND COMPUTER PERIPHERAL EQUIPMENT AND SOFTWARE
CCC_10001077_6,01/07/2022,Leisure & Heritage Services,AMZNMKTPLACE AMAZON.CO AMAZON.CO.UK,10.44,Printing & Stationary,5999,MISCELLANEOUS & SPECIALTY STORES
CCC_10001343_21,01/07/2022,Operational Services,WWW.SCREWFIX.COM YEOVIL,12.49,Vehicle Repairs,5211,LUMBER AND BUILDING MATERIALS STORES
CCC_10001162_5,01/07/2022,Parks & Green Spaces,D. BYFORD & SONS COLCHESTER CO,35.4,General Expense,5193," FLORIST SUPPLIES, NURSERY STOCK AND FLOWERS "
CCC_10001059_4,01/07/2022,Leisure & Heritage Services,BUILD PLUMB PLASTICS HARWICH,46.24,Grounds Maintenance Materials,5039,CONSTRUCTION MATERIALS (NEC)
CCC_10001343_20,01/07/2022,Operational Services,TOOLSTATION UK NORTHAMPTON,38.2,Vehicle Repairs,5251,HARDWARE STORES
CCC_10001075_3,01/07/2022,Operational Services,SQ  MONARCH SPRINGFIELD,31,Clothing & Uniforms,7230,BARBER OR BEAUTY SHOPS
CCC_10001059_3,02/07/2022,Leisure & Heritage Services,HALFORDS ON LINE REDDITCH,5.74,Grounds Maintenance Materials,5533," AUTOMOTIVE PARTS, ACCESSORIES STORES "
CCC_10001184_1,03/07/2022,"Museums, Theatres & Cultural Services",AMZNBUSINESS 2Y3G84V94 AMAZON.CO.UK,57.12,Grounds Maintenance Materials,5999,MISCELLANEOUS & SPECIALTY STORES
CCC_10001609_7,04/07/2022,Parking & Highways Operations,CYCLE PARKING CHELMSFORD,1,General Expense,9399,GOVERNMENT SERVICES (NEC) OR FIRE DEPARTMENTS
CCC_10001162_4,04/07/2022,Parks & Green Spaces,TESCO STORE 2330 CHELMSFORD 2,55,General Expense,5411,GROCERY STORES OR SUPERMARKETS
CCC_10001329_23,04/07/2022,Parks & Green Spaces,SAINSBURYS S/MKTS CHELMSFORD 41,50.39,General Expense,5411,GROCERY STORES OR SUPERMARKETS
CCC_10001142_4,04/07/2022,Parks & Green Spaces,FIND A WILL 0300 3030648,1.5,Printing & Stationary,8999,PROFESSIONAL SERVICES (NEC)
CCC_10001329_20,04/07/2022,Parks & Green Spaces,T&M B2C ECOMM WWW.THOMPSON-,27.62,General Expense,5399,GENERAL MERCHANDISE OR CONVENIENCE FOOD STORES
CCC_10001223_17,04/07/2022,Housing Services,SOUTHEND BOROUGH COUNC 01702215000,11,General Expense,9399,GOVERNMENT SERVICES (NEC) OR FIRE DEPARTMENTS
CCC_10001173_2,04/07/2022,"Museums, Theatres & Cultural Services",AMZNMKTPLACE AMAZON.CO.UK,17.02,Conference Expenses,5999,MISCELLANEOUS & SPECIALTY STORES
CCC_10001176_1,04/07/2022,Parks & Green Spaces,CHANDLER MATERIALS CHELMSFORD,84.74,General Expense,5211,LUMBER AND BUILDING MATERIALS STORES
CCC_10001067_1,04/07/2022,Leisure & Heritage Services,BUY IT DIRECT HUDDERSFIELD,199.97,New Equipment,5732,ELECTRONIC SALES
CCC_10001609_5,04/07/2022,Parking & Highways Operations,CYCLE PARKING CHELMSFORD,1,General Expense,9399,GOVERNMENT SERVICES (NEC) OR FIRE DEPARTMENTS
CCC_10000847_3,04/07/2022,"Procurement, Risk and Insurance",GREATER ANGLIA 4278,32.6,Public Transport,4112,PASSENGER RAILWAYS
CCC_10001329_22,04/07/2022,Parks & Green Spaces,JAMES ODDY AND SON CHELMSFORD,116.64,General Expense,5211,LUMBER AND BUILDING MATERIALS STORES
CCC_10001162_39,04/07/2022,Parks & Green Spaces,AMZNMKTPLACE AMAZON.CO AMAZON.CO.UK,20.65,General Expense,5999,MISCELLANEOUS & SPECIALTY STORES
CCC_10001609_6,04/07/2022,Parking & Highways Operations,CYCLE PARKING CHELMSFORD,1,General Expense,9399,GOVERNMENT SERVICES (NEC) OR FIRE DEPARTMENTS
CCC_10001071_1,05/07/2022,Parks & Green Spaces,VIKING UK LEICESTER,177.02,Printing & Stationary,5111," STATIONERY, OFFICE SUPPLIES, PRINTING AND WRITING PAPER "
CCC_10001143_8,05/07/2022,South Essex Parking Partnership,AMZNMKTPLACE AMAZON.CO AMAZON.CO.UK,16.62,New Equipment,5999,MISCELLANEOUS & SPECIALTY STORES
CCC_10001044_3,05/07/2022,Operational Services,COOPER KEYS CHELMSFORD CM,16.67,New Equipment,5251,HARDWARE STORES
CCC_10001140_11,05/07/2022,South Essex Parking Partnership,LIDL GB PITSEA PITSEA,2.49,General Expense,5411,GROCERY STORES OR SUPERMARKETS
CCC_10001107_10,05/07/2022,Leisure & Heritage Services,AMZNMKTPLACE AMAZON.CO AMAZON.CO.UK,30.37,New Equipment,5999,MISCELLANEOUS & SPECIALTY STORES
CCC_10001457_4,05/07/2022,Leisure & Heritage Services,AMZNMKTPLACE AMAZON.CO AMAZON.CO.UK,15.99,New Equipment,5999,MISCELLANEOUS & SPECIALTY STORES
CCC_10001038_1,05/07/2022,Corporate Property Services,PROCONFERENCES.COM 01932 752685,142.8,Conference Expenses,8220," UNIVERSITIES, COLLEGES, SR COLLEGES OR PROFESSIONAL SCHOOLS "
CCC_10001140_10,05/07/2022,South Essex Parking Partnership,POST OFFICE COUNTER SOUTH BENFLEE,4.62,General Expense,9402,POSTAGE STAMPS
CCC_10000926_8,05/07/2022,Human Resources,PROTRAININGS COLCHESTER,179.64,Training Expenses,8299,SCHOOLS AND EDUCATIONAL SERVICES (NEC)
CCC_10001142_3,05/07/2022,Parks & Green Spaces,DEFIBSTORE LTD BUXTON,250.8,General Expense,5047," MEDICAL, DENTAL, OPHTHALMIC AND HOSPITAL EQUIP "
CCC_10001043_1,05/07/2022,Operational Services,AMZNMKTPLACE AMAZON.CO AMAZON.CO.UK,24.37,General Expense,5999,MISCELLANEOUS & SPECIALTY STORES
CCC_10001104_3,05/07/2022,"Museums, Theatres & Cultural Services",ROTACLOUD YORK,48,Employee Subscriptions,5734,COMPUTER SOFTWARE STORES
CCC_10001162_38,05/07/2022,Parks & Green Spaces,AMZNMKTPLACE AMAZON.CO AMAZON.CO.UK,6.94,Printing & Stationary,5999,MISCELLANEOUS & SPECIALTY STORES
CCC_10001935_4,05/07/2022,Revenue and Benefit Services,SOUTHEND COUNTY WWW.JUCTIC.GO,837.5,General Expense,9222,FINES
CCC_10001061_3,05/07/2022,Street Care & Performance,AMZNBUSINESS 2Y8780QQ4 LUXEMBOURG L,8.7,General Expense,5999,MISCELLANEOUS & SPECIALTY STORES
CCC_10001140_9,05/07/2022,South Essex Parking Partnership,HASANI HAND CAR WASH L BASILDON,48,General Expense,7542,CAR WASHES
CCC_10001037_3,05/07/2022,Parks & Green Spaces,HOMEBASE LTD CHELMSFORD,73.8,New Equipment,5200,HOME SUPPLY WAREHOUSE STORES
CCC_10001089_1,05/07/2022,Operational Services,AMZNMKTPLACE AMAZON.CO.UK,31.45,Printing & Stationary,5999,MISCELLANEOUS & SPECIALTY STORES
CCC_10001140_12,05/07/2022,South Essex Parking Partnership,AMAZON.CO.UK 2Y4CJ7Q94 AMAZON.CO.UK,95.48,Clothing & Uniforms,5969,DIRECT MARKETERS (NEC)
CCC_10001077_4,05/07/2022,Leisure & Heritage Services,AMZNMKTPLACE AMAZON.CO AMAZON.CO.UK,35.94,General Expense,5999,MISCELLANEOUS & SPECIALTY STORES
CCC_10001240_4,05/07/2022,"Museums, Theatres & Cultural Services",THE HIVE CAFE CHELMSFORD,3.12,Museum Exhibits,5812,RESTAURANTS OR EATING PLACES
CCC_10001457_1,06/07/2022,Leisure & Heritage Services,AMAZON.CO.UK 2Y1NP6DN4 AMAZON.CO.UK,6.87,New Equipment,5969,DIRECT MARKETERS (NEC)
CCC_10001457_2,06/07/2022,Leisure & Heritage Services,AMAZON.CO.UK 2Y5FQ96P4 AMAZON.CO.UK,20.29,New Equipment,5969,DIRECT MARKETERS (NEC)
CCC_10001107_9,06/07/2022,Leisure & Heritage Services,TESCO STORE 2330 CHELMSFORD 2,24.5,General Expense,5411,GROCERY STORES OR SUPERMARKETS
CCC_10001073_1,06/07/2022,Audit Services,WWW.CIPFA.ORG.UK LONDON  WC2N,509.5,Employee Subscriptions,8699,MEMBERSHIP ORGANIZATIONS NOT ELSEWHERE CLASSIFIED
CCC_10001061_1,06/07/2022,Street Care & Performance,WWW.VENESTA.CO.UK 01782277291,92.91,New Equipment,5712," FURNITURE, HOME FURNISHINGS & EQUIP STORES EXCL APPLIANCES "
CCC_10001223_16,06/07/2022,Housing Services,AMZNMKTPLACE AMAZON.CO AMAZON.CO.UK,176,New Equipment,5999,MISCELLANEOUS & SPECIALTY STORES
CCC_10001189_4,06/07/2022,Digital Services,-FEDEX- 84657600 T08456 070809,105.57,New Equipment,4215," COURIER SERVICES-AIR OR GROUND, FREIGHT "
CCC_10001070_1,06/07/2022,Legal & Democratic Services,SUMUP   SUMUP PAYMENTS LONDON,94.8,General Expense,5732,ELECTRONIC SALES
CCC_10001457_3,06/07/2022,Leisure & Heritage Services,AMAZON.CO.UK 2Y6OM16P4 AMAZON.CO.UK,10.5,New Equipment,5969,DIRECT MARKETERS (NEC)
CCC_10001086_1,06/07/2022,Operational Services,BOOKER LIMITED CHELMSF CHELMSFORD,107.19,General Expense,5811,CATERERS
CCC_10001441_1,06/07/2022,Parks & Green Spaces,AMZNBUSINESS 2Y6RM5DI4 AMAZON.CO.UK,15.14,Grounds Maintenance Materials,5999,MISCELLANEOUS & SPECIALTY STORES
CCC_10001033_1,06/07/2022,Development Management,AMZNMKTPLACE AMAZON.CO.UK,48.72,Printing & Stationary,5999,MISCELLANEOUS & SPECIALTY STORES
CCC_10001061_2,06/07/2022,Street Care & Performance,BREWSTER MOTORS E BILLERICAY,344.6,Vehicle Repairs,7538,AUTOMOTIVE SERVICE SHOPS (NON-DEALER)
CCC_10001210_3,06/07/2022,Corporate Property Services,WWW.METROPOLIS.CO.UK CROYDON,379,Publications,2741,MISCELLANEOUS PUBLISHING AND PRINTING
CCC_10001128_4,06/07/2022,"Museums, Theatres & Cultural Services",SCREWFIX DIR LTD CHELMFOR1867,51.15,General Expense,5211,LUMBER AND BUILDING MATERIALS STORES
CCC_10001044_2,06/07/2022,Operational Services,EBAY O 06-08833-39701 LONDON,33.32,New Equipment,5311,DEPARTMENT STORES
CCC_10001075_2,06/07/2022,Operational Services,FACEBK H878QFXQM2 FB.ME/ADS,400,Advertising,7311,ADVERTISING SERVICES
CCC_10001107_8,06/07/2022,Leisure & Heritage Services,BOOKER LIMITED CHELMSF CHELMSFORD,75.51,General Expense,5811,CATERERS
CCC_10001220_16,07/07/2022,Leisure & Heritage Services,PRINT MARKETPLACE 40 2802345,63.08,Printing & Stationary,7338," PRINT SHOPS, QUICK COPY SERVICES OR REPRODUCTION SERVICES "
CCC_10001107_6,07/07/2022,Leisure & Heritage Services,AMZNMKTPLACE AMAZON.CO AMAZON.CO.UK,8.32,General Expense,5999,MISCELLANEOUS & SPECIALTY STORES
CCC_10001044_1,07/07/2022,Operational Services,WWW.WORLDOFPOWER.CO.UK BUXTON SK17,87.69,New Equipment,5251,HARDWARE STORES
CCC_10001032_1,07/07/2022,Marketing & Communications Team,EPH RECEPTION BIRMINGHAM,92,Accommodation,7011," LODGING,HOTELS,MOTELS,RESORTS "
CCC_10001016_3,07/07/2022,Leisure & Heritage Services,AMZNMKTPLACE AMAZON.CO AMAZON.CO.UK,37.49,General Expense,5999,MISCELLANEOUS & SPECIALTY STORES
CCC_10001162_37,07/07/2022,Parks & Green Spaces,AMZNMKTPLACE AMAZON.CO AMAZON.CO.UK,10.55,Printing & Stationary,5999,MISCELLANEOUS & SPECIALTY STORES
CCC_10001037_2,07/07/2022,Parks & Green Spaces,SCREWFIX DIR LTD CHELMFOR1867,253.87,New Equipment,5211,LUMBER AND BUILDING MATERIALS STORES
CCC_10001162_7,07/07/2022,Parks & Green Spaces,VIKING UK LEICESTER,1005.6,Printing & Stationary,5111," STATIONERY, OFFICE SUPPLIES, PRINTING AND WRITING PAPER "
CCC_10001107_5,07/07/2022,Leisure & Heritage Services,BOOKER LIMITED CHELMSF CHELMSFORD,75.42,General Expense,5811,CATERERS
CCC_10001107_7,07/07/2022,Leisure & Heritage Services,WWW.NISBETS.COM 0845 1110281,62.96,New Equipment,5964,CATALOG MERCHANT
CCC_10001054_3,07/07/2022,Public Health & Protection Services,ROYALS SOUTHEND CAR PA SOUTHEND-ON-S,1.2,Public Transport,7523,AUTOMOBILE PARKING OR PARKING LOTS
CCC_10001140_13,07/07/2022,South Essex Parking Partnership,SUMUP   ZENITH MOTORS BARKING,25,General Expense,7210," CLEANING, LAUNDRY AND GARMENT SERVICES "
CCC_10001097_1,07/07/2022,Operational Services,DORTECH DIRECT LIMITED HUDDERSFIELD,199,General Expense,5999,MISCELLANEOUS & SPECIALTY STORES
CCC_10001220_17,07/07/2022,Leisure & Heritage Services,PRINT MARKETPLACE 40 2802345,20.58,Printing & Stationary,7338," PRINT SHOPS, QUICK COPY SERVICES OR REPRODUCTION SERVICES "
CCC_10001143_7,07/07/2022,South Essex Parking Partnership,SPORTSDIRECT 222 08443325222,33.32,Clothing & Uniforms,5941,SPORTING GOODS STORES
CCC_10001396_18,07/07/2022,Leisure & Heritage Services,SOUNDTRACK YOUR BRAND STOCKHOLM,35,General Expense,5815," DIGITAL GOODS MEDIA: BOOKS, MOVIES, MUSIC "
CCC_10001034_2,07/07/2022,Development Management,AMZNMKTPLACE AMAZON.CO.UK,156.62,New Equipment,5999,MISCELLANEOUS & SPECIALTY STORES
CCC_10001162_6,07/07/2022,Parks & Green Spaces,VIKING UK LEICESTER,16.74,Printing & Stationary,5111," STATIONERY, OFFICE SUPPLIES, PRINTING AND WRITING PAPER "
CCC_10001169_3,07/07/2022,"Museums, Theatres & Cultural Services",WWW.SCAFFOLDING-DIRECT BROMBOROUGH,367.95,New Equipment,5085,INDUSTRIAL SUPPLIES (NEC)
CCC_10001066_1,07/07/2022,Leisure & Heritage Services,AMZNMKTPLACE AMAZON.CO.UK,13.65,New Equipment,5999,MISCELLANEOUS & SPECIALTY STORES
CCC_10001169_4,07/07/2022,"Museums, Theatres & Cultural Services",WWW.SCREWFIX.COM YEOVIL,113.1,New Equipment,5211,LUMBER AND BUILDING MATERIALS STORES
CCC_10001169_2,07/07/2022,"Museums, Theatres & Cultural Services",ORBITAL FASTENERS LTD WATFORD,17.15,New Equipment,5211,LUMBER AND BUILDING MATERIALS STORES
CCC_10001080_1,08/07/2022,Leisure & Heritage Services,THE STABLE CAFE CATERING,6.86,General Expense,5812,RESTAURANTS OR EATING PLACES
CCC_10001069_1,08/07/2022,Marketing & Communications Team,WH SMITH CHELMSFORD,13.32,General Expense,5994,NEWS DEALERS AND NEWSSTANDS
CCC_10001396_17,08/07/2022,Leisure & Heritage Services,IZ  SIGNS EXPRESS PERRY ROAD,153.5,General Expense,5999,MISCELLANEOUS & SPECIALTY STORES
CCC_10001059_2,08/07/2022,Leisure & Heritage Services,SP TEST ALL WATER MANSFIELD,284.41,Grounds Maintenance Materials,5399,GENERAL MERCHANDISE OR CONVENIENCE FOOD STORES
CCC_10001094_1,08/07/2022,Operational Services,AMZNMKTPLACE AMAZON.CO AMAZON.CO.UK,230,General Expense,5999,MISCELLANEOUS & SPECIALTY STORES
CCC_10001052_4,08/07/2022,Parks & Green Spaces,HOMEBASE LTD CHELMSFORD,25.67,Grounds Maintenance Materials,5200,HOME SUPPLY WAREHOUSE STORES
CCC_10001163_3,08/07/2022,Leisure & Heritage Services,VIKING UK LEICESTER,134.95,Printing & Stationary,5111," STATIONERY, OFFICE SUPPLIES, PRINTING AND WRITING PAPER "
CCC_10001041_3,08/07/2022,Public Health & Protection Services,AMZNMKTPLACE AMAZON.CO.UK,5.99,Printing & Stationary,5999,MISCELLANEOUS & SPECIALTY STORES
CCC_10001180_3,08/07/2022,Public Health & Protection Services,B&M 560 - CHELMSFORD CHELMSFORD,16.67,New Equipment,5399,GENERAL MERCHANDISE OR CONVENIENCE FOOD STORES
CCC_10001082_1,08/07/2022,Leisure & Heritage Services,AMZNMKTPLACE AMAZON.CO.UK,21.65,General Expense,5999,MISCELLANEOUS & SPECIALTY STORES
CCC_10001142_2,08/07/2022,Parks & Green Spaces,ESSEX SUPPLIES (UK) LT SOUTHEND-ON-S,67.18,General Expense,2842," SPECIALTY CLEANING, POLISHING AND SANITATION PREPS "
CCC_10001151_1,08/07/2022,Leisure & Heritage Services,AMZNMKTPLACE AMAZON.CO.UK,9.16,New Equipment,5999,MISCELLANEOUS & SPECIALTY STORES
CCC_10002149_5,09/07/2022,Parking & Highways Operations,CYCLE PARKING CHELMSFORD,1,General Expense,9399,GOVERNMENT SERVICES (NEC) OR FIRE DEPARTMENTS
CCC_10001039_1,09/07/2022,Digital Services,AMZN MKTP UK V275472A5 AMAZON.CO.UK,117.59,General Expense,5942,BOOK STORES
CCC_10002149_6,09/07/2022,Parking & Highways Operations,CYCLE PARKING CHELMSFORD,1,General Expense,9399,GOVERNMENT SERVICES (NEC) OR FIRE DEPARTMENTS
CCC_10001054_2,09/07/2022,Public Health & Protection Services,CANTERBURY CITY COUNCI CANTERBURY,10,Public Transport,7523,AUTOMOBILE PARKING OR PARKING LOTS
CCC_10001041_2,09/07/2022,Public Health & Protection Services,AMZNMKTPLACE AMAZON.CO.UK,6.28,Printing & Stationary,5999,MISCELLANEOUS & SPECIALTY STORES
CCC_10002149_7,09/07/2022,Parking & Highways Operations,CYCLE PARKING CHELMSFORD,1,General Expense,9399,GOVERNMENT SERVICES (NEC) OR FIRE DEPARTMENTS
CCC_10001059_1,10/07/2022,Leisure & Heritage Services,WWW.MAD4TOOLS.COM BISHOPSWORTH,27.52,Clothing & Uniforms,5072," HARDWARE, PLUMBING, HEATING EQUIPMENT AND SUPPLIES "
CCC_10001041_1,10/07/2022,Public Health & Protection Services,AMZNMKTPLACE AMAZON.CO.UK,6.98,Printing & Stationary,5999,MISCELLANEOUS & SPECIALTY STORES
CCC_10001034_1,11/07/2022,Development Management,AMZNMKTPLACE AMAZON.CO.UK,156.62,New Equipment,5999,MISCELLANEOUS & SPECIALTY STORES
CCC_10001104_2,11/07/2022,"Museums, Theatres & Cultural Services",AMZNMKTPLACE AMAZON.CO.UK,14.16,New Equipment,5999,MISCELLANEOUS & SPECIALTY STORES
CCC_10001176_3,11/07/2022,Parks & Green Spaces,ASDA SUPERSTORE CHELMSFORD,21.65,General Expense,5411,GROCERY STORES OR SUPERMARKETS
CCC_10001052_3,11/07/2022,Parks & Green Spaces,WWW.SCREWFIX.COM YEOVIL,264.14,Grounds Maintenance Materials,5211,LUMBER AND BUILDING MATERIALS STORES
CCC_10001107_3,11/07/2022,Leisure & Heritage Services,TESCO STORE 2330 CHELMSFORD 2,25.45,General Expense,5411,GROCERY STORES OR SUPERMARKETS
CCC_10001176_2,11/07/2022,Parks & Green Spaces,TESCO-STORES 6724 CHELMSFORD,2.25,General Expense,5411,GROCERY STORES OR SUPERMARKETS
CCC_10002111_4,11/07/2022,Building Services,TESCO STORES 5408 CHELMSFORD,6.17,General Expense,5411,GROCERY STORES OR SUPERMARKETS
CCC_10001081_4,11/07/2022,Parks & Green Spaces,AMZNMKTPLACE AMAZON.CO AMAZON.CO.UK,9.99,Printing & Stationary,5999,MISCELLANEOUS & SPECIALTY STORES
CCC_10001220_15,11/07/2022,Leisure & Heritage Services,WWW.UKWRISTBANDS.COM INTERNET,226.98,General Expense,5699,APPAREL AND ACCESSORY SHOPS -- MISCELLANEOUS
CCC_10001107_4,11/07/2022,Leisure & Heritage Services,WWW.STUFF-UK.NET BETCHWORTH,-101.93,New Equipment,7372," COMPUTER PROGRAMMING, SYSTEMS DESIGN OR DATA PROCESSING SERV "
CCC_10001140_14,11/07/2022,South Essex Parking Partnership,ARCO LTD BASILDON,25.98,Clothing & Uniforms,5085,INDUSTRIAL SUPPLIES (NEC)
CCC_10001140_15,11/07/2022,South Essex Parking Partnership,SPORTSDIRECT 266 08443325266,47.49,Clothing & Uniforms,5941,SPORTING GOODS STORES
CCC_10001063_1,11/07/2022,Digital Services,PAYPAL  AOLISITEELE 4029357733,26.65,New Equipment,5732,ELECTRONIC SALES
CCC_10001609_3,12/07/2022,Parking & Highways Operations,CYCLE PARKING CHELMSFORD,1,General Expense,9399,GOVERNMENT SERVICES (NEC) OR FIRE DEPARTMENTS
CCC_10001081_2,12/07/2022,Parks & Green Spaces,AMZNMKTPLACE AMAZON.CO AMAZON.CO.UK,4.16,Printing & Stationary,5999,MISCELLANEOUS & SPECIALTY STORES
CCC_10001081_3,12/07/2022,Parks & Green Spaces,AMZNMKTPLACE AMAZON.CO AMAZON.CO.UK,9.32,Printing & Stationary,5999,MISCELLANEOUS & SPECIALTY STORES
CCC_10001037_1,12/07/2022,Parks & Green Spaces,EURO CAR PARTS TAMWORTH,75.76,Vehicle Repairs,5533," AUTOMOTIVE PARTS, ACCESSORIES STORES "
CCC_10001056_1,12/07/2022,Leisure & Heritage Services,AMZNMKTPLACE AMAZON.CO.UK,22.83,New Equipment,5999,MISCELLANEOUS & SPECIALTY STORES
CCC_10001077_3,12/07/2022,Leisure & Heritage Services,AMZNMKTPLACE AMAZON.CO AMAZON.CO.UK,20.5,General Expense,5999,MISCELLANEOUS & SPECIALTY STORES
CCC_10001609_2,12/07/2022,Parking & Highways Operations,CYCLE PARKING CHELMSFORD,1,General Expense,9399,GOVERNMENT SERVICES (NEC) OR FIRE DEPARTMENTS
CCC_10001059_6,12/07/2022,Leisure & Heritage Services,WWW.SCREWFIX.COM YEOVIL,56.17,Grounds Maintenance Materials,5211,LUMBER AND BUILDING MATERIALS STORES
CCC_10001050_2,12/07/2022,Human Resources,SHL GROUP LTD THAMES DITTON,132,General Expense,7399,BUSINESS SERVICES (NEC)
CCC_10001036_1,12/07/2022,Chief Executive's Office,TESCO STORES 5408 CHELMSFORD,0.75,General Expense,5411,GROCERY STORES OR SUPERMARKETS
CCC_10001140_16,12/07/2022,South Essex Parking Partnership,AMAZON.CO.UK 5M1U58NC5 AMAZON.CO.UK,37.79,Clothing & Uniforms,5969,DIRECT MARKETERS (NEC)
CCC_10001220_13,12/07/2022,Leisure & Heritage Services,AMZNMKTPLACE AMAZON.CO.UK,152.99,New Equipment,5999,MISCELLANEOUS & SPECIALTY STORES
CCC_10001081_1,12/07/2022,Parks & Green Spaces,AMZNMKTPLACE AMAZON.CO AMAZON.CO.UK,7.87,Printing & Stationary,5999,MISCELLANEOUS & SPECIALTY STORES
CCC_10001220_14,12/07/2022,Leisure & Heritage Services,AMZNMKTPLACE AMAZON.CO.UK,48.49,New Equipment,5999,MISCELLANEOUS & SPECIALTY STORES
CCC_10001055_1,12/07/2022,Parks & Green Spaces,DFSK PARTS LTD WATCHET,60,Vehicle Repairs,5511,AUTO/TRUCK DEALERS NEW/USED SALE REPAIR PARTS & LEASE
CCC_10001176_4,12/07/2022,Parks & Green Spaces,SAINSBURYS S/MKTS CHELMSFORD 41,22.95,General Expense,5411,GROCERY STORES OR SUPERMARKETS
CCC_10001077_2,12/07/2022,Leisure & Heritage Services,AMZNMKTPLACE AMAZON.CO.UK,47.45,General Expense,5999,MISCELLANEOUS & SPECIALTY STORES
CCC_10001609_4,12/07/2022,Parking & Highways Operations,CYCLE PARKING CHELMSFORD,1,General Expense,9399,GOVERNMENT SERVICES (NEC) OR FIRE DEPARTMENTS
CCC_10001104_1,12/07/2022,"Museums, Theatres & Cultural Services",AMZNMKTPLACE AMAZON.CO.UK,4.66,Printing & Stationary,5999,MISCELLANEOUS & SPECIALTY STORES
CCC_10001223_15,12/07/2022,Housing Services,NORFOLK COUNTY COUNCIL NORWICH.,-11,General Expense,9399,GOVERNMENT SERVICES (NEC) OR FIRE DEPARTMENTS
CCC_10001050_1,13/07/2022,Human Resources,SHL GROUP LTD THAMES DITTON,44,General Expense,7399,BUSINESS SERVICES (NEC)
CCC_10001107_2,13/07/2022,Leisure & Heritage Services,TESCO STORE 2330 CHELMSFORD 2,11.79,General Expense,5411,GROCERY STORES OR SUPERMARKETS
CCC_10000926_9,13/07/2022,Human Resources,CHARTERED ASSOCIATION NORTHAMPTON,225,Employee Subscriptions,8220," UNIVERSITIES, COLLEGES, SR COLLEGES OR PROFESSIONAL SCHOOLS "
CCC_10000926_10,13/07/2022,Human Resources,CHARTERED ASSOCIATION NORTHAMPTON,240,Employee Subscriptions,8220," UNIVERSITIES, COLLEGES, SR COLLEGES OR PROFESSIONAL SCHOOLS "
CCC_10001169_1,13/07/2022,"Museums, Theatres & Cultural Services",AMAZON.CO.UK BI95T99G5 AMAZON.CO.UK,19.57,New Equipment,5969,DIRECT MARKETERS (NEC)
CCC_10001016_2,13/07/2022,Leisure & Heritage Services,COMMERCIAL WASHROOMS POOLE,268,General Expense,5712," FURNITURE, HOME FURNISHINGS & EQUIP STORES EXCL APPLIANCES "
CCC_10001140_17,13/07/2022,South Essex Parking Partnership,TESCO STORE 3060 PITSEA,17.5,General Expense,5411,GROCERY STORES OR SUPERMARKETS
CCC_10001052_2,13/07/2022,Parks & Green Spaces,HOMEBASE LTD CHELMSFORD,40.85,Grounds Maintenance Materials,5200,HOME SUPPLY WAREHOUSE STORES
CCC_10001107_1,13/07/2022,Leisure & Heritage Services,BOOKER LIMITED CHELMSF CHELMSFORD,81.84,General Expense,5811,CATERERS
CCC_10001052_1,14/07/2022,Parks & Green Spaces,AMZNMKTPLACE AMAZON.CO.UK,26.17,Grounds Maintenance Materials,5999,MISCELLANEOUS & SPECIALTY STORES
CCC_10001396_16,14/07/2022,Leisure & Heritage Services,AMZNMKTPLACE AMAZON.CO.UK,20.82,General Expense,5999,MISCELLANEOUS & SPECIALTY STORES
CCC_10001099_1,14/07/2022,Operational Services,DORTECH DIRECT LIMITED HUDDERSFIELD,-165.83,General Expense,5999,MISCELLANEOUS & SPECIALTY STORES
CCC_10001102_1,14/07/2022,Parks & Green Spaces,DVLA VEHICLE TAX 0300 1234321,292.5,Vehicle Tax,9311,TAX PAYMENTS
CCC_10001118_8,14/07/2022,Human Resources,MUSEUMS ASCTN LONDON,94,Employee Subscriptions,5971,ART DEALERS OR GALLERIES
CCC_10001172_7,14/07/2022,"Museums, Theatres & Cultural Services",MARKS&SPENCER PLC CHELMSFORD,5.12,General Expense,5411,GROCERY STORES OR SUPERMARKETS
CCC_10001065_1,14/07/2022,Leisure & Heritage Services,ATHLETICS HUB BIRMINGHAM,205,General Expense,8641," SOCIAL, FRATERNAL OR CIVIC ASSOCIATIONS "
CCC_10001077_1,14/07/2022,Leisure & Heritage Services,AMZNMKTPLACE AMAZON.CO.UK,42.95,New Equipment,5999,MISCELLANEOUS & SPECIALTY STORES
CCC_10001105_1,14/07/2022,"Museums, Theatres & Cultural Services",UK THEATRE LONDON,60,Training Expenses,8699,MEMBERSHIP ORGANIZATIONS NOT ELSEWHERE CLASSIFIED
CCC_10001040_1,14/07/2022,Marketing & Communications Team,WWW.SOLOPRESS.COM SOUTHEND-ON-S,47.07,Printing & Stationary,2741,MISCELLANEOUS PUBLISHING AND PRINTING
CCC_10001220_12,14/07/2022,Leisure & Heritage Services,AMZNMKTPLACE AMAZON.CO.UK,333.8,New Equipment,5999,MISCELLANEOUS & SPECIALTY STORES
CCC_10001140_18,14/07/2022,South Essex Parking Partnership,BADDOW RD COOP 01245 493900,6.25,General Expense,5411,GROCERY STORES OR SUPERMARKETS
CCC_10001090_1,15/07/2022,Leisure & Heritage Services,SPOTIFY P1C8FFD1CC LONDON,9.99,General Expense,5815," DIGITAL GOODS MEDIA: BOOKS, MOVIES, MUSIC "
CCC_10001171_4,15/07/2022,"Museums, Theatres & Cultural Services",AMZ STUFF 4 OFFICE AMAZON.CO.UK,-46.25,Printing & Stationary,5999,MISCELLANEOUS & SPECIALTY STORES
CCC_10001210_2,15/07/2022,Corporate Property Services,WWW.PLANNING.CO BRISTOL,148.2,General Expense,7399,BUSINESS SERVICES (NEC)
CCC_10001054_1,15/07/2022,Public Health & Protection Services,JUST EAT LONDON,73.66,General Expense,5814,FAST FOOD RESTAURANTS
CCC_10001040_3,15/07/2022,Marketing & Communications Team,WWW.SOLOPRESS.COM SOUTHEND-ON-S,15.81,Printing & Stationary,2741,MISCELLANEOUS PUBLISHING AND PRINTING
CCC_10001140_19,15/07/2022,South Essex Parking Partnership,SUMUP   ASHINGTON VALE ROCHFORD,8.33,General Expense,7210," CLEANING, LAUNDRY AND GARMENT SERVICES "
CCC_10001343_19,15/07/2022,Operational Services,MILLCOT TOOLS CHELMSFORD,92.3,Vehicle Repairs,5072," HARDWARE, PLUMBING, HEATING EQUIPMENT AND SUPPLIES "
CCC_10001171_1,15/07/2022,"Museums, Theatres & Cultural Services",AMZNMKTPLACE AMAZON.CO.UK,48.33,Printing & Stationary,5999,MISCELLANEOUS & SPECIALTY STORES
CCC_10001115_2,15/07/2022,Parks & Green Spaces,D. BYFORD & SONS COLCHESTER CO,35.4,Grounds Maintenance Materials,5193," FLORIST SUPPLIES, NURSERY STOCK AND FLOWERS "
CCC_10001117_2,15/07/2022,Human Resources,SHL GROUP LTD THAMES DITTON,220,General Expense,7399,BUSINESS SERVICES (NEC)
CCC_10001140_20,15/07/2022,South Essex Parking Partnership,POST OFFICE COUNTER BRENTWOOD,7.65,General Expense,9402,POSTAGE STAMPS
CCC_10001223_14,15/07/2022,Housing Services,ESSEX COUNTY COUNCI EC CHELMSFORD,11,General Expense,9399,GOVERNMENT SERVICES (NEC) OR FIRE DEPARTMENTS
CCC_10001075_1,15/07/2022,Operational Services,FACEBK 4CND9G7QM2 FB.ME/ADS,133.66,Advertising,7311,ADVERTISING SERVICES
CCC_10001223_13,15/07/2022,Housing Services,BRADFORD MET COUNCIL INTERNET,11,General Expense,9399,GOVERNMENT SERVICES (NEC) OR FIRE DEPARTMENTS
CCC_10001083_1,16/07/2022,Leisure & Heritage Services,AKZONOBEL AMSTERDAM,34.14,New Equipment,5198," PAINTS, VARNISHES AND SUPPLIES "
CCC_10001172_6,16/07/2022,"Museums, Theatres & Cultural Services",TESCO STORES 2174 BRAINTREE,5,General Expense,5411,GROCERY STORES OR SUPERMARKETS
CCC_10001140_21,16/07/2022,South Essex Parking Partnership,SUMUP   ASHINGTON VALE ROCHFORD,33.33,General Expense,7210," CLEANING, LAUNDRY AND GARMENT SERVICES "
CCC_10001111_2,17/07/2022,Parking & Highways Operations,AMZNMKTPLACE AMAZON.CO AMAZON.CO.UK,58.32,Printing & Stationary,5999,MISCELLANEOUS & SPECIALTY STORES
CCC_10001119_1,17/07/2022,Chief Executive's Office,AMAZON.CO.UK JP84Z1EY5 AMAZON.CO.UK,16.89,General Expense,5969,DIRECT MARKETERS (NEC)
CCC_10002111_3,17/07/2022,Building Services,AMZNMKTPLACE AMAZON.CO.UK,96.63,General Expense,5999,MISCELLANEOUS & SPECIALTY STORES
CCC_10001172_2,17/07/2022,"Museums, Theatres & Cultural Services",AMZNMKTPLACE AMAZON.CO.UK,23.32,General Expense,5999,MISCELLANEOUS & SPECIALTY STORES
CCC_10001111_3,17/07/2022,Parking & Highways Operations,AMZNMKTPLACE AMAZON.CO AMAZON.CO.UK,29.07,Printing & Stationary,5999,MISCELLANEOUS & SPECIALTY STORES
CCC_10000972_9,17/07/2022,Operational Services,MAKRO SELF SERVICE RAY ESSEX,19.2,General Expense,5300,WHOLESALE CLUBS
CCC_10001084_1,18/07/2022,Operational Services,BOOKER LIMITED CHELMSF CHELMSFORD,51.1,General Expense,5811,CATERERS
CCC_10001384_8,18/07/2022,"Museums, Theatres & Cultural Services",TOOLSTATION UK NORTHAMPTON,16.6,General Expense,5251,HARDWARE STORES
CCC_10001115_1,18/07/2022,Parks & Green Spaces,TESCO STORE 2330 CHELMSFORD 2,62.5,General Expense,5411,GROCERY STORES OR SUPERMARKETS
CCC_10001087_2,18/07/2022,Leisure & Heritage Services,LEESPRINGLI 01189740414,17.86,Grounds Maintenance Materials,5085,INDUSTRIAL SUPPLIES (NEC)
CCC_10001111_1,18/07/2022,Parking & Highways Operations,AMZNMKTPLACE AMAZON.CO AMAZON.CO.UK,124.99,Printing & Stationary,5999,MISCELLANEOUS & SPECIALTY STORES
CCC_10001052_7,18/07/2022,Parks & Green Spaces,HOMEBASE LTD CHELMSFORD,91.42,Grounds Maintenance Materials,5200,HOME SUPPLY WAREHOUSE STORES
CCC_10001117_1,18/07/2022,Human Resources,SHL GROUP LTD THAMES DITTON,52.8,General Expense,7399,BUSINESS SERVICES (NEC)
CCC_10001220_11,18/07/2022,Leisure & Heritage Services,AMZNMKTPLACE AMAZON.CO AMAZON.CO.UK,29.99,New Equipment,5999,MISCELLANEOUS & SPECIALTY STORES
CCC_10001087_3,18/07/2022,Leisure & Heritage Services,PIPESTOCK.COM ROMSEY,60.47,Grounds Maintenance Materials,5074,PLUMBING AND HEATING EQUIPMENT AND SUPPLIES
CCC_10001427_1,18/07/2022,Parks & Green Spaces,HOMEBASE LTD CHELMSFORD,15,Grounds Maintenance Materials,5200,HOME SUPPLY WAREHOUSE STORES
CCC_10001427_2,18/07/2022,Parks & Green Spaces,TESCO-STORES 6724 CHELMSFORD,13.25,Grounds Maintenance Materials,5411,GROCERY STORES OR SUPERMARKETS
CCC_10001128_3,18/07/2022,"Museums, Theatres & Cultural Services",PREMIER FARNELL PRESTON,189.54,General Expense,5065,ELECTRICAL PARTS AND EQUIPMENT
CCC_10001085_1,18/07/2022,Operational Services,SAINSBURYS S/MKTS CHELMSFORD 41,28,General Expense,5411,GROCERY STORES OR SUPERMARKETS
CCC_10001118_7,18/07/2022,Human Resources,BRIT PSYCHOLOGICAL 0116 2529540,35.88,Employee Subscriptions,8099,MEDICAL SERVICES AND HEALTH PRACTITIONERS (NEC)
CCC_10001188_8,19/07/2022,"Museums, Theatres & Cultural Services",AMZNMKTPLACE AMAZON.CO.UK,80.33,General Expense,5999,MISCELLANEOUS & SPECIALTY STORES
CCC_10001188_12,19/07/2022,"Museums, Theatres & Cultural Services",AMZNMKTPLACE AMAZON.CO.UK,4.99,General Expense,5999,MISCELLANEOUS & SPECIALTY STORES
CCC_10001188_11,19/07/2022,"Museums, Theatres & Cultural Services",AMZNMKTPLACE AMAZON.CO.UK,8.13,General Expense,5999,MISCELLANEOUS & SPECIALTY STORES
CCC_10001329_21,19/07/2022,Parks & Green Spaces,RONTEC WEST CHELMS CHELMSFORD,3.16,General Expense,5541,GAS/SERVICE STATIONS WITH/WITHOUT ANCILLARY SERVICES
CCC_10001186_1,19/07/2022,Digital Services,AMZNMKTPLACE AMAZON.CO.UK,16.47,Printing & Stationary,5999,MISCELLANEOUS & SPECIALTY STORES
CCC_10001188_9,19/07/2022,"Museums, Theatres & Cultural Services",AMZNMKTPLACE AMAZON.CO.UK,61.46,General Expense,5999,MISCELLANEOUS & SPECIALTY STORES
